{"text_format":"1","workbook":"xlsx","n_sheets":46,"sheets":["Abertura","Manual de Instruções","Capa Simulador","Menu Principal","Ajuda Quadro 1","Quadro 1","Ajuda Quadro 2","Quadro 2","Quadro 3","Ajuda Quadro 4","Quadro 4","Ajuda Quadro 5","Quadro 5","Ajuda Quadro 6","Quadro 6","Quadro 7","Ajuda Quadro 7","Quadro 8","Ajuda Quadro 8","Quadro 9","Quadro 10","Quadro 11","Ajuda Quadro 12","Quadro 12","Quadro 13.1","Despesas Financeiras","Resultados","Menu de Impressão","Sobre o ProjFacil","Dados Gerais da Empresa","Proj.Faturamento","Insumos","Desp. Com. Adm.","Mão-de-Obra","Depreciação","Capital de Giro","Investimentos","Usos e Fontes","Simulador","Proj.Resultados","Fluxo de Caixa","Análise de Viabilidade","Sumário Executivo","Rascunho","Plan1","Plan2"],"not_rendered":{"charts":0,"images":11,"macros":1,"external_links":0,"defined_names":48,"comments":14,"pivot_tables":0},"unopened":[],"bounds":{"document_bytes":16777216,"sheet_cells":100000,"rows_first":2000,"rows_last":500,"rows_between":2000,"halvings":0,"cell_chars":16384,"cell_head_chars":4096},"cells_cut":0,"cells_raw":0,"read":"whole","date_system":"1900"}

{"sheet":"Abertura","index":0,"n_rows":31,"n_cols":6,"rows_kept":31,"cut":false,"hidden":false,"merged":[]}
[]
[]
[]
[null,null,null,null,null,"Informações e Contato"]
[null,null,null,null,null,"Serviço Brasileiro de Apoio às Micro e Pequenas Empresas da Baha - Sebrae"]
[null,null,null,null,null,"Unidade de Acesso a Mercados. Rua Horácio César, 64 - Dois de Julho"]
[null,null,null,null,null,"CEP 40.060-350 - SEBRAE/BA"]
[null,null,null,null,null,"Telefone: (71) 3320-4491"]
[null,null,null,null,null,"E-mail: contato.uam@ba.sebrae.com.br  www.sebrae.com.br"]
[]
[]
[null,null,null,null,null,"Sebrae Bahia"]
[]
[null,null,null,null,null,"Presidente"]
[null,null,null,null,null,"Antônio Ricardo Alvarez Alban"]
[]
[null,null,null,null,null,"Diretor-Superintendente"]
[null,null,null,null,null,"Adhvan Novais Furtado"]
[]
[null,null,null,null,null,"Diretor Técnico"]
[null,null,null,null,null,"Lauro Alberto Chaves Ramos"]
[]
[null,null,null,null,null,"Diretor de Atendimento"]
[null,null,null,null,null,"Franklin Santana Santos"]
[]
[null,null,null,null,null,"Unidade de Acesso a Mercados"]
[null,null,null,null,null,"José Nilo Meira - Gerente"]
[null,null,null,null,null,"Alessandra Giovana F. da S. de O. Borges - Gerente Adjunta"]
[]
[null,null,null,null,null,"Desenvolvedor:"]
[null,null,null,null,null,"José Nilo Meira, MSc. Administração"]

{"sheet":"Manual de Instruções","index":1,"n_rows":151,"n_cols":2,"rows_kept":151,"cut":false,"hidden":false,"merged":[]}
[]
[]
[]
[]
[null,"SIMULADOR FINANCEIRO PARA PEQUENOS NEGÓCIOS - MANUAL DE INSTRUÇÕES"]
[]
[null,"Para que serve "]
[]
[null,"O Simulador Financeiro para Pequenos Negócios é uma ferramenta desenvolvida pela Unidade de Acesso a Mercados do SEBRAE / BA, com o objetivo de servir como parte integrante e essencial na elaboração de um Plano de Negócios, tendo como públicos-alvo empreendedores, consultores, analistas de crédito, professores, estudantes e investidores em geral."]
[]
[null,"Para saber o que é um Plano de Negócios clique aqui"]
[]
[]
[null,"Objetivo do Simulador"]
[]
[null,"Este simulador objetiva auxiliar na elaboração do plano de negócios, simplificando e automatizando a realização dos cálculos financeiros, gerando projeções de resultados e indicadores de viabilidade fundamentais para a tomada de decisão do empreendedor.  Ou seja, as questões relacionadas a faturamento, custos, despesas, lucro, tempo de retorno de capital, capacidade de honrar compromissos bancários e se o negócio é economicamente viável ou não, são facilmente respondidas com o uso desta ferramenta."]
[]
[null,"Como utilizar o Simulador"]
[]
[null,"O simulador foi elaborado com foco em pequenos negócios de qualquer setor / segmento.  Seu preenchimento é intuitivo e autoexplicativo. Mesmo assim, para ajudar ainda mais na sua compreensão, existem campos de ajuda para eliminar quaisquer dúvidas. Para facilitar a navegação é só clicar nos campos “continua”; “retorna” ou “menu principal”. O usuário deverá preencher somente os campos na cor cinza. Os demais campos estão protegidos e não aceitam edição."]
[]
[null,"Ao final do preenchimento de todos os quadros, o usuário poderá imprimir os seguintes relatórios:"]
[]
[null,"·         Projeção de resultados (DRE) para um período de 10 anos;"]
[null,"·         Quadro de Fontes e Usos;"]
[null,"·         Sumário Executivo, com resumo de todos os indicadores de viabilidade, bem como dos méritos econômicos e sociais do empreendimento."]
[]
[null,"Existe a possibilidade ainda de o empreendedor realizar análise de cenários, simulando o impacto de eventuais variações, para mais ou para menos, de receitas, despesas e custos, e verificar a repercussão dessas variações nos resultados da empresa, fazendo com que a decisão de investir seja tomada com muito mais segurança."]
[null,"No sumário executivo há a definição conceitual de cada indicador de viabilidade. Para acessar esses conceitos, passe o mouse sobre o pontinho vermelho no campo superior esquerdo de cada indicador."]
[]
[null,"Para iniciar o preenchimento o empreendedor deverá ter em mãos as seguintes informações:"]
[]
[null,"·         Valores dos investimentos necessários à realização do empreendimento, tais como gastos com construções civis / reformas; aquisição de máquinas e equipamentos; móveis e utensílios; veículos e gastos de implantação. Não é necessário se preocupar com os investimentos com Capital de Giro, haja vista que o sistema fará o cálculo desse montante automaticamente, com base em premissas a serem informadas pelo usuário;"]
[null,"·         Capacidade produtiva, comercial e de prestação de serviços do empreendimento (por dia de trabalho). Por exemplo: se uma empresa tem uma máquina que consegue produzir 1.000 unidades de um determinado produto por dia, essa será a capacidade produtiva da empresa. Por outro lado, se um salão de beleza tem capacidade de atender 30 clientes por dia, essa será a sua capacidade de prestação de serviços;"]
[null,"·         Número de dias que a empresa funcionará por mês;"]
[null,"·         Nível de utilização da capacidade produtiva: Exemplo: embora se saiba que uma determinada máquina tenha capacidade de produzir 1.000 unidades de um dado produto por dia, não necessariamente a empresa conseguirá vender toda essa produção. Assim, é prudente que se estabeleçam percentuais de utilização da capacidade produtiva, na hora de se estimar o faturamento da empresa. Desta forma é conveniente, por exemplo, começar trabalhando com apenas 50% de utilização da capacidade produtiva no primeiro ano e ir aumentando esse percentual nos anos seguintes. O empreendedor deve estar seguro da escolha desses percentuais, com base no estudo de mercado que realizou. Na dúvida, escolha sempre um percentual mais baixo, de modo a tornar as projeções mais prudentes e confiáveis;"]
[]
[null,"·         Preço de venda dos produtos ou serviços;"]
[]
[null,"·         Custo unitário de aquisição do produto que será vendido ou da matéria prima que será utilizada na produção;"]
[]
[null,"·         Custo unitário da embalagem que será utilizada;"]
[]
[null,"·         Despesas fixas mensais: com água, energia elétrica, combustíveis, seguro, aluguel, manutenção, IPTU, taxas, telefone, internet e outros;"]
[]
[null,"·         Despesas variáveis: Estabelecer percentuais incidentes sobre as vendas, para fazer frente às seguintes despesas: comissões sobre vendas, propaganda e marketing, inadimplência e outras;"]
[]
[null,"·         Valor dos cargos e salários:  levantar os cargos, o quantitativo de pessoal e os respectivos salários mensais. Não é necessário se preocupar com os encargos sociais, pois a planilha calculará esse montante automaticamente."]
[]
[null,"·         Informações para cálculo do Capital de Giro:"]
[]
[null,"        a.       Qual o percentual médio de vendas a prazo?"]
[null,"        b.      Quantos dias (em média) de prazo a empresa concederá aos seus clientes?"]
[" ","        c.       Qual o percentual médio de compras a prazo?"]
[null,"        d.      Quantos dias de prazo (em média) a empresa deverá obter junto aos seus fornecedores?"]
[null,"        e.      Qual o prazo médio de estocagem de mercadorias ou matérias primas?"]
[]
[]
[null,"Clique aqui para começar "]
[]
[]
[]
[]
[]
[]
[]
[]
[]
[]
[]
[]
[]
[]
[]
[]
[]
[]
[]
[]
[]
[]
[]
[]
[]
[]
[]
[]
[]
[]
[]
[]
[]
[]
[]
[]
[]
[]
[]
[]
[]
[]
[]
[]
[]
[]
[]
[]
[]
[]
[]
[]
[]
[]
[]
[]
[]
[]
[]
[null,"O que é um Plano de Negócios?"]
[]
[null,"Plano de Negócios pode ser definido como um conjunto sistematizado de informações com vistas a avaliar a conveniência (ou não) de destinar recursos para abrir um novo negócio, expandir suas operações, modernizar ou relocalizar empreendimentos."]
[]
[null,"Um plano de negócio é um documento que descreve por escrito os objetivos de um negócio e quais passos devem ser dados para que esses objetivos sejam alcançados, diminuindo seus riscos e incertezas. Um plano de negócio permite identificar e restringir erros ao papel, evitando-se que estes erros sejam cometidos no mundo real."]
[]
[null,"Para elaborar um plano de negócios o empreendedor deve ter clareza sobre os seguintes pontos:"]
[]
[null,"·         O que é o negócio? (vende o quê? faz o quê? presta que tipo de serviço? ou seja, qual a sua proposta de valor)."]
[null,"·         Qual a estratégia competitiva? Exemplo: a empresa pretende vender produtos populares de baixo preço ou produtos diferenciados de alto valor?"]
[null,"·         Qual a experiência dos empreendedores na atividade? Está prevista a contratação de pessoas com o nível de qualificação e experiência necessária?"]
[null,"·         Qual a forma jurídica que a empresa será constituída? (microempreendedor individual, empresa de pequeno porte, empresa individual etc.)"]
[null,"·         Qual o regime tributário escolhido? (SUPER SIMPLES, Lucro Real, Lucro Presumido)."]
[null,"·         Quais os principais produtos e/ou serviços que serão ofertados e a que preços?"]
[null,"·         Quem serão seus principais clientes, fornecedores, concorrentes e produtos substitutos? "]
[null,"·         Onde será localizada a empresa? "]
[null,"·         Qual a estratégia de marketing e comercialização? (loja física, loja virtual, venda através de representantes, através de atacadistas, diretamente ao consumidor final etc)."]
[null,"·         Qual o montante de capital a ser investido e qual sua fonte de recursos? Os empreendedores têm os recursos necessários ou vão financiar parte desses investimentos? "]
[null,"·         Qual o arranjo físico (disposição das máquinas, equipamentos instalações etc.)?"]
[null,"·         Qual a capacidade produtiva, comercial e de prestação de serviços?"]
[null,"·         Quais os processos operacionais, a tecnologia empregada e a necessidade de pessoal?"]
[]
[null,"Além desses aspectos, o empreendedor precisará levantar:"]
[]
[null,"·         Qual será o faturamento mensal da empresa? "]
[null,"·         Quais os custos e despesas do negócio?"]
[null,"·         Que lucro espera-se obter do negócio, nos diversos níveis de produção? "]
[null,"·         Em quanto tempo se espera que o capital investido retorne?"]
[null,"·         Quais são os indicadores de viabilidade do negócio?"]
[null,"·         A empresa terá condições de pagar pelos financiamentos que contrair? "]
[null,"·         Quais os riscos financeiros associados?"]
[]
[null,"Para maiores informações sobre a elaboração de um plano de negócios consulte: http://www.sebrae.com.br/sites/PortalSebrae/bis/Como-elaborar-um-plano-de-neg%C3%B3cio"]

{"sheet":"Capa Simulador","index":2,"n_rows":0,"n_cols":0,"rows_kept":0,"cut":false,"hidden":false,"merged":[]}

{"sheet":"Menu Principal","index":3,"n_rows":33,"n_cols":12,"rows_kept":33,"cut":false,"hidden":false,"merged":[]}
[]
[]
[null,null,null,null,null,null,null,"Investimentos"]
[]
[]
[]
[]
[]
[]
[]
[]
[]
[]
[]
[]
[]
[]
[]
[]
[]
[]
[]
[]
[]
[]
[]
[]
[]
[]
[]
[]
[]
[null,null,null,null,null,null,null,null,null,null,null,"Simulador de Financiamento"]

{"sheet":"Ajuda Quadro 1","index":4,"n_rows":19,"n_cols":2,"rows_kept":19,"cut":false,"hidden":false,"merged":[[5,1,5,18]]}
[]
[]
[null,"Retorna"]
[]
[]
[null,"DICA 1: ESTIMANDO OS INVESTIMENTOS"]
[]
[]
[null,"O levantamento dos investimentos é um passo de fundamental importância para o estudo de viabilidade de um negócio."]
[null,"O empreendedor deve fazer um levantamento completo e detalhado de todas as necessidades de investimentos."]
[]
[null,"Uma boa dica é fazer visitas a empreendimentos similares ao que se deseja montar e anotar tudo o que se faz necessário"]
[null,"para que o negócio funcione bem. Mesmo itens aparentemente de menor importância devem ser relacionados. Se você "]
[null,"deseja montar uma pizzaria, por exemplo, uma boa ideia seria se empregar em uma boa empresa do ramo e se tornar um"]
[null,"especialista no assunto. Ou então, contar com a ajuda de quem conhece a fundo o negócio que se deseja criar."]
[]
[null,"Lembre-se que uma das grandes causas de insucesso de empresas é o dimensionamento inadequado das necessidades "]
[null,"de recursos. Ou seja, na estimativa dos gastos é sempre melhor pecar por excesso do que por omissão, evitando-se"]
[null,"surpresas desagradáveis."]

{"sheet":"Quadro 1","index":5,"n_rows":18,"n_cols":5,"rows_kept":18,"cut":false,"hidden":false,"merged":[[15,1,15,2],[4,2,4,3],[5,4,6,4],[14,1,14,2],[11,1,11,2],[5,1,6,2],[5,3,6,3]]}
[]
[null,"Menu Principal",null,null,"Ajuda"]
[]
[null,"NOME DA EMPRESA","Fábrica de Pipocas da Bahia","DATA DO PROJETO","2016-04-14"]
[]
[null,"QUADRO 1 - Investimentos: Informe os gastos necessários à realização do empreendimento",null,"R$","Informe o % de Financiamento Pretendido"]
[]
[null,"Gastos com Construções Civis e Reformas",null,null,0.8]
[null,"Gastos com Instalações",null,null,0.8]
[null,"Compra de Máquinas e Equipamentos",null,null,0.8]
[null,"Compra de Softwares, Computadores e Periféricos",null,null,0.8]
[null,"Aquisição de Veículos",null,null,0.8]
[null,"Aquisição de Móveis e Utensílios",null,null,0.8]
[null,"Realização Gastos Diversos com Implantação"]
[null,"Capital de Giro (será calculado automaticamente pelo sistema)",null,{"$f":"Investimentos!F153","v":{"$error":"#DIV/0!"}},0.8]
[null,"Total",null,{"$f":"SUM(D8:D15)","v":{"$error":"#DIV/0!"}},{"$f":"(D8*E8)+(D9*E9)+(D10*E10)+(D11*E11)+(D12*E12)+(D13*E13)+(D15*E15)","v":{"$error":"#DIV/0!"}}]
[]
[null,"Retorna",null,null,"Continua"]

{"sheet":"Ajuda Quadro 2","index":6,"n_rows":22,"n_cols":2,"rows_kept":22,"cut":false,"hidden":false,"merged":[[5,1,5,18]]}
[]
[]
[null,"Retorna"]
[]
[]
[null,"DICA 2: DEFININDO A CAPACIDADE PRODUTIVA DA EMPRESA"]
[]
[null,"O ponto de partida para a definição da capacidade produtiva ou \"tamanho\" da empresa são os investimentos"]
[null,"programados. A partir da capacidade de cada máquina, equipamento ou instalação prevista para a empresa"]
[null,"consegue-se estabelecer a quantidade de produto ou serviço que poderá ser produzido."]
[]
[null,"Uma boa dica é estudar os manuais das máquinas e verificar quantas unidades se consegue produzir por hora."]
[null,"Sabendo-se quantas horas essa máquina poderá funcionar por dia, tem-se a sua capacidade produtiva diária."]
[]
[null,"Outro exemplo: um restaurante possui 20 mesas com 04 cadeiras cada. Supondo-se que cada mesa fique "]
[null,"ocupada por 01 hora e o restaurante funcione 06 horas por dia, nesse caso tem-se uma capacidade produtiva"]
[null,"máxima diária de 480 pessoas."]
[]
[null,"Suponha agora um salão de beleza com 01 cadeira de cabeleireiro e um tempo médio de corte de cabelo em torno"]
[null,"de 30 minutos. Considerando-se que esse salão funciona 08 horas por dia, tem-se: "]
[null,"01 cadeira x 02 cortes por hora x 8 horas por dia = 16 cortes por dia. Assim, a capacidade produtiva desse salão "]
[null,"é de16 cortes por dia."]

{"sheet":"Quadro 2","index":7,"n_rows":19,"n_cols":5,"rows_kept":19,"cut":false,"hidden":false,"merged":[[4,4,6,4],[16,1,16,2],[8,1,8,2],[9,1,9,2],[10,1,10,2],[11,1,11,2],[12,1,12,2],[13,1,13,2],[14,1,14,2],[4,1,6,2],[4,3,6,3],[7,1,7,2],[15,1,15,2]]}
[]
[]
[null,"Menu Principal",null,null,"Ajuda"]
[]
[null,"QUADRO 2 - Capacidade Produtiva: Com base nos investimentos programados (QUADRO 1), informe quanto a empresa tem condições de produzir, por dia, de cada produto ou serviço (quantidade máxima possível)",null,"Quantidade Diária","Unidade de Medida              (kg, ton, litro, metro, unid. etc)"]
[]
[]
[]
[]
[]
[]
[]
[]
[]
[]
[]
[]
[]
[null,"Retorna",null,null,"Continua"]

{"sheet":"Quadro 3","index":8,"n_rows":10,"n_cols":4,"rows_kept":10,"cut":false,"hidden":false,"merged":[[6,1,6,2]]}
[]
[]
[]
[]
[null,"Menu Principal"]
[]
[null,"QUADRO 3 - Informe a quantidade de dias que a empresa funcionará por mês "]
[]
[]
[null,"Retorna",null,"Continua"]

{"sheet":"Ajuda Quadro 4","index":9,"n_rows":21,"n_cols":2,"rows_kept":21,"cut":false,"hidden":false,"merged":[[4,1,4,13]]}
[]
[null,"Retorna"]
[]
[]
[null,"DICA 3 - PROJETANDO OS RESULTADOS"]
[]
[null,"Essa é uma das partes mais importantes da sua simulação financeira. Lembre-se que no"]
[null,"quadro 2, você estimou a capacidade máxima de produção do seu empreendimento."]
[null,"No entanto, sabe-se que, na prática, quase nenhuma empresa consegue trabalhar o tempo"]
[null,"todo utilizando 100% do seu potencial produtivo. Além das máquinas não aguentarem o"]
[null,"tranco, também não é prudente contar que se conseguirá vender tudo o que será produzido."]
[null,"Assim, por uma questão de cautela, e baseado em estudos de mercado e no seu próprio "]
[null,"sentimento, é importante definir níveis realistas de utilização da capacidade produtiva"]
[null,"da empresa. Sobretudo nos primeiros anos, momento em que a empresa ainda está"]
[null,"formando a sua carteira de clientes, é bom começar com, por exemplo, um percentual"]
[null,"baixo de utilização da capacidade instalada. Supondo aquele exemplo do restaurante. Se"]
[null,"o mesmo tem uma capacidade de atender 480 clientes por dia, é razoável imaginar que, no "]
[null,"primeiro ano, o mesmo vá trabalhar somente com 40% dessa capacidade, subindo para 50%"]
[null,"no segundo ano, passando para 55% no terceiro e estabilizando-se com 60%, somente a partir"]
[null,"do quarto ano. Essa prudência gera maior confiabilidade às projeções. Isto é, se a empresa"]
[null,"for viável com esses percentuais imagine como será se conseguir, na prática, superá-los!"]

{"sheet":"Quadro 4","index":10,"n_rows":17,"n_cols":7,"rows_kept":17,"cut":false,"hidden":false,"merged":[[3,3,3,6],[3,1,4,2],[11,1,11,2],[12,1,12,2],[13,1,13,2],[14,1,14,2],[5,1,5,2],[6,1,6,2],[7,1,7,2],[8,1,8,2],[9,1,9,2],[10,1,10,2]]}
[]
[null,"Menu Principal",null,null,null,null,"Ajuda"]
[]
[null,"QUADRO 4 - Informe qual o percentual da capacidade produtiva mencionada no QUADRO 2 a empresa espera EFETIVAMENTE produzir e vender, de cada produto / serviço, nos próximos quatro anos",null,"Percentual de Utilização da Capacidade Instalada"]
[null,null,null,"Ano 1","Ano 2","Ano 3","Ano 4"]
[null,{"$f":"'Quadro 2'!B8:C8","v":0}]
[null,{"$f":"'Quadro 2'!B9:C9","v":0}]
[null,{"$f":"'Quadro 2'!B10:C10","v":0}]
[null,{"$f":"'Quadro 2'!B11:C11","v":0}]
[null,{"$f":"'Quadro 2'!B12:C12","v":0}]
[null,{"$f":"'Quadro 2'!B13:C13","v":0}]
[null,{"$f":"'Quadro 2'!B14:C14","v":0}]
[null,{"$f":"'Quadro 2'!B15:C15","v":0}]
[null,{"$f":"'Quadro 2'!B16:C16","v":0}]
[null,{"$f":"'Quadro 2'!B17:C17","v":0}]
[]
[null,"Retorna",null,null,null,null,"Continua"]

{"sheet":"Ajuda Quadro 5","index":11,"n_rows":11,"n_cols":2,"rows_kept":11,"cut":false,"hidden":false,"merged":[]}
[]
[null,"DICA 4 - ESTIMANDO OS PREÇOS DE VENDA"]
[]
[null,"Para a estimativa dos preços de venda um bom parâmetro é verificar os"]
[null,"preços praticados pela concorrência. Para gerar maior confiabilidade"]
[null,"às suas projeções é sempre bom utilizar uma boa dose de conservadorismo."]
[null,"Começe prevendo preços os mais baixos possíveis e vá aumentando,"]
[null,"de acordo com a estrutura de custos da empresa, até o limite dos preços"]
[null,"de mercado."]
[]
[null,"Retorna"]

{"sheet":"Quadro 5","index":12,"n_rows":18,"n_cols":5,"rows_kept":18,"cut":false,"hidden":false,"merged":[[5,1,5,2],[12,1,12,2],[13,1,13,2],[14,1,14,2],[15,1,15,2],[6,1,6,2],[7,1,7,2],[8,1,8,2],[9,1,9,2],[10,1,10,2],[11,1,11,2]]}
[]
[]
[]
[null,"Manu Principal",null,null,"Ajuda"]
[]
[null,"QUADRO 5 - Informe o preço de venda de cada produto / serviço",null,"Preço de Venda","Unidade de Medida (kg, metro, ton, unid. etc)"]
[null,{"$f":"'Quadro 4'!B6:C6","v":0}]
[null,{"$f":"'Quadro 4'!B7:C7","v":0}]
[null,{"$f":"'Quadro 4'!B8:C8","v":0}]
[null,{"$f":"'Quadro 4'!B9:C9","v":0}]
[null,{"$f":"'Quadro 4'!B10:C10","v":0}]
[null,{"$f":"'Quadro 4'!B11:C11","v":0}]
[null,{"$f":"'Quadro 4'!B12:C12","v":0}]
[null,{"$f":"'Quadro 4'!B13:C13","v":0}]
[null,{"$f":"'Quadro 4'!B14:C14","v":0}]
[null,{"$f":"'Quadro 4'!B15:C15","v":0}]
[]
[null,"Retorna",null,null,"Continua"]

{"sheet":"Ajuda Quadro 6","index":13,"n_rows":68,"n_cols":11,"rows_kept":68,"cut":false,"hidden":false,"merged":[[9,2,9,9],[37,2,37,9]]}
[]
[null,"Retorna"]
[]
[]
[null,null,"ESCOLHA A ALÍQUOTA DO SIMPLES NACIONAL, DE ACORDO COM"]
[null,null,"O SETOR DE ATIVIDADE E NÍVEL DE FATURAMENTO DO SEU NEGÓCIO"]
[]
[]
[]
[null,null,"ALÍQUOTAS DO SIMPLES NACIONAL - COMÉRCIO"]
[]
[]
[]
[]
[null,null,"Receita Bruta em 12 meses (em R$)","ALÍQUOTA","IRPJ","CSLL","COFINS","PIS/PASEP","CPP","ICMS"]
[null,null,"Até 180.000,00",0.04,0,0,0,0,2.75E-2,1.2500000000000001E-2]
[null,null,"De 180.000,01 a 360.000,00",5.4699999999999999E-2,0,0,8.6E-3,0,2.75E-2,1.8599999999999998E-2]
[null,null,"De 360.000,01 a 540.000,00",6.8400000000000002E-2,2.7000000000000001E-3,3.0999999999999999E-3,9.4999999999999998E-3,2.3E-3,2.75E-2,2.3300000000000001E-2]
[null,null,"De 540.000,01 a 720.000,00",7.5399999999999995E-2,3.5000000000000001E-3,3.5000000000000001E-3,1.04E-2,2.5000000000000001E-3,2.9899999999999999E-2,2.5600000000000001E-2]
[null,null,"De 720.000,01 a 900.000,00",7.5999999999999998E-2,3.5000000000000001E-3,3.5000000000000001E-3,1.0500000000000001E-2,2.5000000000000001E-3,3.0200000000000001E-2,2.58E-2]
[null,null,"De 900.000,01 a 1.080.000,00",8.2799999999999999E-2,3.8E-3,3.8E-3,1.15E-2,2.7000000000000001E-3,3.2800000000000003E-2,2.8199999999999999E-2]
[null,null,"De 1.080.000,01 a 1.260.000,00",8.3599999999999994E-2,3.8999999999999998E-3,3.8999999999999998E-3,1.1599999999999999E-2,2.8E-3,3.3000000000000002E-2,2.8400000000000002E-2]
[null,null,"De 1.260.000,01 a 1.440.000,00",8.4500000000000006E-2,3.8999999999999998E-3,3.8999999999999998E-3,1.17E-2,2.8E-3,3.3500000000000002E-2,2.87E-2]
[null,null,"De 1.440.000,01 a 1.620.000,00",9.0300000000000005E-2,4.1999999999999997E-3,4.1999999999999997E-3,1.2500000000000001E-2,3.0000000000000001E-3,3.5700000000000003E-2,3.0700000000000002E-2]
[null,null,"De 1.620.000,01 a 1.800.000,00",9.1200000000000003E-2,4.3E-3,4.3E-3,1.26E-2,3.0000000000000001E-3,3.5999999999999997E-2,3.1E-2]
[null,null,"De 1.800.000,01 a 1.980.000,00",9.9500000000000005E-2,4.5999999999999999E-3,4.5999999999999999E-3,1.38E-2,3.3E-3,3.9399999999999998E-2,3.3799999999999997E-2]
[null,null,"De 1.980.000,01 a 2.160.000,00",0.1004,4.5999999999999999E-3,4.5999999999999999E-3,1.3899999999999999E-2,3.3E-3,3.9899999999999998E-2,3.4099999999999998E-2]
[null,null,"De 2.160.000,01 a 2.340.000,00",0.1013,4.7000000000000002E-3,4.7000000000000002E-3,1.4E-2,3.3E-3,4.0099999999999997E-2,3.4500000000000003E-2]
[null,null,"De 2.340.000,01 a 2.520.000,00",0.1023,4.7000000000000002E-3,4.7000000000000002E-3,1.4200000000000001E-2,3.3999999999999998E-3,4.0500000000000001E-2,3.4799999999999998E-2]
[null,null,"De 2.520.000,01 a 2.700.000,00",0.1032,4.7999999999999996E-3,4.7999999999999996E-3,1.43E-2,3.3999999999999998E-3,4.0800000000000003E-2,3.5099999999999999E-2]
[null,null,"De 2.700.000,01 a 2.880.000,00",0.1123,5.1999999999999998E-3,5.1999999999999998E-3,1.5599999999999999E-2,3.7000000000000002E-3,4.4400000000000002E-2,3.8199999999999998E-2]
[null,null,"De 2.880.000,01 a 3.060.000,00",0.1132,5.1999999999999998E-3,5.1999999999999998E-3,1.5699999999999999E-2,3.7000000000000002E-3,4.4900000000000002E-2,3.85E-2]
[null,null,"De 3.060.000,01 a 3.240.000,00",0.1142,5.3E-3,5.3E-3,1.5800000000000002E-2,3.8E-3,4.5199999999999997E-2,3.8800000000000001E-2]
[null,null,"De 3.240.000,01 a 3.420.000,00",0.11509999999999999,5.3E-3,5.3E-3,1.6E-2,3.8E-3,4.5600000000000002E-2,3.9100000000000003E-2]
[null,null,"De 3.420.000,01 a 3.600.000,00",0.11609999999999999,5.4000000000000003E-3,5.4000000000000003E-3,1.6E-2,3.8E-3,4.5999999999999999E-2,3.95E-2]
[]
[]
[null,null,"ALÍQUOTAS DO SIMPLES NACIONAL - INDÚSTRIA"]
[]
[]
[]
[null,null,"Receita Bruta em 12 meses (em R$)","Alíquota","IRPJ","CSLL","Cofins","PIS/Pasep","CPP","ICMS","IPI"]
[null,null,"Até 180.000,00",4.4999999999999998E-2,0,0,0,0,2.75E-2,1.2500000000000001E-2,5.0000000000000001E-3]
[null,null,"De 180.000,01 a 360.000,00",5.9700000000000003E-2,0,0,8.6E-3,0,2.75E-2,1.8599999999999998E-2,5.0000000000000001E-3]
[null,null,"De 360.000,01 a 540.000,00",7.3400000000000007E-2,2.7000000000000001E-3,3.0999999999999999E-3,9.4999999999999998E-3,2.3E-3,2.75E-2,2.3300000000000001E-2,5.0000000000000001E-3]
[null,null,"De 540.000,01 a 720.000,00",8.0399999999999999E-2,3.5000000000000001E-3,3.5000000000000001E-3,1.04E-2,2.5000000000000001E-3,2.9899999999999999E-2,2.5600000000000001E-2,5.0000000000000001E-3]
[null,null,"De 720.000,01 a 900.000,00",8.1000000000000003E-2,3.5000000000000001E-3,3.5000000000000001E-3,1.0500000000000001E-2,2.5000000000000001E-3,3.0200000000000001E-2,2.58E-2,5.0000000000000001E-3]
[null,null,"De 900.000,01 a 1.080.000,00",8.7800000000000003E-2,3.8E-3,3.8E-3,1.15E-2,2.7000000000000001E-3,3.2800000000000003E-2,2.8199999999999999E-2,5.0000000000000001E-3]
[null,null,"De 1.080.000,01 a 1.260.000,00",8.8599999999999998E-2,3.8999999999999998E-3,3.8999999999999998E-3,1.1599999999999999E-2,2.8E-3,3.3000000000000002E-2,2.8400000000000002E-2,5.0000000000000001E-3]
[null,null,"De 1.260.000,01 a 1.440.000,00",8.9499999999999996E-2,3.8999999999999998E-3,3.8999999999999998E-3,1.17E-2,2.8E-3,3.3500000000000002E-2,2.87E-2,5.0000000000000001E-3]
[null,null,"De 1.440.000,01 a 1.620.000,00",9.5299999999999996E-2,4.1999999999999997E-3,4.1999999999999997E-3,1.2500000000000001E-2,3.0000000000000001E-3,3.5700000000000003E-2,3.0700000000000002E-2,5.0000000000000001E-3]
[null,null,"De 1.620.000,01 a 1.800.000,00",9.6199999999999994E-2,4.1999999999999997E-3,4.1999999999999997E-3,1.26E-2,3.0000000000000001E-3,3.6200000000000003E-2,3.1E-2,5.0000000000000001E-3]
[null,null,"De 1.800.000,01 a 1.980.000,00",0.1045,4.5999999999999999E-3,4.5999999999999999E-3,1.38E-2,3.3E-3,3.9399999999999998E-2,3.3799999999999997E-2,5.0000000000000001E-3]
[null,null,"De 1.980.000,01 a 2.160.000,00",0.10539999999999999,4.5999999999999999E-3,4.5999999999999999E-3,1.3899999999999999E-2,3.3E-3,3.9899999999999998E-2,3.4099999999999998E-2,5.0000000000000001E-3]
[null,null,"De 2.160.000,01 a 2.340.000,00",0.10630000000000001,4.7000000000000002E-3,4.7000000000000002E-3,1.4E-2,3.3E-3,4.0099999999999997E-2,3.4500000000000003E-2,5.0000000000000001E-3]
[null,null,"De 2.340.000,01 a 2.520.000,00",0.10730000000000001,4.7000000000000002E-3,4.7000000000000002E-3,1.4200000000000001E-2,3.3999999999999998E-3,4.0500000000000001E-2,3.4799999999999998E-2,5.0000000000000001E-3]
[null,null,"De 2.520.000,01 a 2.700.000,00",0.1082,4.7999999999999996E-3,4.7999999999999996E-3,1.43E-2,3.3999999999999998E-3,4.0800000000000003E-2,3.5099999999999999E-2,5.0000000000000001E-3]
[null,null,"De 2.700.000,01 a 2.880.000,00",0.1173,5.1999999999999998E-3,5.1999999999999998E-3,1.5599999999999999E-2,3.7000000000000002E-3,4.4400000000000002E-2,3.8199999999999998E-2,5.0000000000000001E-3]
[null,null,"De 2.880.000,01 a 3.060.000,00",0.1182,5.1999999999999998E-3,5.1999999999999998E-3,1.5699999999999999E-2,3.7000000000000002E-3,4.4900000000000002E-2,3.85E-2,5.0000000000000001E-3]
[null,null,"De 3.060.000,01 a 3.240.000,00",0.1192,5.3E-3,5.3E-3,1.5800000000000002E-2,3.8E-3,4.5199999999999997E-2,3.8800000000000001E-2,5.0000000000000001E-3]
[null,null,"De 3.240.000,01 a 3.420.000,00",0.1201,5.3E-3,5.3E-3,1.6E-2,3.8E-3,4.5600000000000002E-2,3.9100000000000003E-2,5.0000000000000001E-3]
[null,null,"De 3.420.000,01 a 3.600.000,00",0.1211,5.4000000000000003E-3,5.4000000000000003E-3,1.6E-2,3.8E-3,4.5999999999999999E-2,3.95E-2,5.0000000000000001E-3]
[]
[]
[null,null,"Para empresas prestadoras de serviços consultar: http://www8.receita.fazenda.gov.br/SimplesNacional/"]
[]
[]
[null,"Retorna"]

{"sheet":"Quadro 6","index":14,"n_rows":14,"n_cols":7,"rows_kept":14,"cut":false,"hidden":false,"merged":[[5,1,5,2]]}
[]
[]
[]
[null,"Menu Principal",null,null,null,null,"Ajuda"]
[]
[null,"Quadro 6 - Informe as alíquotas do SIMPLES NACIONAL, de acordo com a atividade da empresa e os níveis de faturamento abaixo (CLIQUE EM AJUDA PARA CONSULTAR AS TABELAS)",null,"Ano 1","Ano 2","Ano 3","Ano 4"]
[null,"ANOS","Faturamento Anual"]
[null,1,{"$f":"Proj.Faturamento!G42","v":0}]
[null,2,{"$f":"Proj.Faturamento!I42","v":0}]
[null,3,{"$f":"Proj.Faturamento!K42","v":0}]
[null,4,{"$f":"Proj.Faturamento!M42","v":0}]
[]
[]
[null,"Retorna",null,null,null,null,"Continua"]

{"sheet":"Quadro 7","index":15,"n_rows":16,"n_cols":4,"rows_kept":16,"cut":false,"hidden":false,"merged":[[3,1,3,2],[10,1,10,2],[11,1,11,2],[12,1,12,2],[13,1,13,2],[4,1,4,2],[5,1,5,2],[6,1,6,2],[7,1,7,2],[8,1,8,2],[9,1,9,2]]}
[]
[null,"Menu Principal",null,"Ajuda"]
[]
[null,"QUADRO 7 - Informe o custo unitário com matéria prima ou mercadoria para cada unidade de produto vendido pela empresa",null,"Custo Unitário da Matéria Prima ou Mercadoria Vendida "]
[null,{"$f":"'Quadro 5'!B7:C7","v":0}]
[null,{"$f":"'Quadro 5'!B8:C8","v":0}]
[null,{"$f":"'Quadro 5'!B9:C9","v":0}]
[null,{"$f":"'Quadro 5'!B10:C10","v":0}]
[null,{"$f":"'Quadro 5'!B11:C11","v":0}]
[null,{"$f":"'Quadro 5'!B12:C12","v":0}]
[null,{"$f":"'Quadro 5'!B13:C13","v":0}]
[null,{"$f":"'Quadro 5'!B14:C14","v":0}]
[null,{"$f":"'Quadro 5'!B15:C15","v":0}]
[null,{"$f":"'Quadro 5'!B16:C16","v":0}]
[]
[null,"Retorna",null,"Continua"]

{"sheet":"Ajuda Quadro 7","index":16,"n_rows":21,"n_cols":5,"rows_kept":21,"cut":false,"hidden":false,"merged":[[17,1,17,3],[3,0,3,7]]}
[]
[null,"Retorna"]
[]
["DICA 5 - FORMANDO O CUSTO UNITÁRIO DE MERCADORIA OU MATÉRIA PRIMA"]
[null,"Para o preenchimento desse quadro há duas situações. Caso sua empresa seja"]
[null,"uma empresa comercial, você deverá lançar o valor de custo de cada mercadoria"]
[null,"vendida. Caso seja uma empresa industrial, é preciso que sejam levantados todos"]
[null,"os custos com matéria prima, diretamente relacionados ao produto, conforme"]
[null,"exemplo abaixo: Produto Calça"]
[]
[null,"Material","Quantidade","Valor Unitário         R$","Valor Total           R$ "]
[null,"Tecido","4 metros",2.5,{"$f":"4*2.5","v":10}]
[null,"Elástico","2 metros",0.3,{"$f":"2*D13","v":0.6}]
[null,"Linha","15 metros",0.1,{"$f":"D14*15","v":1.5}]
[null,"Zíper","01 unidade",0.8,0.8]
[null,"Botão","04 unidades",0.1,{"$f":"0.1*4","v":0.4}]
[null,"Etiqueta","01 unidade",0.5,0.5]
[null,"TOTAL",null,null,{"$f":"SUM(E12:E17)","v":13.8}]
[]
[null,"Assim, no Quadro 7, para o produto Calça, deverá ser lançado o"]
[null,"custo unitário de R$ 13,80."]

{"sheet":"Quadro 8","index":17,"n_rows":16,"n_cols":4,"rows_kept":16,"cut":false,"hidden":false,"merged":[[3,1,3,2],[10,1,10,2],[11,1,11,2],[12,1,12,2],[13,1,13,2],[4,1,4,2],[5,1,5,2],[6,1,6,2],[7,1,7,2],[8,1,8,2],[9,1,9,2]]}
[]
[null,"Menu Principal",null,"Ajuda"]
[]
[null,"QUADRO 8 - Informe o custo unitário de embalagem para cada unidade de produto",null," Custo Unitário de Embalgem"]
[null,{"$f":"'Quadro 2'!B8:C8","v":0}]
[null,{"$f":"'Quadro 2'!B9:C9","v":0}]
[null,{"$f":"'Quadro 2'!B10:C10","v":0}]
[null,{"$f":"'Quadro 2'!B11:C11","v":0}]
[null,{"$f":"'Quadro 2'!B12:C12","v":0}]
[null,{"$f":"'Quadro 2'!B13:C13","v":0}]
[null,{"$f":"'Quadro 2'!B14:C14","v":0}]
[null,{"$f":"'Quadro 2'!B15:C15","v":0}]
[null,{"$f":"'Quadro 2'!B16:C16","v":0}]
[null,{"$f":"'Quadro 2'!B17:C17","v":0}]
[]
[null,"Retorna",null,"Continua"]

{"sheet":"Ajuda Quadro 8","index":18,"n_rows":15,"n_cols":5,"rows_kept":15,"cut":false,"hidden":false,"merged":[[11,1,11,3],[3,1,3,8]]}
[]
[null,"Retorna"]
[]
[null,"DICA 6 - FORMANDO O CUSTO UNITÁRIO DE MATERIAIS DE EMBALAGEM"]
[null,"No preenchimento do Quadro 8, para cada produto você deverá lançar o custo unitário"]
[null,"com materiais de embalagem, conforme exemplo abaixo:"]
[]
[null,"Produto: Calça"]
[null,"Material","Quantidade","Valor Unitário         R$","Valor Total           R$ "]
[null,"Saco Plástico","1 unidade",0.05,0.05]
[null,"Caixa","1 unidade",0.05,0.05]
[null,"TOTAL",null,null,{"$f":"SUM(E10:E11)","v":0.1}]
[]
[null,"Assim, no Quadro 8, para o produto Calça, deverá ser lançado o"]
[null,"custo unitário de R$ 13,80."]

{"sheet":"Quadro 9","index":19,"n_rows":16,"n_cols":5,"rows_kept":16,"cut":false,"hidden":false,"merged":[[3,1,3,2],[9,1,9,2],[10,1,10,2],[11,1,11,2],[12,1,12,2],[13,1,13,2],[4,1,4,2],[5,1,5,2],[6,1,6,2],[7,1,7,2],[8,1,8,2]]}
[]
[null,"Menu Principal"]
[]
[null,"QUADRO 9 - Informe o valor mensal das Despesas Fixas",null,"Média Mensal","Total Anual"]
[null,"Água",null,null,{"$f":"D5*12","v":0}]
[null,"Energia Elétrica",null,null,{"$f":"D6*12","v":0}]
[null,"Combustíveis",null,null,0]
[null,"Seguro",null,null,0]
[null,"Aluguel",null,null,0]
[null,"Manutenção",null,null,0]
[null,"IPTU, Taxas Diversas, Outros Fixos",null,null,0]
[null,"Telefone / Internet",null,null,0]
[null,"Diversos",null,null,0]
[null,"TOTAL",null,{"$f":"SUM(D5:D13)","v":0},0]
[]
[null,"Retorna",null,null,"Continua"]

{"sheet":"Quadro 10","index":20,"n_rows":10,"n_cols":4,"rows_kept":10,"cut":false,"hidden":false,"merged":[[4,1,4,2],[5,1,5,2],[6,1,6,2],[7,1,7,2],[3,1,3,2]]}
[]
[null,"Menu Principal"]
[]
[null,"QUADRO 10 - Despesas Variáveis (informe o percentual incidente sobre as vendas)",null,"%"]
[null,"Comissões sobre vendas"]
[null,"Propaganda e Marketing"]
[null,"Previsão de Inadimplência (Provisão para Devedores Duvidosos)"]
[null,"Outras"]
[]
[null,"Retorna",null,"Continua"]

{"sheet":"Quadro 11","index":21,"n_rows":19,"n_cols":8,"rows_kept":19,"cut":false,"hidden":false,"merged":[[15,1,15,2],[16,1,16,2],[7,1,7,2],[8,1,8,2],[9,1,9,2],[10,1,10,2],[11,1,11,2],[14,1,14,2],[5,4,5,7],[5,1,6,2],[5,3,6,3],[12,1,12,2],[13,1,13,2]]}
[]
[null,"Menu Principal"]
[]
[null,"Menu Principal"]
[]
[null,"QUADRO 11 - Informe os cargos existentes na empresa",null,"Informe os Salários Mensais sem encargos","Informe a quantidade de funcionários por ano"]
[null,null,null,null,"ANO 1","ANO 2","ANO 3","ANO 4"]
[]
[]
[]
[]
[]
[]
[]
[]
[]
[]
[]
[null,"Retorna",null,null,null,null,null,"Continua"]

{"sheet":"Ajuda Quadro 12","index":22,"n_rows":68,"n_cols":7,"rows_kept":68,"cut":false,"hidden":false,"merged":[[32,1,32,3],[29,6,29,12],[44,1,44,3],[43,6,43,12],[63,1,63,3]]}
[]
[null,"Retorna"]
[]
[null,"DICA 7 - ENTENDENDO AS PREMISSAS PARA CÁLCULO DO INVESTIMENTO EM CAPITAL DE GIRO"]
[]
[null,"Como o próprio nome diz, Capital de Giro nada mais é que um montante de recurso financeiro"]
[null,"que a empresa precisa ter em caixa para fazer \"rodar\" as suas atividades. Para que a empresa "]
[null,"tenha saúde financeira, ela precisa de um determinado montante em dinheiro para fazer face às "]
[null,"suas necessidades de compra de matéria prima ou mercadorias, bem como para bancar sua política"]
[null,"de concessão de prazos aos seus clientes. Ou seja, quanto mais necessidade de estoques de"]
[null,"matéria prima ou mercadorias, mais capital de giro a empresa precisará ter em caixa. Da mesma"]
[null,"forma, quanto mais prazo a empresa concede aos seus clientes, maior será a sua necessidade"]
[null,"de capital de giro. Por outro lado, quanto mais prazo a empresa conseguir obter dos seus "]
[null,"fornecedores, menor será a sua necessidade de capital de giro."]
[]
[null,"Para o preenchimento do Quadro 12, você precisará informar como vai ser esse relacionamento"]
[null,"com clientes e fornecedores, bem como qual será o tempo necessário de estocagem de mercadorias"]
[null,"ou matérias primas."]
[]
[null,"Por exemplo: se a empresa for vender somente à vista coloque \"zero\" no campo \"Percentual de Vendas"]
[null,"a Prazo\". Todavia, se a empresa for vender 50% a prazo e 50% para recebimento em 30 dias, coloque"]
[null,"50% no campo \"Percentual de Vendas a Prazo\" e 30 no campo \"Prazo Médio Concedido a Clientes\"."]
[]
[null,"E se a empresa for trabalhar com prazos diferenciados? Por exemplo, 10% à vista, 50% para recebimento"]
[null,"em 30 dias e 40% para recebimento em 60 dias e 20% para 90 dias? Nesse caso você precisará calcular "]
[null,"a média ponderada desses prazos, conforme exemplo a seguir:"]
[]
[null,"Prazo Médio de Vendas","%","Nº de Dias","Média Ponderada em Dias"]
[null,"À vista",0.1,0,0,null,"Memória de Cálculo:"]
[null,"30 dias",0.3,30,9,null,"Calcula-se 30% de 30 = 9; 40% de 60 = 24 e 20% de 90 = 18"]
[null,"60 dias",0.4,60,24,null,"O prazo médio será a soma de 9 + 24 + 18 = 51"]
[null,"90 dias",0.2,90,18]
[null,"PRAZO MÉDIO TOTAL",null,null,{"$f":"SUM(E29:E32)","v":51}]
[]
[null,"Nesse exemplo você deverá lançar 51 no campo \"Prazo Médio Concedido a Clientes\" e 100%, no campo"]
[null,"\"Percentual de Vendas a Prazo\"."]
[]
[null,"Seguindo a mesma lógica, você deverá preencher os campos \"Percentual de Compras a Prazo\" e \"Prazo "]
[null,"Médio Obtido de Fornecedores\": Suponha que 50% das compras da empresa sejam para pagamento em "]
[null,"30 dias e 50% para pagamento em 60 dias:"]
[]
[null,"Prazo Médio de Vendas","%","Nº de Dias","Média Ponderada em Dias"]
[null,"30 dias",0.5,30,{"$f":"C43*D43","v":15},null,"Memória de Cálculo:"]
[null,"60 dias",0.5,60,{"$f":"C44*D44","v":30},null,"Calcula-se 50% de 30 = 15; 50% de 60 = 30"]
[null,"PRAZO MÉDIO TOTAL",null,null,{"$f":"SUM(E43:E44)","v":45},null,"O prazo médio será a soma de 15 + 30 = 45"]
[]
[null,"Nesse caso você deverá lançar 45 no campo \"Prazo Médio Obtido de Fornecedores\" e 100%, no campo"]
[null,"\"Percentual de Compras a Prazo\"."]
[]
[null,"O último passo é o cálculo do prazo médio de estocagem de mercadorias / insumos."]
[]
[null,"Esse prazo abrange desde a data em que é feito o pedido ao fornecedor, até o momento em que os "]
[null,"produtos são vendidos. Lembre-se que um prazo maior de permanência das mercadorias em estoque"]
[null,"irá gerar uma maior necessidade de capital de giro."]
[]
[null,"Caso a empresa tenha várias mercadorias ou insumos, será necessário o cálculo"]
[null,"de um prazo médio de estocagem, conforme exemplo a seguir:"]
[]
[null,"Prazo Médio de Estocagem","% em relação ao volume total das compras","Nº de Dias","Média Ponderada em Dias"]
[null,"Mercadoria A",0.1,5,{"$f":"C60*D60","v":0.5}]
[null,"Mercadoria B",0.2,10,{"$f":"C61*D61","v":2}]
[null,"Mercadoria C",0.3,15,4.5]
[null,"Mercadoria D",0.4,20,8]
[null,"PRAZO MÉDIO TOTAL",null,null,{"$f":"SUM(E60:E63)","v":15}]
[]
[null,"Desta forma, o prazo médio de estocagem de mercadorias é de 15 dias."]
[]
[null,"Retorna"]

{"sheet":"Quadro 12","index":23,"n_rows":14,"n_cols":7,"rows_kept":14,"cut":false,"hidden":false,"merged":[[2,1,2,4]]}
[]
[]
[null,"QUADRO 12 - DADOS PARA CÁLCULO DO CAPITAL DE GIRO",null,null,null,null,"Ajuda"]
[]
[]
[null,"PERCENTUAL DE VENDAS                       A PRAZO",null,null,null,null,"Menu Principal"]
[]
[null,"PRAZO MÉDIO CONCEDIDO A CLIENTES (EM DIAS)",null,null,null,null,"Retorna"]
[]
[null,"PERCENTUAL DE COMPRAS A PRAZO",null,null,null,null,"Continua"]
[]
[null,"PRAZO MÉDIO OBTIDO DE FORNECEDORES (EM DIAS)"]
[]
[null,"PRAZO MÉDIO DE ESTOCAGEM DE MERCADORIAS / INSUMOS           (EM DIAS)"]

{"sheet":"Quadro 13.1","index":24,"n_rows":7,"n_cols":8,"rows_kept":7,"cut":false,"hidden":false,"merged":[[4,1,4,7]]}
[]
[]
[null,"Menu Principal"]
[]
[null,"DESEJA SIMULAR FINANCIAMENTO?"]
[]
[null,"SIM",null,null,null,null,null,"NÃO"]

{"sheet":"Despesas Financeiras","index":25,"n_rows":230,"n_cols":6,"rows_kept":230,"cut":false,"hidden":false,"merged":[[19,1,19,3],[82,1,82,3],[83,1,83,3],[24,1,24,5],[5,1,7,5],[20,1,20,3],[22,1,22,3],[12,1,12,4],[13,1,13,3],[17,1,17,3],[16,1,16,3],[15,1,15,3],[14,1,14,3],[21,1,21,3],[10,1,10,4],[79,1,79,4],[135,1,135,3],[136,1,136,3],[137,1,137,3],[114,1,114,5],[109,1,109,3],[111,1,111,3],[80,1,80,3],[187,1,187,4],[188,1,188,3],[189,1,189,3],[141,1,141,5],[163,1,163,3],[87,1,87,5],[81,1,81,3],[133,1,133,4],[134,1,134,3],[106,1,106,4],[84,1,84,3],[85,1,85,3],[110,1,110,3],[107,1,107,3],[108,1,108,3],[190,1,190,3],[165,1,165,3],[112,1,112,3],[195,1,195,5],[214,1,214,3],[192,1,192,3],[193,1,193,3],[138,1,138,3],[139,1,139,3],[160,1,160,4],[161,1,161,3],[168,1,168,5],[162,1,162,3],[164,1,164,3],[166,1,166,3],[191,1,191,3]]}
[]
[]
[null,"Menu Principal",null,"Retorna",null,"Continua"]
[]
[]
[null,"QUADRO 13 - Informe a taxa de juros anual, o prazo total do financiamento e o prazo de carência"]
[]
[]
[]
[]
[null,{"$f":"'Quadro 1'!C4","v":"Fábrica de Pipocas da Bahia"},null,null,null,{"$f":"'Quadro 1'!E4","v":"2016-04-14"}]
[]
[null,"DADOS DO FINANCIAMENTO PROPOSTO"]
[null,"VALOR DO INVESTIMENTO",null,null,{"$f":"SUM(E15:E17)","v":{"$error":"#DIV/0!"}}]
[null,"FIXO",null,null,{"$f":"Investimentos!F20+Investimentos!F42+Investimentos!F60+Investimentos!F86+Investimentos!F103+Investimentos!F118+Investimentos!F142","v":0}]
[null,"GASTOS DE IMPLANTAÇÃO",null,null,{"$f":"Investimentos!F151","v":0}]
[null,"CAPITAL DE GIRO",null,null,{"$f":"Investimentos!F153","v":{"$error":"#DIV/0!"}}]
[null,"VALOR DO FINANCIAMENTO",null,null,{"$f":"'Quadro 1'!E16","v":{"$error":"#DIV/0!"}}]
[null,"BASES E CONDIÇÕES"]
[null,"TAXA DE JUROS",null,null,4.4999999999999998E-2]
[null,"PRAZO TOTAL (EM ANOS)",null,null,10]
[null,"PRAZO DE AMORTIZAÇÃO",null,null,{"$f":"E21-E23","v":8}]
[null,"PRAZO DE CARÊNCIA",null,null,2]
[]
[null,"PLANILHA DO FINANCIAMENTO PROPOSTO"]
[null,"ANO","JUROS","AMORTIZ.","PRESTAÇÃO","SDO. DEVEDOR"]
[null,0,null,null,null,{"$f":"ROUND(E18,2)","v":{"$error":"#DIV/0!"}}]
[null,1,{"$f":"ROUND(IF(F27<0,0,F27*$E$20),2)","v":{"$error":"#DIV/0!"}},{"$f":"IF($E$23>=1,0,$F$27/($E$22))","v":0},{"$f":"ROUND(C28+D28,2)","v":{"$error":"#DIV/0!"}},{"$f":"ROUND(IF(F27<=0,0,F27-D28),2)","v":{"$error":"#DIV/0!"}}]
[null,2,{"$error":"#DIV/0!"},{"$f":"ROUND(IF($E$23>=2,0,$F$27/($E$22)),2)","v":0},{"$f":"ROUND(C29+D29,2)","v":{"$error":"#DIV/0!"}},{"$f":"ROUND(IF(F28<=0,0,F28-D29),2)","v":{"$error":"#DIV/0!"}}]
[null,3,{"$error":"#DIV/0!"},{"$f":"ROUND(IF($E$23>=3,0,$F$27/($E$22)),2)","v":{"$error":"#DIV/0!"}},{"$error":"#DIV/0!"},{"$f":"ROUND(IF(F29<=0,0,F29-D30),2)","v":{"$error":"#DIV/0!"}}]
[null,4,{"$error":"#DIV/0!"},{"$f":"ROUND(IF($E$23>=4,0,$F$27/($E$22)),2)","v":{"$error":"#DIV/0!"}},{"$error":"#DIV/0!"},{"$f":"ROUND(IF(F30<=0,0,F30-D31),2)","v":{"$error":"#DIV/0!"}}]
[null,5,{"$error":"#DIV/0!"},{"$f":"ROUND(IF(F31<=0.1,0,$F$27/($E$22)),2)","v":{"$error":"#DIV/0!"}},{"$error":"#DIV/0!"},{"$f":"(ROUND(IF(F31<=0,0,F31-D32),2))","v":{"$error":"#DIV/0!"}}]
[null,6,{"$error":"#DIV/0!"},{"$error":"#DIV/0!"},{"$error":"#DIV/0!"},{"$f":"ROUND(IF(F32<=0,0,F32-D33),2)","v":{"$error":"#DIV/0!"}}]
[null,7,{"$error":"#DIV/0!"},{"$error":"#DIV/0!"},{"$error":"#DIV/0!"},{"$error":"#DIV/0!"}]
[null,8,{"$error":"#DIV/0!"},{"$error":"#DIV/0!"},{"$error":"#DIV/0!"},{"$error":"#DIV/0!"}]
[null,9,{"$error":"#DIV/0!"},{"$error":"#DIV/0!"},{"$error":"#DIV/0!"},{"$error":"#DIV/0!"}]
[null,10,{"$error":"#DIV/0!"},{"$error":"#DIV/0!"},{"$error":"#DIV/0!"},{"$error":"#DIV/0!"}]
[null,11,{"$error":"#DIV/0!"},{"$error":"#DIV/0!"},{"$error":"#DIV/0!"},{"$error":"#DIV/0!"}]
[null,12,{"$error":"#DIV/0!"},{"$error":"#DIV/0!"},{"$error":"#DIV/0!"},{"$error":"#DIV/0!"}]
[null,"TOTAL",{"$f":"SUM(C28:C39)","v":{"$error":"#DIV/0!"}},{"$f":"SUM(D28:D39)","v":{"$error":"#DIV/0!"}},{"$f":"SUM(E28:E39)","v":{"$error":"#DIV/0!"}}]
[]
[]
[]
[]
[]
[]
[]
[]
[]
[]
[]
[]
[]
[]
[]
[]
[]
[]
[]
[]
[]
[]
[]
[]
[]
[]
[]
[]
[]
[]
[]
[]
[]
[]
[]
[]
[]
[]
[]
[null,"DÍVIDAS DE LONGO  PRAZO EXISTENTES - DÍVIDA 1"]
[null,"VALOR DO FINANCIAMENTO"]
[null,"BASES E CONDIÇÕES"]
[null,"TAXA DE JUROS"]
[null,"PRAZO TOTAL (EM ANOS)",null,null,12]
[null,"PRAZO DE AMORTIZAÇÃO"]
[null,"PRAZO DE CARÊNCIA",null,null,{"$f":"E84-E85","v":12}]
[]
[null,"PLANILHA DA DÍVIDA 1"]
[null,"ANO","JUROS","AMORTIZ.","PRESTAÇÃO","SDO. DEVEDOR"]
[null,0,null,null,null,{"$f":"ROUND(E81,2)","v":0}]
[null,1,{"$f":"ROUND(IF(F90<0,0,F90*$E$83),2)","v":0},{"$f":"IF($E$86>=1,0,$F$90/($E$85))","v":0},{"$f":"ROUND(C91+D91,2)","v":0},{"$f":"ROUND(IF(F90<=0,0,F90-D91),2)","v":0}]
[null,2,{"$f":"ROUND(IF(F91<0,0,F91*$E$83),2)","v":0},{"$f":"ROUND(IF($E$86>=2,0,$F$90/($E$85)),2)","v":0},{"$f":"ROUND(C92+D92,2)","v":0},{"$f":"ROUND(IF(F91<=0,0,F91-D92),2)","v":0}]
[null,3,0,{"$f":"ROUND(IF($E$86>=3,0,$F$90/($E$85)),2)","v":0},0,{"$f":"ROUND(IF(F92<=0,0,F92-D93),2)","v":0}]
[null,4,0,{"$f":"ROUND(IF($E$86>=4,0,$F$90/($E$85)),2)","v":0},0,{"$f":"ROUND(IF(F93<=0,0,F93-D94),2)","v":0}]
[null,5,0,{"$f":"ROUND(IF(F94<=0.1,0,$F$90/($E$85)),2)","v":0},0,{"$f":"(ROUND(IF(F94<=0,0,F94-D95),2))","v":0}]
[null,6,0,{"$f":"ROUND(IF(F95<=0.1,0,$F$90/($E$85)),2)","v":0},0,{"$f":"ROUND(IF(F95<=0,0,F95-D96),2)","v":0}]
[null,7,0,0,0,0]
[null,8,0,0,0,0]
[null,9,0,0,0,0]
[null,10,0,0,0,0]
[null,11,0,0,0,0]
[null,12,0,0,0,0]
[null,"TOTAL",{"$f":"SUM(C91:C102)","v":0},{"$f":"SUM(D91:D102)","v":0},{"$f":"SUM(E91:E102)","v":0}]
[]
[]
[]
[null,"DÍVIDAS DE LONGO  PRAZO EXISTENTES - DÍVIDA 2"]
[null,"VALOR DO FINANCIAMENTO"]
[null,"BASES E CONDIÇÕES"]
[null,"TAXA DE JUROS"]
[null,"PRAZO TOTAL (EM ANOS)",null,null,12]
[null,"PRAZO DE AMORTIZAÇÃO"]
[null,"PRAZO DE CARÊNCIA",null,null,{"$f":"E111-E112","v":12}]
[]
[null,"PLANILHA DA DÍVIDA 2"]
[null,"ANO","JUROS","AMORTIZ.","PRESTAÇÃO","SDO. DEVEDOR"]
[null,0,null,null,null,{"$f":"ROUND(E108,2)","v":0}]
[null,1,{"$f":"ROUND(IF(F117<0,0,F117*$E$110),2)","v":0},{"$f":"IF($E$113>=1,0,$F$117/($E$112))","v":0},{"$f":"ROUND(C118+D118,2)","v":0},{"$f":"ROUND(IF(F117<=0,0,F117-D118),2)","v":0}]
[null,2,{"$f":"ROUND(IF(F118<0,0,F118*$E$110),2)","v":0},{"$f":"ROUND(IF($E$113>=2,0,$F$117/($E$112)),2)","v":0},{"$f":"ROUND(C119+D119,2)","v":0},{"$f":"ROUND(IF(F118<=0,0,F118-D119),2)","v":0}]
[null,3,0,{"$f":"ROUND(IF($E$113>=3,0,$F$117/($E$112)),2)","v":0},0,{"$f":"ROUND(IF(F119<=0,0,F119-D120),2)","v":0}]
[null,4,0,{"$f":"ROUND(IF($E$113>=4,0,$F$117/($E$112)),2)","v":0},0,{"$f":"ROUND(IF(F120<=0,0,F120-D121),2)","v":0}]
[null,5,0,{"$f":"ROUND(IF(F121<=0.1,0,$F$117/($E$112)),2)","v":0},0,{"$f":"(ROUND(IF(F121<=0,0,F121-D122),2))","v":0}]
[null,6,0,{"$f":"ROUND(IF(F122<=0.1,0,$F$117/($E$112)),2)","v":0},0,{"$f":"ROUND(IF(F122<=0,0,F122-D123),2)","v":0}]
[null,7,0,0,0,0]
[null,8,0,0,0,0]
[null,9,0,0,0,0]
[null,10,0,0,0,0]
[null,11,0,0,0,0]
[null,12,0,0,0,0]
[null,"TOTAL",{"$f":"SUM(C118:C129)","v":0},{"$f":"SUM(D118:D129)","v":0},{"$f":"SUM(E118:E129)","v":0}]
[]
[]
[]
[null,"DÍVIDAS DE LONGO  PRAZO EXISTENTES - DÍVIDA 3"]
[null,"VALOR DO FINANCIAMENTO"]
[null,"BASES E CONDIÇÕES"]
[null,"TAXA DE JUROS"]
[null,"PRAZO TOTAL (EM ANOS)",null,null,12]
[null,"PRAZO DE AMORTIZAÇÃO"]
[null,"PRAZO DE CARÊNCIA",null,null,{"$f":"E138-E139","v":12}]
[]
[null,"PLANILHA DA DÍVIDA 3"]
[null,"ANO","JUROS","AMORTIZ.","PRESTAÇÃO","SDO. DEVEDOR"]
[null,0,null,null,null,{"$f":"ROUND(E135,2)","v":0}]
[null,1,{"$f":"ROUND(IF(F144<0,0,F144*$E$137),2)","v":0},{"$f":"IF($E$140>=1,0,$F$144/($E$139))","v":0},{"$f":"ROUND(C145+D145,2)","v":0},{"$f":"ROUND(IF(F144<=0,0,F144-D145),2)","v":0}]
[null,2,{"$f":"ROUND(IF(F145<0,0,F145*$E$137),2)","v":0},{"$f":"ROUND(IF($E$140>=2,0,$F$144/($E$139)),2)","v":0},{"$f":"ROUND(C146+D146,2)","v":0},{"$f":"ROUND(IF(F145<=0,0,F145-D146),2)","v":0}]
[null,3,0,{"$f":"ROUND(IF($E$140>=3,0,$F$144/($E$139)),2)","v":0},0,{"$f":"ROUND(IF(F146<=0,0,F146-D147),2)","v":0}]
[null,4,0,{"$f":"ROUND(IF($E$140>=4,0,$F$144/($E$139)),2)","v":0},0,{"$f":"ROUND(IF(F147<=0,0,F147-D148),2)","v":0}]
[null,5,0,{"$f":"ROUND(IF(F148<=0.1,0,$F$144/($E$139)),2)","v":0},0,{"$f":"(ROUND(IF(F148<=0,0,F148-D149),2))","v":0}]
[null,6,0,{"$f":"ROUND(IF(F149<=0.1,0,$F$144/($E$139)),2)","v":0},0,{"$f":"ROUND(IF(F149<=0,0,F149-D150),2)","v":0}]
[null,7,0,0,0,0]
[null,8,0,0,0,0]
[null,9,0,0,0,0]
[null,10,0,0,0,0]
[null,11,0,0,0,0]
[null,12,0,0,0,0]
[null,"TOTAL",{"$f":"SUM(C145:C156)","v":0},{"$f":"SUM(D145:D156)","v":0},{"$f":"SUM(E145:E156)","v":0}]
[]
[]
[]
[null,"DÍVIDAS DE LONGO  PRAZO EXISTENTES - DÍVIDA 4"]
[null,"VALOR DO FINANCIAMENTO"]
[null,"BASES E CONDIÇÕES"]
[null,"TAXA DE JUROS"]
[null,"PRAZO TOTAL (EM ANOS)",null,null,12]
[null,"PRAZO DE AMORTIZAÇÃO"]
[null,"PRAZO DE CARÊNCIA",null,null,{"$f":"E165-E166","v":12}]
[]
[null,"PLANILHA DA DÍVIDA 4"]
[null,"ANO","JUROS","AMORTIZ.","PRESTAÇÃO","SDO. DEVEDOR"]
[null,0,null,null,null,{"$f":"ROUND(E162,2)","v":0}]
[null,1,{"$f":"ROUND(IF(F171<0,0,F171*$E$164),2)","v":0},{"$f":"IF($E$167>=1,0,$F$171/($E$166))","v":0},{"$f":"ROUND(C172+D172,2)","v":0},{"$f":"ROUND(IF(F171<=0,0,F171-D172),2)","v":0}]
[null,2,{"$f":"ROUND(IF(F172<0,0,F172*$E$164),2)","v":0},{"$f":"ROUND(IF($E$167>=2,0,$F$171/($E$166)),2)","v":0},{"$f":"ROUND(C173+D173,2)","v":0},{"$f":"ROUND(IF(F172<=0,0,F172-D173),2)","v":0}]
[null,3,0,{"$f":"ROUND(IF($E$167>=3,0,$F171/($E$166)),2)","v":0},0,{"$f":"ROUND(IF(F173<=0,0,F173-D174),2)","v":0}]
[null,4,0,{"$f":"ROUND(IF($E$167>=4,0,$F$171/($E$166)),2)","v":0},0,{"$f":"ROUND(IF(F174<=0,0,F174-D175),2)","v":0}]
[null,5,0,{"$f":"ROUND(IF(F175<=0.1,0,$F$171/($E$166)),2)","v":0},0,{"$f":"(ROUND(IF(F175<=0,0,F175-D176),2))","v":0}]
[null,6,0,0,0,{"$f":"ROUND(IF(F176<=0,0,F176-D177),2)","v":0}]
[null,7,0,0,0,0]
[null,8,0,0,0,0]
[null,9,0,0,0,0]
[null,10,0,0,0,0]
[null,11,0,0,0,0]
[null,12,0,0,0,0]
[null,"TOTAL",{"$f":"SUM(C172:C183)","v":0},{"$f":"SUM(D172:D183)","v":0},{"$f":"SUM(E172:E183)","v":0}]
[]
[]
[]
[null,"DÍVIDAS DE LONGO  PRAZO EXISTENTES - DÍVIDA 5"]
[null,"VALOR DO FINANCIAMENTO"]
[null,"BASES E CONDIÇÕES"]
[null,"TAXA DE JUROS"]
[null,"PRAZO TOTAL (EM ANOS)",null,null,12]
[null,"PRAZO DE AMORTIZAÇÃO"]
[null,"PRAZO DE CARÊNCIA",null,null,{"$f":"E192-E193","v":12}]
[]
[null,"PLANILHA DA DÍVIDA 5"]
[null,"ANO","JUROS","AMORTIZ.","PRESTAÇÃO","SDO. DEVEDOR"]
[null,0,null,null,null,{"$f":"ROUND(E189,2)","v":0}]
[null,1,{"$f":"ROUND(IF(F198<0,0,F198*$E$191),2)","v":0},{"$f":"IF($E$194>=1,0,$F$198/($E$193))","v":0},{"$f":"ROUND(C199+D199,2)","v":0},{"$f":"ROUND(IF(F198<=0,0,F198-D199),2)","v":0}]
[null,2,{"$f":"ROUND(IF(F199<0,0,F199*$E$191),2)","v":0},{"$f":"ROUND(IF($E$194>=2,0,$F$198/($E$193)),2)","v":0},{"$f":"ROUND(C200+D200,2)","v":0},{"$f":"ROUND(IF(F199<=0,0,F199-D200),2)","v":0}]
[null,3,0,{"$f":"ROUND(IF($E$194>=3,0,$F$198/($E$193)),2)","v":0},0,{"$f":"ROUND(IF(F200<=0,0,F200-D201),2)","v":0}]
[null,4,0,{"$f":"ROUND(IF($E$194>=4,0,$F$198/($E$193)),2)","v":0},0,{"$f":"ROUND(IF(F201<=0,0,F201-D202),2)","v":0}]
[null,5,0,{"$f":"ROUND(IF(F202<=0.1,0,$F$198/($E$193)),2)","v":0},0,{"$f":"(ROUND(IF(F202<=0,0,F202-D203),2))","v":0}]
[null,6,0,{"$f":"ROUND(IF(F203<=0.1,0,$F$198/($E$193)),2)","v":0},0,{"$f":"ROUND(IF(F203<=0,0,F203-D204),2)","v":0}]
[null,7,0,0,0,0]
[null,8,0,0,0,0]
[null,9,0,0,0,0]
[null,10,0,0,0,0]
[null,11,0,0,0,0]
[null,12,0,0,0,0]
[null,"TOTAL",{"$f":"SUM(C199:C210)","v":0},{"$f":"SUM(D199:D210)","v":0},{"$f":"SUM(E199:E210)","v":0}]
[]
[]
[]
[null,"RESUMO DAS OPERAÇÕES EXISTENTES"]
[null,"ANO","JUROS","AMORTIZ."]
[null,0,{"$f":"C90+C117+C144+C171+C198","v":0},{"$f":"D90+D117+D144+D171+D198","v":0}]
[null,1,{"$f":"C91+C118+C145+C172+C199","v":0},{"$f":"D91+D118+D145+D172+D199","v":0}]
[null,2,0,{"$f":"D92+D119+D146+D173+D200","v":0}]
[null,3,0,{"$f":"D93+D120+D147+D174+D201","v":0}]
[null,4,0,{"$f":"D94+D121+D148+D175+D202","v":0}]
[null,5,0,0]
[null,6,0,0]
[null,7,0,0]
[null,8,0,0]
[null,9,0,0]
[null,10,0,0]
[null,11,0,0]
[null,12,0,0]
[null,"TOTAL",{"$f":"SUM(C218:C229)","v":0},{"$f":"SUM(D218:D229)","v":0}]

{"sheet":"Resultados","index":26,"n_rows":16,"n_cols":3,"rows_kept":16,"cut":false,"hidden":false,"merged":[[1,0,1,2],[13,0,13,1],[14,0,14,1],[12,0,12,1]]}
[]
["RESULTADOS"]
[]
["Investimento Total",{"$f":"'Sumário Executivo'!C8","v":{"$error":"#DIV/0!"}}]
["Lucratividade Líquida",{"$f":"'Sumário Executivo'!D31","v":{"$error":"#DIV/0!"}},"do faturamento"]
["Rentabilidade do Negócio",{"$f":"'Sumário Executivo'!D20","v":{"$error":"#VALUE!"}}]
["Tempo de Retorno ",{"$f":"'Sumário Executivo'!D27","v":{"$error":"#DIV/0!"}},"anos"]
["Ponto de Equilíbrio",{"$f":"'Sumário Executivo'!D28","v":{"$error":"#DIV/0!"}},"da capacidade instalada"]
[]
[]
[]
[]
["Comentários:"]
[{"$f":"'Sumário Executivo'!C23","v":{"$error":"#DIV/0!"}}]
[{"$f":"'Sumário Executivo'!C27","v":{"$error":"#DIV/0!"}}]
["Ponto de Equilíbrio ",{"$f":"'Sumário Executivo'!C28","v":{"$error":"#DIV/0!"}}]

{"sheet":"Menu de Impressão","index":27,"n_rows":16,"n_cols":6,"rows_kept":16,"cut":false,"hidden":false,"merged":[[4,1,6,4]]}
[]
[]
[]
[]
[null,"Imprima os Relatórios"]
[]
[]
[]
[]
[]
[]
[]
[]
[]
[]
[null,null,null,null,null,"Menu Principal"]

{"sheet":"Sobre o ProjFacil","index":28,"n_rows":69,"n_cols":2,"rows_kept":69,"cut":false,"hidden":true,"merged":[[17,1,17,11]]}
[]
[]
[]
[]
[]
[null,"ProjFacil - Sistema Integrado de Elaboração e Análise de Projetos"]
[null,"Copyright:  José Nilo Meira"]
[]
[]
[]
[]
[]
[]
[]
[]
[]
[]
[null,"Informações Importantes sobre o ProjFacil"]
[]
[]
[null,"O ProjFacil é um aplicativo desenvolvido em MS-Excel com o objetivo de servir como ferramenta auxiliar na elaboração de"]
[null,"projetos de investimentos e sua conseqüente análise de viabilidade econômico-financeira, tendo como público-alvo "]
[null,"projetistas, analistas de crédito, professores, estudantes e investidores em geral."]
[]
[null,"Do ponto de vista do ProjFacil, um projeto de investimentos é um conjunto de informações sistematizadas que permitem"]
[null,"avaliar a conveniência ou não de se destinar recursos produtivos visando: implantar, modernizar, ampliar, relocalizar,"]
[null,"fundir ou incorporar empreendimentos. "]
[]
[null,"Assim, em todos os casos em que houver a necessidade de se realizar o planejamento de alocação de recursos que"]
[null,"se enquadre numa ótica de entradas x saídas de recursos x capacidade de cumprimento de compromissos financeiros, "]
[null,"o ProjFacil poderá se constituir num instrumento extremamente útil, podendo ser utilizado para a realização de "]
[null,"estudos de viabilidade de projetos industriais, comerciais, de prestação de serviços e até rurais, com algumas adaptações."]
[]
[null,"O ProjFacil encontra-se apto a registrar a descrição detalhada de todos os itens de investimentos, receitas, custos e"]
[null,"despesas, permitindo a emissão de relatório de projeção de resultados para um fluxo de caixa de 10 anos e o  "]
[null,"cálculo do ponto de equilíbrio, valor presente líquido, payback simples, payback descontado, graus alavancagem"]
[null,"operacional, financeira e combinada, EVA - Valor Econômico Agregado, retorno sobre o investimento e margens de"]
[null,"lucro."]
[]
[null,"Em casos de projetos de empresas já em funcionamento, o ProjFacil permite a inserção dos dados do último "]
[null,"balanço patrimonial para fins de composição do \"existente contábil\", bem como oferece a possibilidade de se entrar"]
[null,"com informações de até cinco diferentes obrigações financeiras de longo prazo, com suas respectivas taxas de juros "]
[null,"e prazos de financiamento."]
[]
[null,"Para o cálculo do Valor Presente Líquido do projeto este aplicativo utiliza a metodologia do Custo Médio Ponderado"]
[null,"de Capital, de forma totalmente amigável e automática, bastando tão somente o usuário informar os parâmetros"]
[null,"necessários. No cálculo do VPL e da Taxa Interna de Retorno não há a necessidade de se preocupar com a informação"]
[null,"do valor do DESINVESTIMENTO, ficando a cargo do sistema a sua busca automática e respectiva utilização no "]
[null,"cálculo desses indicadores."]
[]
[null,"Sempre que necessário, o usuário poderá recorrer ao help do sistema, simplesmente passando o mouse sobre os"]
[null,"vértices da cor vermelha, localizados no canto superior direito da célula, relativa ao tema em que esteja com dúvidas. "]
[]
[null,"O ProjFacil permite ainda a realização do cálculo das necessidades de investimentos em capital de giro para os "]
[null,"primeiros quatro anos do empreendimento, bem como a montagem automática do quadro de USOS E FONTES do "]
[null,"projeto."]
[]
[null,"O usuário do ProjFacil tem também a possibilidade de simular variações em todos os itens componentes da projeção"]
[null,"de resultados, ferramenta de grande utilidade quando se deseja realizar uma análise de sensibilidade do projeto."]
[]
[null,"Se desejar, o usuário poderá interpretar os principais resultados do seu empreendimento a partir da análise"]
[null,"dos gráficos gerados pelo ProjFacil, dentre os quais destacam-se: composição dos custos dos produtos vendidos,"]
[null,"composição das despesas comerciais e administrativas, ponto de equilíbrio, carga tributária, dentre outros."]
[]
[null,"Finalmente, o ProjFacil disponibiliza a planillha SUMÁRIO EXECUTIVO onde estão resumidos todos os principais"]
[null,"aspectos de uma análise econômico-financeira que devem ser evidenciados num relatório de projeto de investimentos, "]
[null,"inclusive com a interpretação automática dos principais indicadores de desempenho. Apresenta, também, informações"]
[null,"sobre méritos sociais, destacando o número de empregos gerados, arrecadação tributária, custo por emprego"]
[null,"e massa salarial anual."]

{"sheet":"Dados Gerais da Empresa","index":29,"n_rows":116,"n_cols":8,"rows_kept":116,"cut":false,"hidden":true,"merged":[[58,1,58,6],[65,1,65,6],[66,1,66,6],[60,1,60,6],[61,1,61,6],[62,1,62,6],[69,1,69,6],[63,1,63,6],[67,1,67,6],[57,1,57,6],[32,11,32,14],[33,11,33,14],[34,11,34,14],[51,1,51,6],[52,1,52,6],[35,11,35,14],[36,11,36,14],[50,1,50,6],[47,1,47,7],[54,1,54,6],[68,1,68,6],[64,1,64,6],[115,1,115,7],[78,4,78,6],[80,1,80,2],[80,3,80,7],[79,1,79,7],[74,1,74,6],[11,1,11,7],[48,1,48,6],[49,1,49,6],[31,4,31,7],[44,1,44,2],[29,2,30,2],[32,4,32,7],[33,4,33,7],[34,4,34,7],[35,4,35,7],[73,1,73,6],[53,1,53,6],[55,1,55,6],[56,1,56,6],[59,1,59,6]]}
[]
[]
[]
[]
[]
[null,"ProjFacil - Sistema Integrado de Elaboração e Análise de Projetos"]
[null,"Copyright:  José Nilo Meira"]
[]
[]
[]
[]
[null,"DADOS GERAIS DA EMPRESA"]
[null,"NOME DA EMPRESA","Fábrica de Pipocas da Bahia"]
[null,"DATA-BASE DO PROJETO",{"$f":"'Quadro 1'!C5","v":"00:00:00"}]
[null,"ENDEREÇO"]
[]
[]
[null,"TELEFONE"]
[null,"E-MAIL"]
[null,"OBJETIVO DO PROJETO"]
[]
[]
[]
[]
[null,"SETOR DE ATIVIDADE"]
[]
[]
[]
[]
[null,"TRIBUTOS SOBRE O ","ALÍQUOTAS"]
[null,"FATURAMENTO"]
[null,"ISS",null,null,"PREENCHA SOMENTE OS ESPAÇOS"]
[null,"PIS",null,null,"EM CINZA. EM CASO DE DÚVIDA"]
[null,"COFINS",null,null,"CONSULTE O HELP DO SISTEMA"]
[null,"ICMS",null,null,"PASSANDO O MOUSE SOBRE O"]
[null,"IPI",null,null,"VÉRTICE EM VERMELHO"]
[null,"TOTAL",{"$f":"SUM(C32:C36)","v":0}]
[]
[]
[]
[null,"OUTROS ","ALÍQUOTAS"]
[null,"% DE PERDAS E DEDUÇÕES",0]
[null,"% DA CONTRIBUIÇÃO SOCIAL",0,null,null,null,null," "]
[null,"% PROVISÃO PARA O IR",0]
[]
[]
[]
[null,"PARÂMETROS PARA CÁLCULO DO CAPITAL DE GIRO"]
[null,"DURAÇÃO DO EXERCÍCIO (EM DIAS)",null,null,null,null,null,360]
[null,"Nº DE DIAS DE NECESSIDADE DE CAIXA MÍNIMO",null,null,null,null,null,8]
[null,"PERCENTUAL DE VENDAS A PRAZO",null,null,null,null,null,{"$f":"'Quadro 12'!C6","v":0}]
[null,"PRAZO MÉDIO CONCEDIDOS AOS CLIENTES (EM DIAS)",null,null,null,null,null,{"$f":"'Quadro 12'!C8","v":0}]
[null,"PERÍODO MÉDIO DE ESTOCAGEM (EM DIAS)"]
[null,{"$f":"IF($C$25>1,\"    Mercadorias\",\"    Matéria-Prima\")","v":"    Matéria-Prima"},null,null,null,null,null,{"$f":"'Quadro 12'!C14","v":0}]
["   ","    Material Secundário",null,null,null,null,null,{"$f":"H54","v":0}]
[null,"    Material de Embalagem",null,null,null,null,null,{"$f":"H54","v":0}]
[null,"Nº DE DIAS DO PROCESSO DE PRODUÇÃO",null,null,null,null,null,1]
[null,"Nº DE DIAS DE EFETIVO FUNCIONAMENTO NO ANO",null,null,null,null,null,{"$f":"'Quadro 3'!D7*12","v":0}]
[null,"Nº DE DIAS DE PERMANÊNCIA DE PRODUTOS ACABADOS EM ESTOQUE",null,null,null,null,null,4]
[null,"PERCENTUAL DE COMPRAS A PRAZO"]
[null,{"$f":"IF($C$25>1,\"    Mercadorias\",\"    Matéria-Prima\")","v":"    Matéria-Prima"},null,null,null,null,null,{"$f":"'Quadro 12'!C10","v":0}]
[null,"    Material Secundário",null,null,null,null,null,{"$f":"H61","v":0}]
[null,"    Material de Embalagem",null,null,null,null,null,{"$f":"H61","v":0}]
[null,"PRAZO MÉDIO DE PAGAMENTO DAS COMPRAS (EM DIAS)"]
[null,{"$f":"IF($C$25>1,\"    Mercadorias\",\"    Matéria-Prima\")","v":"    Matéria-Prima"},null,null,null,null,null,{"$f":"'Quadro 12'!C12","v":0}]
[null,"    Material Secundário",null,null,null,null,null,{"$f":"H65","v":0}]
[null,"    Material de Embalagem",null,null,null,null,null,{"$f":"H65","v":0}]
[null,"PRAZO MÉDIO DE RECOLHIMENTO DE IMPOSTOS (EM DIAS)"]
[null,"    ICMS"]
[null,"    IPI"]
[null,"VALOR DO FINANCIAMENTO DE CURTO PRAZO PARA CAPITAL DE GIRO"]
[null,"VALOR DOS JUROS ANUAIS SOBRE FINANCIAMENTOS DE CURTO PRAZO"]
[null,"ESTOQUE DE PEÇAS E MATERIAIS DE REPOSIÇÃO (% de máquinas e equipamentos)"]
[null,"PERCENTUAL DE DESCONTOS DE DUPLICATAS"]
[null,"PRAZO MÉDIO OBTIDO NO DESCONTO DE DUPLICATAS"]
[]
[]
[]
[null,null,null,null,"DATA DO BALANÇO"]
[null,"DADOS DO EXISTENTE CONTÁBIL"]
[null,"ATIVO",null,"PASSIVO"]
[]
[null,"CIRCULANTE",null,"CIRCULANTE"]
[]
[null,"NÃO CIRCULANTE",{"$f":"C87+C89+C91+C107","v":0}]
[]
[null,"Realizável a Longo Prazo",null,"NÃO CIRCULANTE"]
[]
[null,"Investimentos",null,"PATRIMÔNIO  LÍQUIDO"]
[]
[null,"Imobilizado",{"$f":"SUM(C93:C105)","v":0}]
[]
[null,"Terrenos"]
[null,"Construções Civis"]
[null,"(-) Depreciação Acumulada"]
[null,"Máquinas e Equipamentos"]
[null,"(-) Depreciação Acumulada"]
[null,"Veículos"]
[null,"(-) Depreciação Acumulada"]
[null,"Instalações"]
[null,"(-) Depreciação Acumulada"]
[null,"Móveis e Utensílios"]
[null,"(-) Depreciação Acumulada"]
[null,"Equipamentos de Informática"]
[null,"(-) Depreciação Acumulada"]
[]
[null,"Intangível",{"$f":"SUM(C108:C109)","v":0}]
[null,"Gastos Diversos"]
[null,"(-) Amortização Acumulada"]
[]
[]
[]
[null,"TOTAL ATIVO",{"$f":"C83+C85","v":0},"TOTAL PASSIVO",null,null,null,{"$f":"H83+H87+H89","v":0}]
[]
[]
[null,{"$f":"IF(C113<>H113,\"VALOR DO ATIVO DIFERE DO VALOR DO PASSIVO!\",\"BALANÇO DIGITADO CORRETAMENTE!\")","v":"BALANÇO DIGITADO CORRETAMENTE!"}]

{"sheet":"Proj.Faturamento","index":30,"n_rows":42,"n_cols":13,"rows_kept":42,"cut":false,"hidden":true,"merged":[[41,1,41,4],[9,1,9,11],[13,1,14,1],[11,1,11,12],[13,5,13,6],[13,7,13,8],[13,9,13,10],[13,11,13,12],[13,3,14,3]]}
[]
[]
[]
[]
[null,{"$f":"'Dados Gerais da Empresa'!B6","v":"ProjFacil - Sistema Integrado de Elaboração e Análise de Projetos"}]
[null,{"$f":"'Dados Gerais da Empresa'!B7","v":"Copyright:  José Nilo Meira"}]
[]
[]
[]
[null,{"$f":"'Dados Gerais da Empresa'!C13","v":"Fábrica de Pipocas da Bahia"},null,null,null,null,null,null,null,null,null,null,{"$f":"'Dados Gerais da Empresa'!C14","v":"00:00:00"}]
[]
[null,{"$f":"IF('Dados Gerais da Empresa'!C25=1,\"PROGRAMA DE PRODUÇÃO E VENDAS\",\"PROGRAMA DE PRESTAÇÃO DE SERVIÇOS\")","v":"PROGRAMA DE PRESTAÇÃO DE SERVIÇOS"}]
[]
[null,{"$f":"IF('Dados Gerais da Empresa'!C25>1,\"SERVIÇOS\",\"PRODUTOS\")","v":"PRODUTOS"},"PRECO ","UNIDADE","CAPACIDADE","ANO 1",null,"ANO 2",null,"ANO 3",null,"ANO 4"]
[null,null,"UNITÁRIO",null,"INSTALADA","QDE.","FATURAMENTO","QDE.","FATURAMENTO","QDE.","FATURAMENTO","QDE.","FATURAMENTO"]
[null,{"$f":"'Quadro 2'!B8:C8","v":0},{"$f":"'Quadro 5'!D7","v":0},null,{"$f":"'Quadro 2'!D8*'Quadro 3'!D7:D7*12","v":0},{"$f":"E16*'Quadro 4'!D6","v":0},{"$f":"F16*$C16","v":0},{"$f":"E16*'Quadro 4'!E6","v":0},{"$f":"H16*$C16","v":0},{"$f":"E16*'Quadro 4'!F6","v":0},{"$f":"J16*$C16","v":0},{"$f":"E16*'Quadro 4'!G6","v":0},{"$f":"L16*$C16","v":0}]
[null,{"$f":"'Quadro 2'!B9:C9","v":0},{"$f":"'Quadro 5'!D8","v":0},null,{"$f":"'Quadro 2'!D9*'Quadro 3'!D7*12","v":0},{"$f":"E17*'Quadro 4'!D7","v":0},0,{"$f":"E17*'Quadro 4'!E7","v":0},0,{"$f":"E17*'Quadro 4'!F7","v":0},{"$f":"J17*$C17","v":0},{"$f":"E17*'Quadro 4'!G7","v":0},0]
[null,{"$f":"'Quadro 2'!B10:C10","v":0},{"$f":"'Quadro 5'!D9","v":0},null,{"$f":"'Quadro 2'!D10*'Quadro 3'!D7*12","v":0},{"$f":"E18*'Quadro 4'!D8","v":0},0,{"$f":"E18*'Quadro 4'!E8","v":0},0,{"$f":"E18*'Quadro 4'!F8","v":0},{"$f":"J18*$C18","v":0},{"$f":"E18*'Quadro 4'!G8","v":0},0]
[null,{"$f":"'Quadro 2'!B11:C11","v":0},{"$f":"'Quadro 5'!D10","v":0},null,{"$f":"'Quadro 2'!D11*'Quadro 3'!D7*12","v":0},{"$f":"E19*'Quadro 4'!D9","v":0},0,{"$f":"E19*'Quadro 4'!E9","v":0},0,{"$f":"E19*'Quadro 4'!F9","v":0},0,{"$f":"E19*'Quadro 4'!G9","v":0},0]
[null,{"$f":"'Quadro 2'!B12:C12","v":0},{"$f":"'Quadro 5'!D11","v":0},null,{"$f":"'Quadro 2'!D12*'Quadro 3'!D7*12","v":0},{"$f":"E20*'Quadro 4'!D10","v":0},0,{"$f":"E20*'Quadro 4'!E10","v":0},0,{"$f":"E20*'Quadro 4'!F10","v":0},0,{"$f":"E20*'Quadro 4'!G10","v":0},0]
[null,{"$f":"'Quadro 2'!B13:C13","v":0},{"$f":"'Quadro 5'!D12","v":0},null,{"$f":"'Quadro 2'!D13*'Quadro 3'!D7*12","v":0},{"$f":"E21*'Quadro 4'!D11","v":0},0,{"$f":"E21*'Quadro 4'!E11","v":0},0,{"$f":"E21*'Quadro 4'!F11","v":0},0,{"$f":"E21*'Quadro 4'!G11","v":0},0]
[null,{"$f":"'Quadro 2'!B14:C14","v":0},{"$f":"'Quadro 5'!D13","v":0},null,{"$f":"'Quadro 2'!D14*'Quadro 3'!D7*12","v":0},{"$f":"E22*'Quadro 4'!D12","v":0},0,{"$f":"E22*'Quadro 4'!E12","v":0},0,{"$f":"E22*'Quadro 4'!F12","v":0},0,{"$f":"E22*'Quadro 4'!G12","v":0},0]
[null,{"$f":"'Quadro 2'!B15:C15","v":0},{"$f":"'Quadro 5'!D14","v":0},null,{"$f":"'Quadro 2'!D15*'Quadro 3'!D7*12","v":0},{"$f":"E23*'Quadro 4'!D13","v":0},0,{"$f":"E23*'Quadro 4'!E13","v":0},0,{"$f":"E23*'Quadro 4'!F13","v":0},0,{"$f":"E23*'Quadro 4'!G13","v":0},0]
[null,{"$f":"'Quadro 2'!B16:C16","v":0},{"$f":"'Quadro 5'!D15","v":0},null,{"$f":"'Quadro 2'!D16*'Quadro 3'!D7*12","v":0},{"$f":"E24*'Quadro 4'!D14","v":0},0,{"$f":"E24*'Quadro 4'!E14","v":0},0,{"$f":"E24*'Quadro 4'!F14","v":0},0,{"$f":"E24*'Quadro 4'!G14","v":0},0]
[null,{"$f":"'Quadro 2'!B17:C17","v":0},{"$f":"'Quadro 5'!D16","v":0},null,{"$f":"'Quadro 2'!D17*'Quadro 3'!D7*12","v":0},{"$f":"E25*'Quadro 4'!D15","v":0},0,{"$f":"E25*'Quadro 4'!E15","v":0},0,{"$f":"E25*'Quadro 4'!F15","v":0},0,{"$f":"E25*'Quadro 4'!G15","v":0},0]
[null,null,null,null,null,null,0,null,0,null,0,null,0]
[null,null,null,null,null,null,0,null,0,null,0,null,0]
[null,null,null,null,null,null,0,null,0,null,0,null,0]
[null,null,null,null,null,null,0,null,0,null,0,null,0]
[null,null,null,null,null,null,0,null,0,null,0,null,0]
[null,null,null,null,null,null,0,null,0,null,{"$f":"J31*$C31","v":0},null,{"$f":"L31*$C31","v":0}]
[null,null,null,null,null,null,0,null,0,null,0,null,0]
[null,null,null,null,null,null,0,null,0,null,0,null,0]
[null,null,null,null,null,null,0,null,0,null,0,null,0]
[null,null,null,null,null,null,0,null,0,null,0,null,0]
[null,null,null,null,null,null,0,null,0,null,0,null,0]
[null,null,null,null,null,null,0,null,0,null,0,null,0]
[null,null,null,null,null,null,0,null,0,null,0,null,0]
[null,null,null,null,null,null,0,null,0,null,0,null,0]
[null,null,null,null,null,null,0,null,0,null,0,null,0]
[null,null,null,null,null,null,0,null,0,null,0,null,0]
[null,"TOTAL",null,null,null,null,{"$f":"SUM(G16:G41)","v":0},null,{"$f":"SUM(I16:I41)","v":0},null,{"$f":"SUM(K16:K41)","v":0},null,{"$f":"SUM(M16:M41)","v":0}]

{"sheet":"Insumos","index":31,"n_rows":84,"n_cols":13,"rows_kept":84,"cut":false,"hidden":true,"merged":[[80,1,80,8],[81,1,81,8],[82,1,82,8],[76,1,76,8],[77,1,77,8],[78,1,78,8],[79,1,79,8],[13,1,13,8],[64,1,64,8],[8,1,8,11],[11,5,11,8],[11,1,12,1],[11,3,12,3],[11,9,11,12],[54,1,54,8],[52,1,53,1],[52,3,53,3],[52,5,52,8],[52,9,52,12]]}
[]
[]
[]
[null,{"$f":"'Dados Gerais da Empresa'!B6","v":"ProjFacil - Sistema Integrado de Elaboração e Análise de Projetos"}]
[null,{"$f":"'Dados Gerais da Empresa'!B7","v":"Copyright:  José Nilo Meira"}]
[]
[]
[]
[null,{"$f":"'Dados Gerais da Empresa'!C13","v":"Fábrica de Pipocas da Bahia"},null,null,null,null,null,null,null,null,null,null,{"$f":"'Dados Gerais da Empresa'!C14","v":"00:00:00"}]
[]
[]
[null,"ITENS","CUSTO","UNIDADE","INSUMO",{"$f":"IF('Dados Gerais da Empresa'!$C$25>1,\"QUANTIDADES\",\"QUANTIDADES PRODUZIDAS\")","v":"QUANTIDADES PRODUZIDAS"},null,null,null,{"$f":"IF('Dados Gerais da Empresa'!$C$25>1,\"CUSTO TOTAL ANUAL\",\"CUSTO DOS INSUMOS\")","v":"CUSTO DOS INSUMOS"}]
[null,null,"UNITÁRIO",null,"UNITÁRIO","ANO 1","ANO 2","ANO 3","ANO 4","ANO 1","ANO 2","ANO 3","ANO 4"]
[null,{"$f":"IF('Dados Gerais da Empresa'!$C$25>1,\"Mercadorias\",\"Matéria-Prima\")","v":"Matéria-Prima"},null,null,null,null,null,null,null,{"$f":"SUM(J15:J52)","v":0},{"$f":"SUM(K15:K52)","v":0},{"$f":"SUM(L15:L52)","v":0},{"$f":"SUM(M15:M52)","v":0}]
[null,{"$f":"'Quadro 2'!B8:C8","v":0},{"$f":"'Quadro 7'!D5","v":0},null,1,{"$f":"Proj.Faturamento!F16","v":0},{"$f":"Proj.Faturamento!H16","v":0},{"$f":"Proj.Faturamento!J16","v":0},{"$f":"Proj.Faturamento!L16","v":0},{"$f":"F15*$E15*$C15","v":0},{"$f":"G15*$E15*$C15","v":0},{"$f":"H15*$E15*$C15","v":0},{"$f":"I15*$E15*$C15","v":0}]
[null,{"$f":"'Quadro 2'!B9:C9","v":0},{"$f":"'Quadro 7'!D6","v":0},null,1,{"$f":"Proj.Faturamento!F17","v":0},{"$f":"Proj.Faturamento!H17","v":0},{"$f":"Proj.Faturamento!J17","v":0},{"$f":"Proj.Faturamento!L17","v":0},{"$f":"F16*$E16*$C16","v":0},{"$f":"G16*$E16*$C16","v":0},{"$f":"H16*$E16*$C16","v":0},{"$f":"I16*$E16*$C16","v":0}]
[null,{"$f":"'Quadro 2'!B10:C10","v":0},{"$f":"'Quadro 7'!D7","v":0},null,1,{"$f":"Proj.Faturamento!F18","v":0},{"$f":"Proj.Faturamento!H18","v":0},{"$f":"Proj.Faturamento!J18","v":0},{"$f":"Proj.Faturamento!L18","v":0},0,0,0,0]
[null,{"$f":"'Quadro 2'!B11:C11","v":0},{"$f":"'Quadro 7'!D8","v":0},null,1,{"$f":"Proj.Faturamento!F19","v":0},{"$f":"Proj.Faturamento!H19","v":0},{"$f":"Proj.Faturamento!J19","v":0},{"$f":"Proj.Faturamento!L19","v":0},0,0,0,0]
[null,{"$f":"'Quadro 2'!B12:C12","v":0},{"$f":"'Quadro 7'!D9","v":0},null,1,{"$f":"Proj.Faturamento!F20","v":0},{"$f":"Proj.Faturamento!H20","v":0},{"$f":"Proj.Faturamento!J20","v":0},{"$f":"Proj.Faturamento!L20","v":0},0,0,0,0]
[null,{"$f":"'Quadro 2'!B13:C13","v":0},{"$f":"'Quadro 7'!D10","v":0},null,1,{"$f":"Proj.Faturamento!F21","v":0},{"$f":"Proj.Faturamento!H21","v":0},{"$f":"Proj.Faturamento!J21","v":0},{"$f":"Proj.Faturamento!L21","v":0},0,0,0,0]
[null,{"$f":"'Quadro 2'!B14:C14","v":0},{"$f":"'Quadro 7'!D11","v":0},null,1,{"$f":"Proj.Faturamento!F22","v":0},{"$f":"Proj.Faturamento!H22","v":0},{"$f":"Proj.Faturamento!J22","v":0},{"$f":"Proj.Faturamento!L22","v":0},0,0,0,0]
[null,{"$f":"'Quadro 2'!B15:C15","v":0},{"$f":"'Quadro 7'!D12","v":0},null,1,{"$f":"Proj.Faturamento!F23","v":0},{"$f":"Proj.Faturamento!H23","v":0},{"$f":"Proj.Faturamento!J23","v":0},{"$f":"Proj.Faturamento!L23","v":0},0,0,0,0]
[null,{"$f":"'Quadro 2'!B16:C16","v":0},{"$f":"'Quadro 7'!D13","v":0},null,1,{"$f":"Proj.Faturamento!F24","v":0},{"$f":"Proj.Faturamento!H24","v":0},{"$f":"Proj.Faturamento!J24","v":0},{"$f":"Proj.Faturamento!L24","v":0},0,0,0,0]
[null,{"$f":"'Quadro 2'!B17:C17","v":0},{"$f":"'Quadro 7'!D14","v":0},null,1,{"$f":"Proj.Faturamento!F25","v":0},{"$f":"Proj.Faturamento!H25","v":0},{"$f":"Proj.Faturamento!J25","v":0},{"$f":"Proj.Faturamento!L25","v":0},0,0,0,0]
[null,null,null,null,null,null,null,null,null,0,0,0,0]
[null,null,null,null,null,null,null,null,null,{"$f":"F26*$E26*$C26","v":0},{"$f":"G26*$E26*$C26","v":0},{"$f":"H26*$E26*$C26","v":0},{"$f":"I26*$E26*$C26","v":0}]
[null,null,null,null,null,null,null,null,null,0,0,0,0]
[null,null,null,null,null,null,null,null,null,0,0,0,0]
[null,null,null,null,null,null,null,null,null,0,0,0,0]
[null,null,null,null,null,null,null,null,null,0,0,0,0]
[null,null,null,null,null,null,null,null,null,0,0,0,0]
[null,null,null,null,null,null,null,null,null,0,0,0,0]
[null,null,null,null,null,null,null,null,null,{"$f":"F33*$E33*$C33","v":0},0,0,0]
[null,null,null,null,null,null,null,null,null,0,0,0,0]
[null,null,null,null,null,null,null,null,null,0,0,0,0]
[null,null,null,null,null,null,null,null,null,0,0,0,0]
[null,null,null,null,null,null,null,null,null,0,0,0,0]
[null,null,null,null,null,null,null,null,null,0,0,0,0]
[null,null,null,null,null,null,null,null,null,{"$f":"F39*$E39*$C39","v":0},{"$f":"G39*$E39*$C39","v":0},{"$f":"H39*$E39*$C39","v":0},{"$f":"I39*$E39*$C39","v":0}]
[null,null,null,null,null,null,null,null,null,0,0,0,0]
[null,null,null,null,null,null,null,null,null,0,0,0,0]
[null,null,null,null,null,null,null,null,null,0,0,0,0]
[null,null,null,null,null,null,null,null,null,0,0,0,0]
[null,null,null,null,null,null,null,null,null,0,0,0,0]
[null,null,null,null,null,null,null,null,null,0,0,0,0]
[null,null,null,null,null,null,null,null,null,0,0,0,0]
[null,null,null,null,null,null,null,null,null,0,0,0,0]
[null,null,null,null,null,null,null,null,null,0,0,0,0]
[null,null,null,null,null,null,null,null,null,0,0,0,0]
[null,null,null,null,null,null,null,null,null,0,0,0,0]
[null,null,null,null,null,null,null,null,null,0,0,0,0]
[null,null,null,null,null,null,null,null,null,0,0,0,0]
[null,"ITENS","CUSTO","UNIDADE","INSUMO",{"$f":"IF('Dados Gerais da Empresa'!$C$25>1,\"QUANTIDADES\",\"QUANTIDADES PRODUZIDAS\")","v":"QUANTIDADES PRODUZIDAS"},null,null,null,{"$f":"IF('Dados Gerais da Empresa'!$C$25>1,\"CUSTO TOTAL ANUAL\",\"CUSTO DOS INSUMOS\")","v":"CUSTO DOS INSUMOS"}]
[null,null,"UNITÁRIO",null,"UNITÁRIO","ANO 1","ANO 2","ANO 3","ANO 4","ANO 1","ANO 2","ANO 3","ANO 4"]
[null,"Material Secundário",null,null,null,null,null,null,null,{"$f":"SUM(J56:J63)","v":0},{"$f":"SUM(K56:K63)","v":0},{"$f":"SUM(L56:L63)","v":0},{"$f":"SUM(M56:M63)","v":0}]
[null,null,null,null,null,null,null,null,null,{"$f":"F56*$E56*$C56","v":0},0,0,0]
[null,null,null,null,null,null,null,null,null,0,0,0,0]
[null,null,null,null,null,null,null,null,null,0,0,0,0]
[null,null,null,null,null,null,null,null,null,0,0,0,0]
[null,null,null,null,null,null,null,null,null,0,0,0,0]
[null,null,null,null,null,null,null,null,null,0,0,0,0]
[null,null,null,null,null,null,null,null,null,0,0,0,0]
[null,null,null,null,null,null,null,null,null,0,0,0,0]
[]
[null,"Material de Embalagem",null,null,null,null,null,null,null,{"$f":"SUM(J66:J75)","v":0},{"$f":"SUM(K66:K75)","v":0},{"$f":"SUM(L66:L75)","v":0},{"$f":"SUM(M66:M75)","v":0}]
[null,{"$f":"B15","v":0},{"$f":"'Quadro 8'!D5","v":0},null,1,{"$f":"F15","v":0},{"$f":"G15","v":0},{"$f":"H15","v":0},{"$f":"I15","v":0},{"$f":"F66*$E66*$C66","v":0},0,0,0]
[null,{"$f":"B16","v":0},{"$f":"'Quadro 8'!D6","v":0},null,1,{"$f":"F16","v":0},{"$f":"G16","v":0},0,0,0,0,0,0]
[null,0,{"$f":"'Quadro 8'!D7","v":0},null,1,0,0,0,0,{"$f":"F68*$E68*$C68","v":0},{"$f":"G68*$E68*$C68","v":0},{"$f":"H68*$E68*$C68","v":0},{"$f":"I68*$E68*$C68","v":0}]
[null,0,{"$f":"'Quadro 8'!D8","v":0},null,1,0,0,0,0,0,0,0,0]
[null,0,{"$f":"'Quadro 8'!D9","v":0},null,1,0,0,0,0,0,0,0,0]
[null,0,{"$f":"'Quadro 8'!D10","v":0},null,1,0,0,0,0,0,0,0,0]
[null,0,{"$f":"'Quadro 8'!D11","v":0},null,1,0,0,0,0,0,0,0,0]
[null,0,{"$f":"'Quadro 8'!D12","v":0},null,1,0,0,0,0,0,0,0,0]
[null,0,{"$f":"'Quadro 8'!D13","v":0},null,1,0,0,0,0,{"$f":"F74*$E74*$C74","v":0},0,0,0]
[null,0,{"$f":"'Quadro 8'!D14","v":0},null,1,0,0,0,0,0,0,0,0]
[]
[null,"Água"]
[null,"Energia Elétrica"]
[null,"Combustíveis e Lubrificantes"]
[null,"Seguro"]
[null,{"$f":"IF('Dados Gerais da Empresa'!$C$25>1,\"Aluguel\",\"Aluguel Industrial\")","v":"Aluguel Industrial"}]
[null,{"$f":"IF('Dados Gerais da Empresa'!$C$25>1,\"Manutenção\",\"Manutenção Industrial\")","v":"Manutenção Industrial"}]
[null,{"$f":"IF('Dados Gerais da Empresa'!$C$25>1,\"Outros Custos\",\"Outros Custos Industriais\")","v":"Outros Custos Industriais"}]
[null,null,null,null,null,null,null,null,null,{"$f":"SUM(J77:J83)+J65+J55+J14","v":0},{"$f":"SUM(K77:K83)+K65+K55+K14","v":0},{"$f":"SUM(L77:L83)+L65+L55+L14","v":0},{"$f":"SUM(M77:M83)+M65+M55+M14","v":0}]

{"sheet":"Desp. Com. Adm.","index":32,"n_rows":38,"n_cols":8,"rows_kept":38,"cut":false,"hidden":true,"merged":[[26,1,27,1],[26,2,26,5],[13,1,14,1],[9,1,9,6],[11,1,11,6],[24,1,24,6],[13,3,13,6]]}
[]
[]
[]
[null,{"$f":"'Dados Gerais da Empresa'!B6","v":"ProjFacil - Sistema Integrado de Elaboração e Análise de Projetos"}]
[null,{"$f":"'Dados Gerais da Empresa'!B7","v":"Copyright:  José Nilo Meira"}]
[]
[]
[]
[]
[null,{"$f":"'Dados Gerais da Empresa'!C13","v":"Fábrica de Pipocas da Bahia"},null,null,null,null,null,{"$f":"'Dados Gerais da Empresa'!C14","v":"00:00:00"}]
[]
[null,"DESPESAS COMERCIAIS"]
[]
[null,"ITENS","% DO","PROJETADO"]
[null,null,"FATURAMENTO","ANO 1","ANO 2","ANO 3","ANO 4"]
[null,"Comissões sobre Vendas",{"$f":"'Quadro 10'!D5","v":0},{"$f":"$C16*Proj.Faturamento!$G$42","v":0},{"$f":"$C16*Proj.Faturamento!I42","v":0},{"$f":"$C16*Proj.Faturamento!K42","v":0},{"$f":"$C16*Proj.Faturamento!M42","v":0}]
[null,"Propaganda e MKT",{"$f":"'Quadro 10'!D6","v":0},{"$f":"$C17*Proj.Faturamento!$G$42","v":0},{"$f":"$C17*Proj.Faturamento!I42","v":0},{"$f":"$C17*Proj.Faturamento!K42","v":0},{"$f":"$C17*Proj.Faturamento!M42","v":0}]
[null,"Frete",null,{"$f":"$C18*Proj.Faturamento!$G$42","v":0},{"$f":"$C18*Proj.Faturamento!I42","v":0},{"$f":"$C18*Proj.Faturamento!K42","v":0},{"$f":"$C18*Proj.Faturamento!M42","v":0}]
[null,"Provisão para Devedores Duvidosos",{"$f":"'Quadro 10'!D7","v":0},{"$f":"$C$19*Proj.Faturamento!G42*'Dados Gerais da Empresa'!$H$51","v":0},{"$f":"$C$19*'Dados Gerais da Empresa'!$H$51*Proj.Faturamento!I42","v":0},{"$f":"$C$19*'Dados Gerais da Empresa'!$H$51*Proj.Faturamento!K42","v":0},{"$f":"$C$19*'Dados Gerais da Empresa'!$H$51*Proj.Faturamento!M42","v":0}]
[null,"Outras Despesas Comerciais",{"$f":"'Quadro 10'!D8","v":0},{"$f":"$C20*Proj.Faturamento!G42","v":0},{"$f":"$C20*Proj.Faturamento!I42","v":0},{"$f":"$C20*Proj.Faturamento!K42","v":0},{"$f":"$C20*Proj.Faturamento!M42","v":0}]
[null,"TOTAL",null,{"$f":"SUM(D16:D20)","v":0},{"$f":"SUM(E16:E20)","v":0},{"$f":"SUM(F16:F20)","v":0},{"$f":"SUM(G16:G20)","v":0}]
[]
[]
[]
[null,"DESPESAS ADMINISTRATIVAS"]
[]
[null,"ITENS","PROJETADO"]
[null,null,"ANO 1","ANO 2","ANO 3","ANO 4"]
[null,"Aluguel Administrativo",{"$f":"'Quadro 9'!E9","v":0},{"$f":"C29","v":0},0,0]
[null,"Energia Elétrica",{"$f":"'Quadro 9'!E6","v":0},0,0,0]
[null,"Telefone",{"$f":"'Quadro 9'!E12","v":0},0,0,0]
[null,"Água",{"$f":"'Quadro 9'!E5","v":0},0,0,0]
[null,"Combustíveis e Lubrificantes",{"$f":"'Quadro 9'!E7","v":0},0,0,0]
[null,"Manutenção Administrativa",{"$f":"'Quadro 9'!E10","v":0},0,0,0]
[null,"Seguro Administrativo",{"$f":"'Quadro 9'!E8","v":0},0,0,0]
[null,"Impostos e Taxas",{"$f":"'Quadro 9'!E11","v":0},0,0,0]
[null,"Outras Despesas Administrativas",{"$f":"'Quadro 9'!E13","v":0},0,0,0]
[null,"TOTAL",{"$f":"SUM(C29:C37)","v":0},{"$f":"SUM(D29:D37)","v":0},{"$f":"SUM(E29:E37)","v":0},{"$f":"SUM(F29:F37)","v":0}]

{"sheet":"Mão-de-Obra","index":33,"n_rows":72,"n_cols":18,"rows_kept":72,"cut":false,"hidden":true,"merged":[[35,1,37,1],[35,2,35,5],[35,6,35,9],[35,10,35,13],[12,14,13,14],[35,14,35,17],[36,2,37,2],[36,6,37,6],[36,10,37,10],[36,14,37,14],[11,2,11,5],[9,1,9,17],[11,14,11,17],[11,1,13,1],[11,6,11,9],[11,10,11,13],[12,2,13,2],[12,6,13,6],[12,10,13,10]]}
[]
[]
[]
[]
[null,{"$f":"'Dados Gerais da Empresa'!B6","v":"ProjFacil - Sistema Integrado de Elaboração e Análise de Projetos"}]
[null,{"$f":"'Dados Gerais da Empresa'!B7","v":"Copyright:  José Nilo Meira"}]
[]
[]
[]
[null,{"$f":"'Dados Gerais da Empresa'!C13","v":"Fábrica de Pipocas da Bahia"}]
[]
[null,"DISCRIMINAÇÃO","ANO 1",null,null,null,"ANO 2",null,null,null,"ANO 3",null,null,null,"ANO 4"]
[null,null,"QDE.","SALÁRIO","CUSTO","CUSTO","QDE.","SALÁRIO","CUSTO","CUSTO","QDE.","SALÁRIO","CUSTO","CUSTO","QDE.","SALÁRIO","CUSTO","CUSTO"]
[null,null,null,"MENSAL","MENSAL","ANUAL",null,"MENSAL","MENSAL","ANUAL",null,"MENSAL","MENSAL","ANUAL",null,"MENSAL","MENSAL","ANUAL"]
[null,{"$f":"IF('Dados Gerais da Empresa'!C25>1,\"MÃO-DE-OBRA\",\"MÃO-DE-OBRA INDUSTRIAL\")","v":"MÃO-DE-OBRA INDUSTRIAL"},null,null,null,{"$f":"F33+F34","v":0},null,null,null,{"$f":"SUM(J33:J34)","v":0},null,null,null,{"$f":"SUM(N33:N34)","v":0},null,null,null,{"$f":"SUM(R33:R34)","v":0}]
[null,"Nome do Cargo/Função"]
[null,null,null,null,{"$f":"C17*D17","v":0},{"$f":"E17*12","v":0},null,null,{"$f":"G17*H17","v":0},{"$f":"I17*12","v":0},null,null,{"$f":"K17*L17","v":0},{"$f":"M17*12","v":0},null,null,{"$f":"O17*P17","v":0},{"$f":"Q17*12","v":0}]
[null,null,null,null,{"$f":"C18*D18","v":0},{"$f":"E18*12","v":0},null,null,{"$f":"G18*H18","v":0},{"$f":"I18*12","v":0},null,null,{"$f":"K18*L18","v":0},{"$f":"M18*12","v":0},null,null,{"$f":"O18*P18","v":0},{"$f":"Q18*12","v":0}]
[null,null,null,null,0,0,null,null,0,0,null,null,0,0,null,null,0,0]
[null,null,null,null,0,0,null,null,0,0,null,null,0,0,null,null,0,0]
[null,null,null,null,0,0,null,null,0,0,null,null,0,0,null,null,0,0]
[null,null,null,null,{"$f":"C22*D22","v":0},{"$f":"E22*12","v":0},null,null,0,0,null,null,0,0,null,null,0,0]
[null,null,null,null,{"$f":"C23*D23","v":0},{"$f":"E23*12","v":0},null,null,0,0,null,null,0,0,null,null,0,0]
[null,null,null,null,{"$f":"C24*D24","v":0},{"$f":"E24*12","v":0},null,null,0,0,null,null,0,0,null,null,0,0]
[null,null,null,null,{"$f":"C25*D25","v":0},{"$f":"E25*12","v":0},null,null,0,0,null,null,0,0,null,null,0,0]
[null,null,null,null,{"$f":"C26*D26","v":0},{"$f":"E26*12","v":0},null,null,0,0,null,null,0,0,null,null,0,0]
[null,null,null,null,0,0,null,null,0,0,null,null,0,0,null,null,0,0]
[null,null,null,null,0,0,null,null,0,0,null,null,0,0,null,null,0,0]
[null,null,null,null,0,0,null,null,0,0,null,null,0,0,null,null,0,0]
[null,null,null,null,0,0,null,null,0,0,null,null,0,0,null,null,0,0]
[null,null,null,null,0,0,null,null,0,0,null,null,0,0,null,null,0,0]
[null,null,null,null,0,0,null,null,0,0,null,null,0,0,null,null,0,0]
[null,"TOTAL",{"$f":"SUM(C17:C32)","v":0},null,{"$f":"SUM(E17:E32)","v":0},{"$f":"SUM(F17:F32)","v":0},{"$f":"SUM(G17:G32)","v":0},null,{"$f":"SUM(I17:I32)","v":0},{"$f":"SUM(J17:J32)","v":0},{"$f":"SUM(K17:K32)","v":0},null,{"$f":"SUM(M17:M32)","v":0},{"$f":"SUM(N17:N32)","v":0},{"$f":"SUM(O17:O32)","v":0},null,{"$f":"SUM(Q17:Q32)","v":0},{"$f":"SUM(R17:R32)","v":0}]
[null,"ENCARGOS",null,null,{"$f":"E33*$C$71","v":0},{"$f":"F33*$C$71","v":0},null,null,{"$f":"I33*$C$71","v":0},{"$f":"J33*$C$71","v":0},null,null,{"$f":"M33*$C$71","v":0},{"$f":"N33*$C$71","v":0},null,null,{"$f":"Q33*$C$71","v":0},{"$f":"R33*$C$71","v":0}]
[]
[null,"DISCRIMINAÇÃO","ANO 1",null,null,null,"ANO 2",null,null,null,"ANO 3",null,null,null,"ANO 4"]
[null,null,"QDE.","SALÁRIO","CUSTO","CUSTO","QDE.","SALÁRIO","CUSTO","CUSTO","QDE.","SALÁRIO","CUSTO","CUSTO","QDE.","SALÁRIO","CUSTO","CUSTO"]
[null,null,null,"MENSAL","MENSAL","ANUAL",null,"MENSAL","MENSAL","ANUAL",null,"MENSAL","MENSAL","ANUAL",null,"MENSAL","MENSAL","ANUAL"]
[null,"MÃO-DE-OBRA ADMINISTRATIVA",null,null,null,{"$f":"F57+F58","v":0},null,null,null,{"$f":"J57+J58","v":0},null,null,null,{"$f":"N57+N58","v":0},null,null,null,{"$f":"R57+R58","v":0}]
[null,"Nome do Cargo/Função"]
[null,null,{"$f":"'Quadro 11'!E8","v":0},{"$f":"'Quadro 11'!D8","v":0},{"$f":"C41*D41","v":0},{"$f":"E41*12","v":0},{"$f":"'Quadro 11'!F8","v":0},{"$f":"D41","v":0},{"$f":"G41*H41","v":0},{"$f":"I41*12","v":0},{"$f":"'Quadro 11'!G8","v":0},{"$f":"D41","v":0},{"$f":"K41*L41","v":0},{"$f":"M41*12","v":0},{"$f":"'Quadro 11'!H8","v":0},{"$f":"D41","v":0},{"$f":"O41*P41","v":0},{"$f":"Q41*12","v":0}]
[null,null,{"$f":"'Quadro 11'!E9","v":0},{"$f":"'Quadro 11'!D9","v":0},{"$f":"C42*D42","v":0},{"$f":"E42*12","v":0},{"$f":"'Quadro 11'!F9","v":0},{"$f":"D42","v":0},{"$f":"G42*H42","v":0},{"$f":"I42*12","v":0},{"$f":"'Quadro 11'!G9","v":0},{"$f":"D42","v":0},{"$f":"K42*L42","v":0},{"$f":"M42*12","v":0},{"$f":"'Quadro 11'!H9","v":0},{"$f":"D42","v":0},{"$f":"O42*P42","v":0},{"$f":"Q42*12","v":0}]
[null,null,{"$f":"'Quadro 11'!E10","v":0},{"$f":"'Quadro 11'!D10","v":0},0,0,{"$f":"'Quadro 11'!F10","v":0},0,0,0,{"$f":"'Quadro 11'!G10","v":0},0,0,0,{"$f":"'Quadro 11'!H10","v":0},0,0,0]
[null,null,{"$f":"'Quadro 11'!E11","v":0},{"$f":"'Quadro 11'!D11","v":0},0,0,{"$f":"'Quadro 11'!F11","v":0},0,0,0,{"$f":"'Quadro 11'!G11","v":0},0,0,0,{"$f":"'Quadro 11'!H11","v":0},0,0,0]
[null,null,{"$f":"'Quadro 11'!E12","v":0},{"$f":"'Quadro 11'!D12","v":0},0,0,{"$f":"'Quadro 11'!F12","v":0},0,0,0,{"$f":"'Quadro 11'!G12","v":0},0,0,0,{"$f":"'Quadro 11'!H12","v":0},0,0,0]
[null,null,{"$f":"'Quadro 11'!E13","v":0},{"$f":"'Quadro 11'!D13","v":0},0,0,{"$f":"'Quadro 11'!F13","v":0},0,0,0,{"$f":"'Quadro 11'!G13","v":0},0,0,0,{"$f":"'Quadro 11'!H13","v":0},0,0,0]
[null,null,{"$f":"'Quadro 11'!E14","v":0},{"$f":"'Quadro 11'!D14","v":0},0,0,{"$f":"'Quadro 11'!F14","v":0},0,0,0,{"$f":"'Quadro 11'!G14","v":0},0,0,0,{"$f":"'Quadro 11'!H14","v":0},0,0,0]
[null,null,{"$f":"'Quadro 11'!E15","v":0},{"$f":"'Quadro 11'!D15","v":0},0,0,{"$f":"'Quadro 11'!F15","v":0},0,0,0,{"$f":"'Quadro 11'!G15","v":0},0,0,0,{"$f":"'Quadro 11'!H15","v":0},0,0,0]
[null,null,{"$f":"'Quadro 11'!E16","v":0},{"$f":"'Quadro 11'!D16","v":0},0,0,{"$f":"'Quadro 11'!F16","v":0},0,0,0,{"$f":"'Quadro 11'!G16","v":0},0,0,0,{"$f":"'Quadro 11'!H16","v":0},0,0,0]
[null,null,{"$f":"'Quadro 11'!E17","v":0},{"$f":"'Quadro 11'!D17","v":0},0,0,{"$f":"'Quadro 11'!F17","v":0},0,0,0,{"$f":"'Quadro 11'!G17","v":0},0,0,0,{"$f":"'Quadro 11'!H17","v":0},0,0,0]
[null,null,null,null,0,0,null,null,0,0,null,null,0,0,null,null,0,0]
[null,null,null,null,0,0,null,null,0,0,null,null,0,0,null,null,0,0]
[null,null,null,null,0,0,null,null,0,0,null,null,0,0,null,null,0,0]
[null,null,null,null,0,0,null,null,0,0,null,null,0,0,null,null,0,0]
[null,null,null,null,0,0,null,null,0,0,null,null,0,0,null,null,0,0]
[null,null,null,null,0,0,null,null,0,0,null,null,0,0,null,null,0,0]
[null,"TOTAL",{"$f":"SUM(C41:C56)","v":0},null,{"$f":"SUM(E41:E56)","v":0},{"$f":"SUM(F41:F56)","v":0},{"$f":"SUM(G41:G56)","v":0},null,{"$f":"SUM(I41:I56)","v":0},{"$f":"SUM(J41:J56)","v":0},{"$f":"SUM(K41:K56)","v":0},null,{"$f":"SUM(M41:M56)","v":0},{"$f":"SUM(N41:N56)","v":0},{"$f":"SUM(O41:O56)","v":0},null,{"$f":"SUM(Q41:Q56)","v":0},{"$f":"SUM(R41:R56)","v":0}]
[null,"ENCARGOS",null,null,{"$f":"E57*$C$71","v":0},{"$f":"F57*$C$71","v":0},null,null,{"$f":"I57*$C$71","v":0},{"$f":"J57*$C$71","v":0},null,null,{"$f":"M57*$C$71","v":0},{"$f":"N57*$C$71","v":0},null,null,{"$f":"Q57*$C$71","v":0},{"$f":"R57*$C$71","v":0}]
[]
[null,"HONORÁRIOS DA DIRETORIA",null,null,null,{"$f":"F66+F67","v":0},null,null,null,{"$f":"J66+J67","v":0},null,null,null,{"$f":"N66+N67","v":0},null,null,null,{"$f":"R66+R67","v":0}]
[null,"Nome do Cargo"]
[null,null,null,null,{"$f":"C62*D62","v":0},{"$f":"E62*12","v":0},null,null,{"$f":"G62*H62","v":0},{"$f":"I62*12","v":0},null,null,{"$f":"K62*L62","v":0},{"$f":"M62*12","v":0},null,null,{"$f":"O62*P62","v":0},{"$f":"Q62*12","v":0}]
[null,null,null,null,{"$f":"C63*D63","v":0},{"$f":"E63*12","v":0},null,null,{"$f":"G63*H63","v":0},{"$f":"I63*12","v":0},null,null,{"$f":"K63*L63","v":0},{"$f":"M63*12","v":0},null,null,{"$f":"O63*P63","v":0},{"$f":"Q63*12","v":0}]
[null,null,null,null,{"$f":"C64*D64","v":0},{"$f":"E64*12","v":0},null,null,{"$f":"G64*H64","v":0},{"$f":"I64*12","v":0},null,null,{"$f":"K64*L64","v":0},{"$f":"M64*12","v":0},null,null,{"$f":"O64*P64","v":0},{"$f":"Q64*12","v":0}]
[null,null,null,null,{"$f":"C65*D65","v":0},{"$f":"E65*12","v":0},null,null,{"$f":"G65*H65","v":0},{"$f":"I65*12","v":0},null,null,{"$f":"K65*L65","v":0},{"$f":"M65*12","v":0},null,null,{"$f":"O65*P65","v":0},{"$f":"Q65*12","v":0}]
[null,"TOTAL",{"$f":"SUM(C62:C65)","v":0},null,{"$f":"SUM(E62:E65)","v":0},{"$f":"SUM(F62:F65)","v":0},{"$f":"SUM(G62:G65)","v":0},null,{"$f":"SUM(I62:I65)","v":0},{"$f":"SUM(J62:J65)","v":0},{"$f":"SUM(K62:K65)","v":0},null,{"$f":"SUM(M62:M65)","v":0},{"$f":"SUM(N62:N65)","v":0},{"$f":"SUM(O62:O65)","v":0},null,{"$f":"SUM(Q62:Q65)","v":0},{"$f":"SUM(R62:R65)","v":0}]
[null,"ENCARGOS",null,null,{"$f":"E66*$C$72","v":0},{"$f":"F66*$C$72","v":0},null,null,{"$f":"I66*$C$72","v":0},{"$f":"J66*$C$72","v":0},null,null,{"$f":"M66*$C$72","v":0},{"$f":"N66*$C$72","v":0},null,null,{"$f":"Q66*$C$72","v":0},{"$f":"R66*$C$72","v":0}]
[]
[null,"TOTAL GERAL",null,null,null,{"$f":"F15+F39+F60","v":0},null,null,null,{"$f":"J15+J39+J60","v":0},null,null,null,{"$f":"N15+N39+N60","v":0},null,null,null,{"$f":"R15+R39+R60","v":0}]
[]
[null,"% DE ENCARGOS SOBRE SALÁRIOS",0.8]
[null,"% DE ENCARGOS SOBRE HONORÁRIOS",0.3]

{"sheet":"Depreciação","index":34,"n_rows":39,"n_cols":17,"rows_kept":39,"cut":false,"hidden":true,"merged":[[7,1,7,15],[33,1,34,1],[33,5,34,5],[9,1,10,1],[21,1,22,1],[21,5,22,5],[9,5,10,5]]}
[]
[]
[]
[null,{"$f":"'Dados Gerais da Empresa'!B6","v":"ProjFacil - Sistema Integrado de Elaboração e Análise de Projetos"}]
[null,{"$f":"'Dados Gerais da Empresa'!B7","v":"Copyright:  José Nilo Meira"}]
[]
[]
[null,{"$f":"'Dados Gerais da Empresa'!C13","v":"Fábrica de Pipocas da Bahia"},null,null,null,null,null,null,null,null,null,null,null,null,null,null,{"$f":"'Dados Gerais da Empresa'!C14","v":"00:00:00"}]
[]
[null,{"$f":"IF('Dados Gerais da Empresa'!C25>1,\"ATIVOS ÁREA NÃO ADM\",\"ATIVOS DA ÁREA IND\")","v":"ATIVOS DA ÁREA IND"},"% DE","INVESTIMENTOS","INVESTIMENTOS","TOTAL","ANO 1","ANO 2","ANO 3","ANO 4","ANO 5","ANO 6","ANO 7","ANO 8","ANO 9","ANO 10","VALOR "]
[null,null,"DEPRECIAÇÃO","EXISTENTES","PROJETADOS",null,"CUSTO ANUAL","CUSTO ANUAL","CUSTO ANUAL","CUSTO ANUAL","CUSTO ANUAL","CUSTO ANUAL","CUSTO ANUAL","CUSTO ANUAL","CUSTO ANUAL","CUSTO ANUAL","RESIDUAL"]
[null,"Construções Civis",2.5000000000000001E-2,{"$f":"'Dados Gerais da Empresa'!C94+'Dados Gerais da Empresa'!C95","v":0},null,{"$f":"D12+E12","v":0},{"$f":"$F12*$C12","v":0},0,0,0,0,0,0,0,0,0,{"$f":"F12-SUM(G12:P12)","v":0}]
[null,"Instalações",0.1,{"$f":"'Dados Gerais da Empresa'!C100+'Dados Gerais da Empresa'!C101","v":0},null,{"$f":"D13+E13","v":0},0,0,0,0,0,0,0,0,0,0,{"$f":"F13-SUM(G13:P13)","v":0}]
[null,"Máquinas e Equipamentos",0.1,{"$f":"'Dados Gerais da Empresa'!C96+'Dados Gerais da Empresa'!C97","v":0},null,0,0,0,0,0,0,0,0,0,0,0,{"$f":"F14-SUM(G14:P14)","v":0}]
[null,"Equipamentos de Informática",0.5,null,null,0,0,0]
[null,"Softwares",0.5,null,null,0,0,0]
[null,"Móveis e Utensilios",0.1,null,null,0,0,0,0,0,0,0,0,0,0,0,{"$f":"F17-SUM(G17:P17)","v":0}]
[null,"Veículos",0.2,null,null,0,0,0,0,0,0]
[null,"TOTAL",null,{"$f":"SUM(D12:D18)","v":0},{"$f":"SUM(E12:E18)","v":0},{"$f":"SUM(F12:F18)","v":0},{"$f":"SUM(G12:G18)","v":0},0,0,0,0,0,0,0,0,0,0]
[]
[]
[null,"ATIVOS ÁREA ADM","% DE","INVESTIMENTOS","INVESTIMENTOS","TOTAL","ANO 1","ANO 2","ANO 3","ANO 4","ANO 5","ANO 6","ANO 7","ANO 8","ANO 9","ANO 10","VALOR "]
[null,null,"DEPRECIAÇÃO","EXISTENTES","PROJETADOS",null,"CUSTO ANUAL","CUSTO ANUAL","CUSTO ANUAL","CUSTO ANUAL","CUSTO ANUAL","CUSTO ANUAL","CUSTO ANUAL","CUSTO ANUAL","CUSTO ANUAL","CUSTO ANUAL","RESIDUAL"]
[null,"Construções Civis",0.04,null,{"$f":"'Quadro 1'!D8","v":0},{"$f":"D24+E24","v":0},{"$f":"$F24*$C24","v":0},0,0,0,0,0,0,0,0,0,{"$f":"F24-SUM(G24:P24)","v":0}]
[null,"Instalações",0.1,null,{"$f":"'Quadro 1'!D9","v":0},0,0,0,0,0,0,0,0,0,0,0,{"$f":"F25-SUM(G25:P25)","v":0}]
[null,"Máquinas e Equipamentos",0.1,null,{"$f":"'Quadro 1'!D10","v":0},0,0,0,0,0,0,0,0,0,0,0,{"$f":"F26-SUM(G26:P26)","v":0}]
[null,"Equipamentos de Informática",0.5,{"$f":"'Dados Gerais da Empresa'!C104+'Dados Gerais da Empresa'!C105","v":0},{"$f":"'Quadro 1'!D11","v":0},0,{"$f":"$F27*$C27","v":0},0]
[null,"Softwares",0.5,null,null,0,0,0]
[null,"Móveis e Utensilios",0.1,{"$f":"'Dados Gerais da Empresa'!C102+'Dados Gerais da Empresa'!C103","v":0},{"$f":"'Quadro 1'!D13","v":0},0,0,0,{"$f":"$F29*$C29","v":0},0,0,0,0,0,0,0,{"$f":"F29-SUM(G29:P29)","v":0}]
[null,"Veículos",0.2,{"$f":"'Dados Gerais da Empresa'!C98+'Dados Gerais da Empresa'!C99","v":0},{"$f":"'Quadro 1'!D12","v":0},0,{"$f":"$F$30*$C30","v":0},{"$f":"$F$30*$C30","v":0},{"$f":"$F$30*$C30","v":0},{"$f":"$F$30*$C30","v":0},{"$f":"$F$30*$C30","v":0}]
[null,"TOTAL",null,{"$f":"SUM(D24:D30)","v":0},{"$f":"SUM(E24:E30)","v":0},{"$f":"SUM(F24:F30)","v":0},{"$f":"SUM(G24:G30)","v":0},{"$f":"SUM(H24:H30)","v":0},{"$f":"SUM(I24:I30)","v":0},0,0,0,0,0,0,0,{"$f":"SUM(Q24:Q30)","v":0}]
[]
[]
[null,"ATIVOS ÁREA ADM","% DE","INVESTIMENTOS","INVESTIMENTOS","TOTAL","ANO 1","ANO 2","ANO 3","ANO 4","ANO 5","ANO 6","ANO 7","ANO 8","ANO 9","ANO 10","VALOR "]
[null,null,"AMORTIZAÇÃO","EXISTENTES","PROJETADOS",null,"CUSTO ANUAL","CUSTO ANUAL","CUSTO ANUAL","CUSTO ANUAL","CUSTO ANUAL","CUSTO ANUAL","CUSTO ANUAL","CUSTO ANUAL","CUSTO ANUAL","CUSTO ANUAL","RESIDUAL"]
[null,"Gastos de Implantação",0.1,null,{"$f":"'Quadro 1'!D14","v":0},{"$f":"D36+E36","v":0},{"$f":"$F36*$C36","v":0},0,0,0,0,0,0,0,0,0,{"$f":"F36-SUM(G36:P36)","v":0}]
[null,"Estudos e Projetos",0.1,null,null,{"$f":"D37+E37","v":0},0,0,0,0,0,0,0,0,0,0,{"$f":"F37-SUM(G37:P37)","v":0}]
[null,"Outros",0.1,{"$f":"'Dados Gerais da Empresa'!C108+'Dados Gerais da Empresa'!C109","v":0},null,{"$f":"D38+E38","v":0},0,0,0,0,0,0,0,0,0,0,{"$f":"F38-SUM(G38:P38)","v":0}]
[null,"TOTAL",null,{"$f":"SUM(D36:D38)","v":0},{"$f":"SUM(E36:E38)","v":0},{"$f":"SUM(F36:F38)","v":0},{"$f":"SUM(G36:G38)","v":0},0,0,0,0,0,0,0,0,0,0]

{"sheet":"Capital de Giro","index":35,"n_rows":34,"n_cols":13,"rows_kept":34,"cut":false,"hidden":true,"merged":[[11,1,11,12],[9,1,9,7]]}
[]
[]
[]
[]
[null,{"$f":"'Dados Gerais da Empresa'!B6","v":"ProjFacil - Sistema Integrado de Elaboração e Análise de Projetos"}]
[null,{"$f":"'Dados Gerais da Empresa'!B7","v":"Copyright:  José Nilo Meira"}]
[]
[]
[]
[null,{"$f":"'Dados Gerais da Empresa'!C13","v":"Fábrica de Pipocas da Bahia"},null,null,null,null,null,null,null,null,null,null,{"$f":"'Dados Gerais da Empresa'!C14","v":"00:00:00"}]
[]
[null,"PROJEÇÃO DAS NECESSIDADES DE CAPITAL DE GIRO"]
[null,null,"EXISTENTE","ANO 1","ANO 2","ANO 3","ANO 4",null,"EXISTENTE","ANO 1","ANO 2","ANO 3","ANO 4"]
[null,"NECESSIDADES",null,null,null," ",null,"RECURSOS"]
[null,"CAIXA MINIMO",null,{"$f":"(Proj.Resultados!E14+Proj.Resultados!E20-Proj.Resultados!E40)/'Dados Gerais da Empresa'!$H$49*'Dados Gerais da Empresa'!$H$50","v":0},{"$f":"(Proj.Resultados!F14+Proj.Resultados!F20-Proj.Resultados!F40)/'Dados Gerais da Empresa'!$H$49*'Dados Gerais da Empresa'!$H$50","v":0},{"$f":"(Proj.Resultados!G14+Proj.Resultados!G20-Proj.Resultados!G40)/'Dados Gerais da Empresa'!$H$49*'Dados Gerais da Empresa'!$H$50","v":0},{"$f":"(Proj.Resultados!H14+Proj.Resultados!H20-Proj.Resultados!H40)/'Dados Gerais da Empresa'!$H$49*'Dados Gerais da Empresa'!$H$50","v":0},"CREDITOS DE FORNECEDORES",null,{"$f":"SUM(J16:J18)","v":0},{"$f":"SUM(K16:K18)","v":0},{"$f":"SUM(L16:L18)","v":0},{"$f":"SUM(M16:M18)","v":0}]
[null,"CREDITOS A RECEBER",null,{"$f":"(Proj.Resultados!E14+Proj.Resultados!E20-Proj.Resultados!E40)/'Dados Gerais da Empresa'!$H$49*'Dados Gerais da Empresa'!$H$51*'Dados Gerais da Empresa'!$H$52","v":0},{"$f":"(Proj.Resultados!F14+Proj.Resultados!F20-Proj.Resultados!F40)/'Dados Gerais da Empresa'!$H$49*'Dados Gerais da Empresa'!$H$51*'Dados Gerais da Empresa'!$H$52","v":0},{"$f":"(Proj.Resultados!G15+Proj.Resultados!G20-Proj.Resultados!G40)/'Dados Gerais da Empresa'!$H$49*'Dados Gerais da Empresa'!$H$51*'Dados Gerais da Empresa'!$H$52","v":0},{"$f":"(Proj.Resultados!H14+Proj.Resultados!H20-Proj.Resultados!H40)/'Dados Gerais da Empresa'!$H$49*'Dados Gerais da Empresa'!H51*'Dados Gerais da Empresa'!H52","v":0},"a) Matéria-Prima",null,{"$f":"(Proj.Resultados!E16/'Dados Gerais da Empresa'!$H$49)*'Dados Gerais da Empresa'!$H$61*'Dados Gerais da Empresa'!$H$65","v":0},{"$f":"Proj.Resultados!F16/'Dados Gerais da Empresa'!$H$49*'Dados Gerais da Empresa'!$H$61*'Dados Gerais da Empresa'!$H$65","v":0},{"$f":"Proj.Resultados!G16/'Dados Gerais da Empresa'!$H$49*'Dados Gerais da Empresa'!$H$61*'Dados Gerais da Empresa'!$H$65","v":0},{"$f":"Proj.Resultados!H16/'Dados Gerais da Empresa'!H49*'Dados Gerais da Empresa'!H61*'Dados Gerais da Empresa'!$H$65","v":0}]
[null,"ESTOQUES",null,{"$f":"SUM(D18:D23)","v":{"$error":"#DIV/0!"}},{"$f":"SUM(E18:E23)","v":{"$error":"#DIV/0!"}},{"$f":"SUM(F18:F23)","v":{"$error":"#DIV/0!"}},{"$f":"SUM(G18:G23)","v":{"$error":"#DIV/0!"}},"b) Material Secundário",null,{"$f":"Proj.Resultados!E17/'Dados Gerais da Empresa'!$H$49*'Dados Gerais da Empresa'!$H$62*'Dados Gerais da Empresa'!$H$66","v":0},{"$f":"Proj.Resultados!F17/'Dados Gerais da Empresa'!$H$49*'Dados Gerais da Empresa'!$H$62*'Dados Gerais da Empresa'!$H$66","v":0},{"$f":"Proj.Resultados!G17/'Dados Gerais da Empresa'!$H$49*'Dados Gerais da Empresa'!$H$62*'Dados Gerais da Empresa'!$H$66","v":0},{"$f":"Proj.Resultados!H17/'Dados Gerais da Empresa'!H49*'Dados Gerais da Empresa'!H62*'Dados Gerais da Empresa'!H66","v":0}]
[null,"a) Matéria-Prima",null,{"$f":"Proj.Resultados!E16/'Dados Gerais da Empresa'!$H$58*'Dados Gerais da Empresa'!$H$54","v":{"$error":"#DIV/0!"}},{"$f":"Proj.Resultados!F16/'Dados Gerais da Empresa'!$H$58*'Dados Gerais da Empresa'!$H$54","v":{"$error":"#DIV/0!"}},{"$f":"Proj.Resultados!G16/'Dados Gerais da Empresa'!$H$58*'Dados Gerais da Empresa'!$H$54","v":{"$error":"#DIV/0!"}},{"$f":"Proj.Resultados!H16/'Dados Gerais da Empresa'!H58*'Dados Gerais da Empresa'!H54","v":{"$error":"#DIV/0!"}},"c) Material de Embalagem",null,{"$f":"Proj.Resultados!E18/'Dados Gerais da Empresa'!$H$49*'Dados Gerais da Empresa'!$H$63*'Dados Gerais da Empresa'!$H$67","v":0},{"$f":"Proj.Resultados!F18/'Dados Gerais da Empresa'!$H$49*'Dados Gerais da Empresa'!$H$63*'Dados Gerais da Empresa'!$H$67","v":0},{"$f":"Proj.Resultados!G18/'Dados Gerais da Empresa'!$H$49*'Dados Gerais da Empresa'!$H$63*'Dados Gerais da Empresa'!$H$67","v":0},{"$f":"Proj.Resultados!H18/'Dados Gerais da Empresa'!H49*'Dados Gerais da Empresa'!H63*'Dados Gerais da Empresa'!H67","v":0}]
[null,"b) Material Secundário",null,{"$f":"Proj.Resultados!E17/'Dados Gerais da Empresa'!$H$58*'Dados Gerais da Empresa'!$H$55","v":{"$error":"#DIV/0!"}},{"$f":"Proj.Resultados!F17/'Dados Gerais da Empresa'!$H$58*'Dados Gerais da Empresa'!$H$55","v":{"$error":"#DIV/0!"}},{"$f":"Proj.Resultados!G17/'Dados Gerais da Empresa'!$H$58*'Dados Gerais da Empresa'!$H$55","v":{"$error":"#DIV/0!"}},{"$f":"Proj.Resultados!H17/'Dados Gerais da Empresa'!H58*'Dados Gerais da Empresa'!H55","v":{"$error":"#DIV/0!"}},"DUPLICATAS DESCONTADAS",null,{"$f":"(Proj.Resultados!E11*'Dados Gerais da Empresa'!$H$51*'Dados Gerais da Empresa'!$H$74*'Dados Gerais da Empresa'!$H$75)/'Dados Gerais da Empresa'!$H$49","v":0},{"$f":"(Proj.Resultados!F11*'Dados Gerais da Empresa'!$H$51*'Dados Gerais da Empresa'!$H$74*'Dados Gerais da Empresa'!$H$75)/'Dados Gerais da Empresa'!$H$49","v":0},{"$f":"(Proj.Resultados!G11*'Dados Gerais da Empresa'!$H$51*'Dados Gerais da Empresa'!$H$74*'Dados Gerais da Empresa'!$H$75)/'Dados Gerais da Empresa'!$H$49","v":0},{"$f":"(Proj.Resultados!H11*'Dados Gerais da Empresa'!H51*'Dados Gerais da Empresa'!H74*'Dados Gerais da Empresa'!H75)/'Dados Gerais da Empresa'!H49","v":0}]
[null,"c) Material de Embalagem",null,{"$f":"Proj.Resultados!E18/'Dados Gerais da Empresa'!$H$58*'Dados Gerais da Empresa'!$H$56","v":{"$error":"#DIV/0!"}},{"$f":"Proj.Resultados!F18/'Dados Gerais da Empresa'!$H$58*'Dados Gerais da Empresa'!$H$56","v":{"$error":"#DIV/0!"}},{"$f":"Proj.Resultados!G18/'Dados Gerais da Empresa'!$H$58*'Dados Gerais da Empresa'!$H$56","v":{"$error":"#DIV/0!"}},{"$f":"Proj.Resultados!H18/'Dados Gerais da Empresa'!H58*'Dados Gerais da Empresa'!H56","v":{"$error":"#DIV/0!"}},"FINANCIAMENTOS PARA GIRO",null,{"$f":"'Dados Gerais da Empresa'!$H$71","v":0},{"$f":"'Dados Gerais da Empresa'!$H$71","v":0},{"$f":"'Dados Gerais da Empresa'!$H$71","v":0},{"$f":"'Dados Gerais da Empresa'!$H$71","v":0}]
[null,"d) Produtos em Processo",null,{"$f":"(Proj.Resultados!E15)/'Dados Gerais da Empresa'!$H$58*'Dados Gerais da Empresa'!$H$57","v":{"$error":"#DIV/0!"}},{"$f":"(Proj.Resultados!F14)/'Dados Gerais da Empresa'!$H$58*'Dados Gerais da Empresa'!$H$57","v":{"$error":"#DIV/0!"}},{"$f":"(Proj.Resultados!G14)/'Dados Gerais da Empresa'!$H$58*'Dados Gerais da Empresa'!$H$57","v":{"$error":"#DIV/0!"}},{"$f":"(Proj.Resultados!H14)/'Dados Gerais da Empresa'!H58*'Dados Gerais da Empresa'!H57","v":{"$error":"#DIV/0!"}},"IMPOSTOS A RECOLHER",null,{"$f":"SUM(J22:J26)","v":0},{"$f":"SUM(K22:K26)","v":0},{"$f":"SUM(L22:L26)","v":0},{"$f":"SUM(M22:M26)","v":0}]
[null,"e) Produtos Acabados",null,{"$f":"(Proj.Resultados!E14+Proj.Resultados!E20-Proj.Resultados!E40)/'Dados Gerais da Empresa'!$H$49*'Dados Gerais da Empresa'!$H$59","v":0},{"$f":"(Proj.Resultados!F14+Proj.Resultados!F20-Proj.Resultados!F40)/'Dados Gerais da Empresa'!$H$49*'Dados Gerais da Empresa'!$H$59","v":0},{"$f":"(Proj.Resultados!G14+Proj.Resultados!G20-Proj.Resultados!G40)/'Dados Gerais da Empresa'!$H$49*'Dados Gerais da Empresa'!$H$59","v":0},{"$f":"(Proj.Resultados!H14+Proj.Resultados!H20-Proj.Resultados!H40)/'Dados Gerais da Empresa'!$H$49*'Dados Gerais da Empresa'!H59","v":0},"a) ICMS",null,{"$f":"(Proj.Faturamento!G16*'Dados Gerais da Empresa'!$C$35*'Dados Gerais da Empresa'!$H$69)/'Dados Gerais da Empresa'!$H$49","v":0},{"$f":"(Proj.Faturamento!I16*'Dados Gerais da Empresa'!$C$35*'Dados Gerais da Empresa'!$H$69)/'Dados Gerais da Empresa'!$H$49","v":0},{"$f":"(Proj.Faturamento!K16*'Dados Gerais da Empresa'!$C$35*'Dados Gerais da Empresa'!$H$69)/'Dados Gerais da Empresa'!$H$49","v":0},{"$f":"(Proj.Faturamento!$M$16*'Dados Gerais da Empresa'!$C$35*'Dados Gerais da Empresa'!$H$69)/'Dados Gerais da Empresa'!$H$49","v":0}]
[null,"f) Peças de Reposição",null,{"$f":"'Dados Gerais da Empresa'!$H$73*(Depreciação!$F$14+Depreciação!$F$26+Depreciação!$F$18+Depreciação!$F$30)","v":0},{"$f":"'Dados Gerais da Empresa'!$H$73*(Depreciação!$F$14+Depreciação!$F$26+Depreciação!$F$18+Depreciação!$F$30)","v":0},{"$f":"'Dados Gerais da Empresa'!$H$73*(Depreciação!$F$14+Depreciação!$F$26+Depreciação!$F$18+Depreciação!$F$30)","v":0},{"$f":"'Dados Gerais da Empresa'!$H$73*(Depreciação!$F$14+Depreciação!$F$26+Depreciação!$F$18+Depreciação!$F$30)","v":0},"b) IPI",null,{"$f":"(Proj.Faturamento!G16/'Dados Gerais da Empresa'!$H$49)*'Dados Gerais da Empresa'!$C$36*'Dados Gerais da Empresa'!$H$70","v":0},{"$f":"(Proj.Faturamento!I16/'Dados Gerais da Empresa'!$H$49)*'Dados Gerais da Empresa'!$C$36*'Dados Gerais da Empresa'!$H$70","v":0},{"$f":"(Proj.Faturamento!K16/'Dados Gerais da Empresa'!$H$49)*'Dados Gerais da Empresa'!$C$36*'Dados Gerais da Empresa'!$H$70","v":0},{"$f":"(Proj.Faturamento!M16/'Dados Gerais da Empresa'!$H$49)*'Dados Gerais da Empresa'!$C$36*'Dados Gerais da Empresa'!$H$70","v":0}]
[]
[]
[]
[]
[]
[null,"TOTAL",{"$f":"'Dados Gerais da Empresa'!C83","v":0},{"$f":"SUM(D15+D16+D17)","v":{"$error":"#DIV/0!"}},{"$f":"SUM(E15+E16+E17)","v":{"$error":"#DIV/0!"}},{"$f":"SUM(F15+F16+F17)","v":{"$error":"#DIV/0!"}},{"$f":"SUM(G15+G16+G17)","v":{"$error":"#DIV/0!"}},"TOTAL",{"$f":"'Dados Gerais da Empresa'!H83","v":0},{"$f":"J15+J19+J20+J21","v":0},{"$f":"K15+K19+K20+K21","v":0},{"$f":"L15+L19+L20+L21","v":0},{"$f":"M15+M19+M20+M21","v":0}]
[]
[null,"NCG",{"$f":"C29-I29","v":0},{"$f":"D29-J29","v":{"$error":"#DIV/0!"}},{"$f":"E29-K29","v":{"$error":"#DIV/0!"}},{"$f":"F29-L29","v":{"$error":"#DIV/0!"}},{"$f":"G29-M29","v":{"$error":"#DIV/0!"}}]
[]
[null,null,"EXISTENTE","ANO 1","ANO 2","ANO 3","ANO 4"]
[null,"CAP.GIRO INCREMENTAL",{"$f":"C31","v":0},{"$f":"IF(C34>=0,D31-C31,D31+C31)","v":{"$error":"#DIV/0!"}},{"$f":"E31-D31","v":{"$error":"#DIV/0!"}},{"$f":"F31-E31","v":{"$error":"#DIV/0!"}},{"$f":"G31-F31","v":{"$error":"#DIV/0!"}}]

{"sheet":"Investimentos","index":36,"n_rows":155,"n_cols":8,"rows_kept":155,"cut":false,"hidden":true,"merged":[[15,1,15,7],[19,1,19,4],[20,1,21,7],[42,1,42,7],[45,2,46,2],[45,3,46,3],[45,1,46,1],[41,1,41,4],[43,2,43,4],[11,1,12,7],[13,1,14,1],[13,2,14,2],[13,3,14,3],[13,5,14,5],[123,1,124,1],[123,2,124,2],[123,3,124,3],[123,5,124,5],[45,5,46,5],[61,1,61,7],[90,1,90,4],[59,1,59,4],[60,1,60,7],[88,1,89,1],[88,2,89,2],[88,3,89,3],[88,5,89,5]]}
[]
[]
[]
[]
[null,"ProjFacil - Sistema Integrado de Elaboração e Análise de Projetos"]
[null,"Copyright: José Nilo Meira"]
[]
[]
[]
[]
[]
[null,"PROGRAMA DE INVERSÕES - EM R$ 1,00"]
[]
[null,"INVESTIMENTOS","UND.","QDE.","VALOR","TOTAL","% DE ","VALOR"]
[null,null,null,null,"UNITÁRIO",null,"FINANC.","FINANC."]
[null,"TERRENOS"]
[null,"Utilize uma linha para cada item",null,null,null,{"$f":"D17*E17","v":0},null,{"$f":"F17*G17","v":0}]
[null,null,null,null,null,{"$f":"D18*E18","v":0},null,{"$f":"F18*G18","v":0}]
[null,null,null,null,null,{"$f":"D19*E19","v":0},null,{"$f":"F19*G19","v":0}]
[null,"SUB-TOTAL TERRENOS",null,null,null,{"$f":"SUM(F16:F19)","v":0},null,{"$f":"SUM(H16:H19)","v":0}]
[null,"CONSTRUÇÕES CIVIS"]
[]
[null,null,null,1,{"$f":"'Quadro 1'!D8","v":0},{"$f":"D23*E23","v":0},{"$f":"'Quadro 1'!E8","v":0.8},{"$f":"F23*G23","v":0}]
[null,null,null,null,null,{"$f":"D24*E24","v":0},null,{"$f":"F24*G24","v":0}]
[null,null,null,null,null,{"$f":"D25*E25","v":0},null,0]
[null,null,null,null,null,{"$f":"D26*E26","v":0},null,0]
[null,null,null,null,null,{"$f":"D27*E27","v":0},null,0]
[null,null,null,null,null,{"$f":"D28*E28","v":0},null,0]
[null,null,null,null,null,0,null,0]
[null,null,null,null,null,0,null,0]
[null,null,null,null,null,0,null,0]
[null,null,null,null,null,0,null,0]
[null,null,null,null,null,0,null,0]
[null,null,null,null,null,0,null,0]
[null,null,null,null,null,0,null,0]
[null,null,null,null,null,0,null,0]
[null,null,null,null,null,0,null,0]
[null,null,null,null,null,0,null,0]
[null,null,null,null,null,0,null,0]
[null,null,null,null,null,0,null,0]
[null,null,null,null,null,0,null,0]
[null,"SUB-TOTAL CONSTRUÇÕES CIVIS",null,null,null,{"$f":"SUM(F23:F41)","v":0},null,{"$f":"SUM(H23:H41)","v":0}]
[]
[null,"SUB-TOTAL GERAL",null,null,null,{"$f":"F42+F20","v":0},null,{"$f":"H42+H20","v":0}]
[]
[null,"INVESTIMENTOS","UND.","QDE.","VALOR","TOTAL","% DE ","VALOR"]
[null,null,null,null,"UNITÁRIO",null,"FINANC.","FINANC."]
[null,"VALOR TRANSPORTADO",null,null,null,{"$f":"F44","v":0},null,{"$f":"H44","v":0}]
[]
[null,"INSTALAÇÕES"]
[null,null,null,1,{"$f":"'Quadro 1'!D9","v":0},{"$f":"D51*E51","v":0},{"$f":"'Quadro 1'!E9","v":0.8},{"$f":"F51*G51","v":0}]
[null,null,null,null,null,0,null,0]
[null,null,null,null,null,0,null,0]
[null,null,null,null,null,0,null,0]
[null,null,null,null,null,0,null,0]
[null,null,null,null,null,0,null,0]
[null,null,null,null,null,0,null,0]
[null,null,null,null,null,0,null,0]
[null,null,null,null,null,0,null,0]
[null,"SUB-TOTAL INSTALAÇÕES",null,null,null,{"$f":"SUM(F50:F59)","v":0},null,{"$f":"SUM(H50:H59)","v":0}]
[]
[null,"MÁQUINAS E EQUIPAMENTOS"]
[null,null,null,1,{"$f":"'Quadro 1'!D10","v":0},{"$f":"D63*E63","v":0},{"$f":"'Quadro 1'!E10","v":0.8},{"$f":"F63*G63","v":0}]
[null,null,null,null,null,0,null,0]
[null,null,null,null,null,0,null,0]
[null,null,null,null,null,0,null,0]
[null,null,null,null,null,0,null,0]
[null,null,null,null,null,0,null,0]
[null,null,null,null,null,0,null,0]
[null,null,null,null,null,0,null,0]
[null,null,null,null,null,0,null,0]
[null,null,null,null,null,0,null,0]
[null,null,null,null,null,0,null,0]
[null,null,null,null,null,0,null,0]
[null,null,null,null,null,0,null,0]
[null,null,null,null,null,0,null,0]
[null,null,null,null,null,0,null,0]
[null,null,null,null,null,0,null,0]
[null,null,null,null,null,0,null,0]
[null,null,null,null,null,0,null,0]
[null,null,null,null,null,0,null,0]
[null,null,null,null,null,0,null,0]
[null,null,null,null,null,0,null,0]
[null,null,null,null,null,0,null,0]
[null,null,null,null,null,0,null,0]
[null,"SUB-TOTAL MÁQUINAS E EQUIPAMENTOS",null,null,null,{"$f":"SUM(F62:F85)","v":0},null,{"$f":"SUM(H62:H85)","v":0}]
[null,"SUB-TOTAL GERAL",null,null,null,{"$f":"F86+F60+F48","v":0},null,{"$f":"H86+H60+H48","v":0}]
[]
[null,"INVESTIMENTOS","UND.","QDE.","VALOR","TOTAL","% DE ","VALOR"]
[null,null,null,null,"UNITÁRIO",null,"FINANC.","FINANC."]
[null,"VALOR TRANSPORTADO",null,null,null,{"$f":"F87","v":0},null,{"$f":"H87","v":0}]
[]
[null,"SOFTWARES E EQUIPAMENTOS DE INFORMÁTICA"]
[null,null,null,1,{"$f":"'Quadro 1'!D11","v":0},{"$f":"D94*E94","v":0},{"$f":"'Quadro 1'!E11","v":0.8},{"$f":"F94*G94","v":0}]
[null,null,null,null,null,{"$f":"D95*E95","v":0},null,0]
[null,null,null,null,null,0,null,0]
[null,null,null,null,null,0,null,0]
[null,null,null,null,null,0,null,0]
[null,null,null,null,null,0,null,0]
[null,null,null,null,null,0,null,0]
[null,null,null,null,null,0,null,0]
[null,null,null,null,null,0,null,0]
[null,"SUB-TOTAL SOFTWARES E EQUIPAMENTOS DE INFORMÁTICA",null,null,null,{"$f":"SUM(F94:F102)","v":0},null,{"$f":"SUM(H94:H102)","v":0}]
[]
[null,"VEÍCULOS"]
[null,null,null,1,{"$f":"'Quadro 1'!D12","v":0},{"$f":"D106*E106","v":0},{"$f":"'Quadro 1'!E12","v":0.8},{"$f":"F106*G106","v":0}]
[null,null,null,null,null,0,null,0]
[null,null,null,null,null,0,null,0]
[null,null,null,null,null,0,null,0]
[null,null,null,null,null,0,null,0]
[null,null,null,null,null,0,null,0]
[null,null,null,null,null,0,null,0]
[null,null,null,null,null,0,null,0]
[null,null,null,null,null,0,null,0]
[null,null,null,null,null,0,null,0]
[null,null,null,null,null,0,null,0]
[null,null,null,null,null,0,null,0]
[null,"SUB-TOTAL VEÍCULOS",null,null,null,{"$f":"SUM(F106:F117)","v":0},null,{"$f":"SUM(H106:H117)","v":0}]
[]
[null,"SUB-TOTAL GERAL",null,null,null,{"$f":"F118+F103+F91","v":0},null,{"$f":"H118+H103+H91","v":0}]
[]
[]
[]
[null,"INVESTIMENTOS","UND.","QDE.","VALOR","TOTAL","% DE ","VALOR"]
[null,null,null,null,"UNITÁRIO",null,"FINANC.","FINANC."]
[null,"VALOR TRANSPORTADO",null,null,null,{"$f":"F120","v":0},null,{"$f":"H120","v":0}]
[]
[null,"MÓVEIS E UTENSÍLIOS"]
[null,null,null,1,{"$f":"'Quadro 1'!D13","v":0},{"$f":"D129*E129","v":0},{"$f":"'Quadro 1'!E13","v":0.8},{"$f":"F129*G129","v":0}]
[null,null,null,null,null,0,null,0]
[null,null,null,null,null,0,null,0]
[null,null,null,null,null,0,null,0]
[null,null,null,null,null,0,null,0]
[null,null,null,null,null,0,null,0]
[null,null,null,null,null,0,null,0]
[null,null,null,null,null,0,null,0]
[null,null,null,null,null,0,null,0]
[null,null,null,null,null,0,null,0]
[null,null,null,null,null,0,null,0]
[null,null,null,null,null,0,null,0]
[null,null,null,null,null,0,null,0]
[null,"SUB-TOTAL",null,null,null,{"$f":"SUM(F128:F141)","v":0},null,{"$f":"SUM(H128:H141)","v":0}]
[]
[null,"GASTOS DE IMPLANTAÇÃO"]
[null,null,null,1,{"$f":"'Quadro 1'!D14","v":0},{"$f":"D145*E145","v":0},null,{"$f":"F145*G145","v":0}]
[null,null,null,null,null,0,null,0]
[null,null,null,null,null,0,null,0]
[null,null,null,null,null,0,null,0]
[null,null,null,null,null,0,null,0]
[null,null,null,null,null,0,null,0]
[null,"SUB-TOTAL",null,null,null,{"$f":"SUM(F145:F150)","v":0},null,{"$f":"SUM(H145:H150)","v":0}]
[]
[null,"CAPITAL DE GIRO DO ANO 1",null,null,null,{"$f":"IF('Capital de Giro'!D34<0,0,'Capital de Giro'!D34)","v":{"$error":"#DIV/0!"}},{"$f":"'Quadro 1'!E15","v":0.8},{"$f":"F153*G153","v":{"$error":"#DIV/0!"}}]
[]
[null,"TOTAL GERAL",null,null,null,{"$f":"F153+F151+F142+F126","v":{"$error":"#DIV/0!"}},null,{"$f":"H153+H151+H142+H126","v":{"$error":"#DIV/0!"}}]

{"sheet":"Usos e Fontes","index":37,"n_rows":37,"n_cols":8,"rows_kept":37,"cut":false,"hidden":false,"merged":[[10,1,10,5],[10,6,10,7],[11,1,13,1],[11,4,12,5],[11,2,11,3]]}
[]
[]
[]
[]
[]
[]
[]
[]
[null,"QUADRO  DE  FONTES  E  USOS"]
[]
[null,{"$f":"'Quadro 1'!C4","v":"Fábrica de Pipocas da Bahia"},null,null,null,null,{"$f":"'Dados Gerais da Empresa'!C14","v":"00:00:00"}]
[null,"DISCRIMINAÇÄO","EXISTENTE",null,"PROJETADO",null,"TOTAL"]
[null,null,{"$f":"'Dados Gerais da Empresa'!H79","v":"00:00:00"},null,null,null,"DAS INVERSÖES"]
[null,null,"VALOR","%","TOTAL","%","VALOR","%"]
[null,"TOTAL  DOS  USOS",{"$f":"C17+C26","v":0},{"$f":"IF(C$15=0,0,C15/C$15)","v":0},{"$f":"E17+E26","v":{"$error":"#DIV/0!"}},{"$f":"IF(E$15=0,0,E15/E$15)","v":{"$error":"#DIV/0!"}},{"$f":"G17+G26","v":{"$error":"#DIV/0!"}},{"$f":"IF(G$15=0,0,G15/G$15)","v":{"$error":"#DIV/0!"}}]
[]
[null,"Inversöes Fixas",{"$f":"SUM(C18:C25)","v":0},{"$f":"IF(C$15=0,0,C17/C$15)","v":0},{"$f":"SUM(E18:E25)","v":0},{"$f":"IF(E$15=0,0,E17/E$15)","v":{"$error":"#DIV/0!"}},{"$f":"SUM(G18:G25)","v":0},{"$f":"IF(G$15=0,0,G17/G$15)","v":{"$error":"#DIV/0!"}}]
[null,".Terrenos",{"$f":"'Dados Gerais da Empresa'!C93","v":0},0,{"$f":"Investimentos!F20","v":0},{"$error":"#DIV/0!"},{"$f":"C18+E18","v":0},{"$error":"#DIV/0!"}]
[null,".Construçöes Civis",{"$f":"'Dados Gerais da Empresa'!C94+'Dados Gerais da Empresa'!C95","v":0},0,{"$f":"Investimentos!F42","v":0},{"$error":"#DIV/0!"},0,{"$error":"#DIV/0!"}]
[null,".Instalaçöes",{"$f":"'Dados Gerais da Empresa'!C100+'Dados Gerais da Empresa'!C101","v":0},0,{"$f":"Investimentos!F60","v":0},{"$error":"#DIV/0!"},0,{"$error":"#DIV/0!"}]
[null,".Máquinas e Equipamentos ",{"$f":"'Dados Gerais da Empresa'!C96+'Dados Gerais da Empresa'!C97","v":0},0,{"$f":"Investimentos!F86","v":0},{"$error":"#DIV/0!"},0,{"$error":"#DIV/0!"}]
[null,".Veículos",{"$f":"'Dados Gerais da Empresa'!C98+'Dados Gerais da Empresa'!C99","v":0},0,{"$f":"Investimentos!F118","v":0},{"$error":"#DIV/0!"},0,{"$error":"#DIV/0!"}]
[null,".Móveis e utensílios",{"$f":"'Dados Gerais da Empresa'!C102+'Dados Gerais da Empresa'!C103","v":0},0,{"$f":"Investimentos!F142","v":0},{"$error":"#DIV/0!"},0,{"$error":"#DIV/0!"}]
[null,".Equip. Informática e Softwares",{"$f":"'Dados Gerais da Empresa'!C104+'Dados Gerais da Empresa'!C105","v":0},0,{"$f":"Investimentos!F103","v":0},{"$error":"#DIV/0!"},0,{"$error":"#DIV/0!"}]
[null,".Outros Ativos (AP Inv + AP Diferido)",{"$f":"'Dados Gerais da Empresa'!C89+'Dados Gerais da Empresa'!C107","v":0},0,null,{"$error":"#DIV/0!"},0,{"$error":"#DIV/0!"}]
[null,"Inversöes Financeiras",{"$f":"C27+C28","v":0},0,{"$f":"E27+E28","v":{"$error":"#DIV/0!"}},{"$error":"#DIV/0!"},{"$f":"G27+G28","v":{"$error":"#DIV/0!"}},{"$error":"#DIV/0!"}]
[null,".Capital de giro",{"$f":"'Dados Gerais da Empresa'!C83-'Dados Gerais da Empresa'!H83","v":0},0,{"$f":"Investimentos!F153","v":{"$error":"#DIV/0!"}},{"$error":"#DIV/0!"},{"$f":"C27+E27","v":{"$error":"#DIV/0!"}},{"$error":"#DIV/0!"}]
[null,".Outras inversöes financeiras (RLP)",{"$f":"'Dados Gerais da Empresa'!C87","v":0},0,{"$f":"Investimentos!F151","v":0},{"$error":"#DIV/0!"},{"$f":"C28+E28","v":0},{"$error":"#DIV/0!"}]
[]
[null,"TOTAL  DAS  FONTES",{"$f":"C32+C35","v":0},{"$f":"IF(C$15=0,0,C30/C$15)","v":0},{"$f":"E32+E35","v":{"$error":"#DIV/0!"}},{"$f":"IF(E$15=0,0,E30/E$15)","v":{"$error":"#DIV/0!"}},{"$f":"C30+E30","v":{"$error":"#DIV/0!"}},{"$f":"IF(G$15=0,0,G30/G$15)","v":{"$error":"#DIV/0!"}}]
[]
[null,"Recursos Próprios",{"$f":"SUM(C33:C33)","v":0},{"$f":"IF(C$15=0,0,C32/C$15)","v":0},{"$f":"SUM(E33:E33)","v":{"$error":"#DIV/0!"}},{"$f":"IF(E$15=0,0,E32/E$15)","v":{"$error":"#DIV/0!"}},{"$f":"SUM(G33:G33)","v":{"$error":"#DIV/0!"}},{"$f":"IF(G$15=0,0,G32/G$15)","v":{"$error":"#DIV/0!"}}]
[null," .Grupo Empreendedor",{"$f":"'Dados Gerais da Empresa'!H89","v":0},{"$f":"IF(C$15=0,0,C33/C$15)","v":0},{"$f":"'Sumário Executivo'!C14","v":{"$error":"#DIV/0!"}},{"$error":"#DIV/0!"},{"$f":"C33+E33","v":{"$error":"#DIV/0!"}},{"$error":"#DIV/0!"}]
[null,null,null,null,null,{"$error":"#DIV/0!"},null,{"$error":"#DIV/0!"}]
[null,"Recursos de Terceiros",{"$f":"SUM(C36:C37)","v":0},{"$f":"IF(C$15=0,0,C35/C$15)","v":0},{"$f":"E36","v":{"$error":"#DIV/0!"}},{"$error":"#DIV/0!"},{"$f":"C35+E35","v":{"$error":"#DIV/0!"}},{"$error":"#DIV/0!"}]
[null," .Financiamento Proposto",null,null,{"$f":"'Sumário Executivo'!C13","v":{"$error":"#DIV/0!"}},{"$error":"#DIV/0!"},{"$f":"E36+C36","v":{"$error":"#DIV/0!"}},{"$error":"#DIV/0!"}]
[null," .Exigível a LP",{"$f":"'Dados Gerais da Empresa'!H87","v":0},{"$f":"IF(C$15=0,0,C37/C$15)","v":0},null,{"$error":"#DIV/0!"},{"$f":"C37+E37","v":0},{"$error":"#DIV/0!"}]

{"sheet":"Simulador","index":38,"n_rows":32,"n_cols":12,"rows_kept":32,"cut":false,"hidden":false,"merged":[[16,1,16,5],[0,1,0,5],[17,8,18,12],[16,8,16,12]]}
[null,"CENÁRIO ATUAL"]
[null,"ITENS","ANO 1","ANO 2","ANO 3","ANO 4","PERCENTUAL DE SIMULAÇÃO"]
[null,{"$f":"Proj.Resultados!B11","v":"RECEITA OPERACIONAL BRUTA"},{"$f":"Proj.Resultados!E11","v":0},{"$f":"Proj.Resultados!F11","v":0},{"$f":"Proj.Resultados!G11","v":0},{"$f":"Proj.Resultados!H11","v":0},0]
[null,{"$f":"Proj.Resultados!B12","v":"(-) IMPOSTOS SOBRE O FATURAMENTO"},{"$f":"Proj.Resultados!E12","v":0},{"$f":"Proj.Resultados!F12","v":0},{"$f":"Proj.Resultados!G12","v":0},{"$f":"Proj.Resultados!H12","v":0},0]
[null,{"$f":"Proj.Resultados!B13","v":"(=) RECEITA OPERACIONAL LIQUIDA"},{"$f":"C3-C4","v":0},{"$f":"D3-D4","v":0},{"$f":"E3-E4","v":0},{"$f":"F3-F4","v":0}]
[null,{"$f":"Proj.Resultados!B14","v":"CUSTO DOS PRODUTOS VENDIDOS"},{"$f":"C7","v":0},{"$f":"D7","v":0},{"$f":"E7","v":0},{"$f":"F7","v":0}]
[null,{"$f":"Proj.Resultados!B15","v":"   ..Custo dos Insumos"},{"$f":"SUM(C8:C9)","v":0},{"$f":"SUM(D8:D9)","v":0},{"$f":"SUM(E8:E9)","v":0},{"$f":"SUM(F8:F9)","v":0}]
[null,{"$f":"Proj.Resultados!B16","v":"         ..Mercadorias ou Matéria Prima"},{"$f":"Proj.Resultados!E16","v":0},{"$f":"Proj.Resultados!F16","v":0},{"$f":"Proj.Resultados!G16","v":0},{"$f":"Proj.Resultados!H16","v":0},0]
[null,{"$f":"Proj.Resultados!B18","v":"         ..Material de Embalagem"},{"$f":"Proj.Resultados!E18","v":0},{"$f":"Proj.Resultados!F18","v":0},{"$f":"Proj.Resultados!G18","v":0},{"$f":"Proj.Resultados!H18","v":0},0]
[null,{"$f":"Proj.Resultados!B19","v":"(=) LUCRO BRUTO"},{"$f":"C5-C6","v":0},{"$f":"D5-D6","v":0},{"$f":"E5-E6","v":0},{"$f":"F5-F6","v":0}]
[null,{"$f":"Proj.Resultados!B20","v":"(-) DESPESAS OPERACIONAIS"},{"$f":"SUM(C12:C13)","v":0},{"$f":"SUM(D12:D13)","v":0},{"$f":"SUM(E12:E13)","v":0},{"$f":"SUM(F12:F13)","v":0}]
[null,{"$f":"Proj.Resultados!B21","v":"    ..Despesas Comerciais"},{"$f":"Proj.Resultados!E21","v":0},{"$f":"Proj.Resultados!F21","v":0},{"$f":"Proj.Resultados!G21","v":0},{"$f":"Proj.Resultados!H21","v":0},0]
[null,{"$f":"Proj.Resultados!B27","v":"    ..Despesas Administrativas"},{"$f":"Proj.Resultados!E27","v":0},{"$f":"Proj.Resultados!F27","v":0},{"$f":"Proj.Resultados!G27","v":0},{"$f":"Proj.Resultados!H27","v":0},0]
[null,{"$f":"Proj.Resultados!B42","v":"(=) LUCRO OPERACIONAL"},{"$f":"C10-C11","v":0},{"$f":"D10-D11","v":0},{"$f":"E10-E11","v":0},{"$f":"F10-F11","v":0}]
[null,{"$f":"Proj.Resultados!B43","v":"(-) DESPESAS FINANCEIRAS"},{"$f":"Proj.Resultados!E43","v":{"$error":"#DIV/0!"}},{"$f":"Proj.Resultados!F43","v":{"$error":"#DIV/0!"}},{"$f":"Proj.Resultados!G43","v":{"$error":"#DIV/0!"}},{"$f":"Proj.Resultados!H43","v":{"$error":"#DIV/0!"}}]
[null,{"$f":"Proj.Resultados!B45","v":"(=) LUCRO LÍQUIDO"},{"$f":"C14-C15","v":{"$error":"#DIV/0!"}},{"$f":"D14-D15","v":{"$error":"#DIV/0!"}},{"$f":"E14-E15","v":{"$error":"#DIV/0!"}},{"$f":"F14-F15","v":{"$error":"#DIV/0!"}}]
[null,"VEJA OS IMPACTOS DAS MUDANÇAS NO CENÁRIO SIMULADO",null,null,null,null,null,null,"VEJA OS IMPACTOS DAS MUDANÇAS NOS INDICADORES"]
[null,"ITENS","ANO 1","ANO 2","ANO 3","ANO 4",null,null,{"$f":"'Sumário Executivo'!B16","v":"INDICADORES ECONÔMICO-FINANCEIROS"}]
[null,{"$f":"B3","v":"RECEITA OPERACIONAL BRUTA"},{"$f":"C3*(100%+$G$3)","v":0},{"$f":"D3*(100%+$G$3)","v":0},{"$f":"E3*(100%+$G$3)","v":0},{"$f":"F3*(100%+$G$3)","v":0}]
[null,{"$f":"B4","v":"(-) IMPOSTOS SOBRE O FATURAMENTO"},{"$f":"C4*(100%+$G$4)","v":0},{"$f":"D4*(100%+$G$4)","v":0},{"$f":"E4*(100%+$G$4)","v":0},{"$f":"F4*(100%+$G$4)","v":0},null,null,{"$f":"'Sumário Executivo'!B20","v":"TAXA INTERNA DE RETORNO"},{"$f":"'Sumário Executivo'!D20","v":{"$error":"#VALUE!"}}]
[null,"(=) RECEITA OPERACIONAL LIQUIDA",{"$f":"C19-C20","v":0},{"$f":"D19-D20","v":0},{"$f":"E19-E20","v":0},{"$f":"F19-F20","v":0},null,null,{"$f":"'Sumário Executivo'!B23","v":"VALOR PRESENTE LÍQUIDO"},{"$f":"'Sumário Executivo'!D23","v":{"$error":"#DIV/0!"}},null,{"$f":"'Sumário Executivo'!C23","v":{"$error":"#DIV/0!"}}]
[null,"CUSTO DOS PRODUTOS VENDIDOS",{"$f":"C23","v":0},{"$f":"D23","v":0},{"$f":"E23","v":0},{"$f":"F23","v":0},null,null,{"$f":"'Sumário Executivo'!B27","v":"PAYBACK DESCONTADO (EM ANOS)"},{"$f":"'Sumário Executivo'!D27","v":{"$error":"#DIV/0!"}}]
[null,"   ..Custo dos Insumos",{"$f":"SUM(C24:C25)","v":0},{"$f":"SUM(D24:D25)","v":0},{"$f":"SUM(E24:E25)","v":0},{"$f":"SUM(F24:F25)","v":0},null,null,{"$f":"'Sumário Executivo'!B28","v":"PONTO DE EQUILÍBRIO %"},{"$f":"'Sumário Executivo'!D28","v":{"$error":"#DIV/0!"}},null,{"$f":"'Sumário Executivo'!C28","v":{"$error":"#DIV/0!"}}]
[null,"         ..Mercadorias ou Matéria Prima",{"$f":"C8*(100%+$G$8)","v":0},{"$f":"D8*(100%+$G$8)","v":0},{"$f":"E8*(100%+$G$8)","v":0},{"$f":"F8*(100%+$G$8)","v":0},null,null,{"$f":"'Sumário Executivo'!B19","v":"RETORNO SOBRE O INVESTIMENTO (ROI)"},{"$f":"'Sumário Executivo'!D19","v":{"$error":"#DIV/0!"}}]
[null,"         ..Material de Embalagem",{"$f":"C9*(100%+G9)","v":0},{"$f":"D9*(100%+H9)","v":0},{"$f":"E9*(100%+I9)","v":0},{"$f":"F9*(100%+J9)","v":0},null,null,{"$f":"'Sumário Executivo'!B29","v":"MARGEM BRUTA"},{"$f":"'Sumário Executivo'!D29","v":{"$error":"#DIV/0!"}}]
[null,"(=) LUCRO BRUTO",{"$f":"C21-C22","v":0},{"$f":"D21-D22","v":0},{"$f":"E21-E22","v":0},{"$f":"F21-F22","v":0},null,null,{"$f":"'Sumário Executivo'!B30","v":"MARGEM OPERACIONAL"},{"$f":"'Sumário Executivo'!D30","v":{"$error":"#DIV/0!"}}]
[null,"(-) DESPESAS OPERACIONAIS",{"$f":"SUM(C28:C29)","v":0},{"$f":"SUM(D28:D29)","v":0},{"$f":"SUM(E28:E29)","v":0},{"$f":"SUM(F28:F29)","v":0},null,null,{"$f":"'Sumário Executivo'!B31","v":"MARGEM LÍQUIDA"},{"$f":"'Sumário Executivo'!D31","v":{"$error":"#DIV/0!"}}]
[null,"    ..Despesas Comerciais",{"$f":"C12*(100%+$G$12)","v":0},{"$f":"D12*(100%+$G$12)","v":0},{"$f":"E12*(100%+$G$12)","v":0},{"$f":"F12*(100%+$G$12)","v":0}]
[null,{"$f":"B13","v":"    ..Despesas Administrativas"},{"$f":"C13*(100%+$G$13)","v":0},{"$f":"D13*(100%+$G$13)","v":0},{"$f":"E13*(100%+$G$13)","v":0},{"$f":"F13*(100%+$G$13)","v":0}]
[null,"(=) LUCRO OPERACIONAL",{"$f":"C26-C27","v":0},{"$f":"D26-D27","v":0},{"$f":"E26-E27","v":0},{"$f":"F26-F27","v":0}]
[null,"(-) DESPESAS FINANCEIRAS",{"$f":"C15","v":{"$error":"#DIV/0!"}},{"$f":"D15","v":{"$error":"#DIV/0!"}},{"$f":"E15","v":{"$error":"#DIV/0!"}},{"$f":"F15","v":{"$error":"#DIV/0!"}}]
[null,"(=) LUCRO LÍQUIDO",{"$f":"C30-C31","v":{"$error":"#DIV/0!"}},{"$f":"D30-D31","v":{"$error":"#DIV/0!"}},{"$f":"E30-E31","v":{"$error":"#DIV/0!"}},{"$f":"F30-F31","v":{"$error":"#DIV/0!"}}]

{"sheet":"Proj.Resultados","index":39,"n_rows":53,"n_cols":25,"rows_kept":53,"cut":false,"hidden":false,"merged":[[8,13,8,14],[8,1,9,1],[5,1,5,15]]}
[]
[]
[null,null,null,null,null,null,null,null,null,null,null,null,null,null,null,{"$f":"'Dados Gerais da Empresa'!C14","v":"00:00:00"},null,null,null,null,null,"PONTO DE EQUILÍBRIO",{"$f":"(W11+W33)/(W9-W13)","v":{"$error":"#DIV/0!"}}]
[]
[]
[null,{"$f":"'Quadro 1'!C4","v":"Fábrica de Pipocas da Bahia"}]
[null,null,null,null,null,null,null,null,null,null,null,null,null,null,null,null,null,null,null,null,null,null,"ANO4",null,"VARIAÇÃO DE 10%"]
[]
[null,"DISCRIMINAÇÃO","ANO 0",null,"ANO 1","ANO 2","ANO 3","ANO 4","ANO 5","ANO 6","ANO 7","ANO 8","ANO 9","ANO 10",null,"FATOR DE",null,null,null,null,null,"RECEITA TOTAL",{"$f":"H11","v":0},null,{"$f":"W9*1.1","v":0}]
[null,null,"R 1,00","%","R$ 1,00","R$ 1,00","R$ 1,00","R$ 1,00","R$ 1,00","R$ 1,00","R$ 1,00","R$ 1,00","R$ 1,00","R$ 1,00","%","SIMULAÇÃO"]
[null,"RECEITA OPERACIONAL BRUTA",{"$f":"#REF!-#REF!","v":{"$error":"#REF!"}},{"$f":"C11/$C$13","v":{"$error":"#REF!"}},{"$f":"Proj.Faturamento!G42*$P$11","v":0},{"$f":"Proj.Faturamento!I42*P11","v":0},{"$f":"Proj.Faturamento!K42*P11","v":0},{"$f":"Proj.Faturamento!M42*P11","v":0},{"$f":"$H$11*P11","v":0},{"$f":"$H$11*P11","v":0},{"$f":"$H$11*P11","v":0},{"$f":"$H$11*P11","v":0},{"$f":"$H$11*P11","v":0},{"$f":"$H$11","v":0},{"$f":"N11/$N$13","v":{"$error":"#DIV/0!"}},{"$f":"1+Q11","v":1},{"$f":"Simulador!G3","v":0},null,null,null,null,"GASTOS FIXOS OPERACIONAIS",{"$f":"I27","v":0},null,{"$f":"W11","v":0}]
[null,"(-) IMPOSTOS SOBRE O FATURAMENTO",0,{"$error":"#REF!"},{"$f":"'Quadro 6'!C8*'Quadro 6'!D7:D7*P12","v":0},{"$f":"'Quadro 6'!C9*'Quadro 6'!E7*P12","v":0},{"$f":"'Quadro 6'!C10*'Quadro 6'!F7*P12","v":0},{"$f":"'Quadro 6'!C11*'Quadro 6'!G7*P12","v":0},{"$f":"$H$12*P12","v":0},{"$f":"$H$12*P12","v":0},{"$f":"$H$12*P12","v":0},{"$f":"$H$12*P12","v":0},{"$f":"$H$12*P12","v":0},{"$f":"$H$12","v":0},{"$error":"#DIV/0!"},{"$f":"1+Q12","v":1},{"$f":"Simulador!G4","v":0}]
[null,"(=) RECEITA OPERACIONAL LIQUIDA",{"$f":"C11-C12-#REF!","v":{"$error":"#REF!"}},{"$error":"#REF!"},{"$f":"E11-E12","v":0},{"$f":"F11-F12","v":0},0,0,0,0,0,0,0,0,{"$error":"#DIV/0!"},null,null,null,null,null,null,"GASTOS VARIÁVEIS OPERACIONAIS",{"$f":"H12+H21+H14","v":0},null,{"$f":"W13*1.1","v":0}]
[null,{"$f":"IF('Dados Gerais da Empresa'!$C$25>1,\"(-)CUSTO DOS SERV.PREST./MERCADORIAS VENDIDAS\",\"CUSTO DOS PRODUTOS VENDIDOS\")","v":"CUSTO DOS PRODUTOS VENDIDOS"},{"$f":"#REF!+C15+#REF!+#REF!","v":{"$error":"#REF!"}},{"$error":"#REF!"},{"$f":"E15","v":0},{"$f":"F15","v":0},0,0,0,0,0,0,0,0,{"$error":"#DIV/0!"}]
[null,"   ..Custo dos Insumos",{"$f":"SUM(C16:C18)","v":0},{"$error":"#REF!"},{"$f":"SUM(E16:E18)","v":0},0,0,0,0,0,0,0,0,0,{"$error":"#DIV/0!"}]
[null,"         ..Mercadorias ou Matéria Prima",null,{"$error":"#REF!"},{"$f":"Insumos!J14*$P$16","v":0},{"$f":"Insumos!K14*$P$16","v":0},{"$f":"Insumos!L14*$P$16","v":0},{"$f":"Insumos!$M$14*$P$16","v":0},{"$f":"Insumos!$M$14*$P$16","v":0},{"$f":"Insumos!$M$14*$P$16","v":0},{"$f":"Insumos!$M$14*$P$16","v":0},{"$f":"Insumos!$M$14*$P$16","v":0},{"$f":"Insumos!$M$14*$P$16","v":0},{"$f":"Insumos!$M$14*$P$16","v":0},{"$error":"#DIV/0!"},{"$f":"1+Q16","v":1},{"$f":"Simulador!G8","v":0}]
[null,"         ..Material Secundário",null,{"$error":"#REF!"},{"$f":"Insumos!J55*$P$17","v":0},{"$f":"Insumos!K55*$P$17","v":0},{"$f":"Insumos!L55*$P$17","v":0},{"$f":"Insumos!$M$55*$P$17","v":0},{"$f":"Insumos!$M$55*$P$17","v":0},{"$f":"Insumos!$M$55*$P$17","v":0},{"$f":"Insumos!$M$55*$P$17","v":0},{"$f":"Insumos!$M$55*$P$17","v":0},{"$f":"Insumos!$M$55*$P$17","v":0},{"$f":"Insumos!$M$55*$P$17","v":0},{"$error":"#DIV/0!"},{"$f":"1+Q17","v":1},{"$f":"Simulador!G9","v":0}]
[null,"         ..Material de Embalagem",null,{"$error":"#REF!"},{"$f":"Insumos!J65*$P$18","v":0},{"$f":"Insumos!K65*$P$18","v":0},{"$f":"Insumos!L65*$P$18","v":0},{"$f":"Insumos!$M$65*$P$18","v":0},{"$f":"Insumos!$M$65*$P$18","v":0},{"$f":"Insumos!$M$65*$P$18","v":0},{"$f":"Insumos!$M$65*$P$18","v":0},{"$f":"Insumos!$M$65*$P$18","v":0},{"$f":"Insumos!$M$65*$P$18","v":0},{"$f":"Insumos!$M$65*$P$18","v":0},{"$error":"#DIV/0!"},{"$f":"1+Q18","v":1},{"$f":"Simulador!G9","v":0}]
[null,"(=) LUCRO BRUTO",{"$f":"C13-C14","v":{"$error":"#REF!"}},{"$error":"#REF!"},0,0,0,0,0,0,0,0,0,0,{"$error":"#DIV/0!"}]
[null,"(-) DESPESAS OPERACIONAIS",{"$f":"C21+C27","v":0},{"$error":"#REF!"},0,0,0,0,0,0,0,0,0,0,{"$error":"#DIV/0!"}]
[null,"    ..Despesas Comerciais",{"$f":"SUM(C22:C26)","v":0},{"$error":"#REF!"},{"$f":"SUM(E22:E26)*$P$21","v":0},{"$f":"SUM(F22:F26)*$P$21","v":0},0,0,0,0,0,0,0,0,{"$error":"#DIV/0!"},{"$f":"1+Q21","v":1},{"$f":"Simulador!G12","v":0}]
[null,"      ..Comissões sobre vendas",null,{"$error":"#REF!"},{"$f":"'Desp. Com. Adm.'!D16*P22","v":0},{"$f":"'Desp. Com. Adm.'!E16*P22","v":0},{"$f":"'Desp. Com. Adm.'!F16*P22","v":0},{"$f":"'Desp. Com. Adm.'!$G$16*$P$22","v":0},{"$f":"'Desp. Com. Adm.'!$G$16*$P$22","v":0},{"$f":"'Desp. Com. Adm.'!$G$16*$P$22","v":0},{"$f":"'Desp. Com. Adm.'!$G$16*$P$22","v":0},{"$f":"'Desp. Com. Adm.'!$G$16*$P$22","v":0},{"$f":"'Desp. Com. Adm.'!$G$16*$P$22","v":0},{"$f":"'Desp. Com. Adm.'!$G$16*$P$22","v":0},{"$error":"#DIV/0!"},1]
[null,"      ..Propaganda e MKT",null,{"$error":"#REF!"},{"$f":"'Desp. Com. Adm.'!D17*P23","v":0},{"$f":"'Desp. Com. Adm.'!E17*P23","v":0},{"$f":"'Desp. Com. Adm.'!F17*P23","v":0},{"$f":"'Desp. Com. Adm.'!$G$17*$P$23","v":0},{"$f":"'Desp. Com. Adm.'!$G$17*$P$23","v":0},{"$f":"'Desp. Com. Adm.'!$G$17*$P$23","v":0},{"$f":"'Desp. Com. Adm.'!$G$17*$P$23","v":0},{"$f":"'Desp. Com. Adm.'!$G$17*$P$23","v":0},{"$f":"'Desp. Com. Adm.'!$G$17*$P$23","v":0},{"$f":"'Desp. Com. Adm.'!$G$17*$P$23","v":0},{"$error":"#DIV/0!"},1]
[null,"      ..Frete",null,{"$error":"#REF!"},{"$f":"'Desp. Com. Adm.'!D18*P24","v":0},{"$f":"'Desp. Com. Adm.'!E18*P24","v":0},{"$f":"'Desp. Com. Adm.'!$F$18*P24","v":0},{"$f":"'Desp. Com. Adm.'!$G$18*$P$24","v":0},{"$f":"'Desp. Com. Adm.'!$G$18*$P$24","v":0},{"$f":"'Desp. Com. Adm.'!$G$18*$P$24","v":0},{"$f":"'Desp. Com. Adm.'!$G$18*$P$24","v":0},{"$f":"'Desp. Com. Adm.'!$G$18*$P$24","v":0},{"$f":"'Desp. Com. Adm.'!$G$18*$P$24","v":0},{"$f":"'Desp. Com. Adm.'!$G$18*$P$24","v":0},{"$error":"#DIV/0!"},1]
[null,"      ..Provisão para Devedores Duvidosos",null,{"$error":"#REF!"},{"$f":"'Desp. Com. Adm.'!D19*P25","v":0},{"$f":"'Desp. Com. Adm.'!E19*P25","v":0},{"$f":"'Desp. Com. Adm.'!F19*P25","v":0},{"$f":"'Desp. Com. Adm.'!$G$19*$P$25","v":0},{"$f":"'Desp. Com. Adm.'!$G$19*$P$25","v":0},{"$f":"'Desp. Com. Adm.'!$G$19*$P$25","v":0},{"$f":"'Desp. Com. Adm.'!$G$19*$P$25","v":0},{"$f":"'Desp. Com. Adm.'!$G$19*$P$25","v":0},{"$f":"'Desp. Com. Adm.'!$G$19*$P$25","v":0},{"$f":"'Desp. Com. Adm.'!$G$19*$P$25","v":0},{"$error":"#DIV/0!"},1]
[null,"      ..Outras Despesas Comerciais",null,{"$error":"#REF!"},{"$f":"'Desp. Com. Adm.'!D20*P26","v":0},{"$f":"'Desp. Com. Adm.'!E20*P26","v":0},{"$f":"'Desp. Com. Adm.'!F20*P26","v":0},{"$f":"'Desp. Com. Adm.'!$G$20*$P$26","v":0},{"$f":"'Desp. Com. Adm.'!$G$20*$P$26","v":0},{"$f":"'Desp. Com. Adm.'!$G$20*$P$26","v":0},{"$f":"'Desp. Com. Adm.'!$G$20*$P$26","v":0},{"$f":"'Desp. Com. Adm.'!$G$20*$P$26","v":0},{"$f":"'Desp. Com. Adm.'!$G$20*$P$26","v":0},{"$f":"'Desp. Com. Adm.'!$G$20*$P$26","v":0},{"$error":"#DIV/0!"},1]
[null,"    ..Despesas Administrativas",{"$f":"C28+SUM(C31:C41)","v":0},{"$error":"#REF!"},{"$f":"E28+SUM(E31:E41)","v":0},0,0,0,0,0,0,0,0,0,{"$error":"#DIV/0!"},1]
[null,"       ..Mão de Obra Administrativa",{"$f":"SUM(C29:C30)","v":0},{"$error":"#REF!"},{"$f":"SUM(E29:E30)","v":0},0,0,0,0,0,0,0,0,0,{"$error":"#DIV/0!"}]
[null,"          ..Salários",null,{"$error":"#REF!"},{"$f":"'Mão-de-Obra'!F57*P29","v":0},{"$f":"'Mão-de-Obra'!J57*P29","v":0},{"$f":"'Mão-de-Obra'!N57*P29","v":0},{"$f":"'Mão-de-Obra'!$R$57*$P$29","v":0},{"$f":"'Mão-de-Obra'!$R$57*$P$29","v":0},{"$f":"'Mão-de-Obra'!$R$57*$P$29","v":0},{"$f":"'Mão-de-Obra'!$R$57*$P$29","v":0},{"$f":"'Mão-de-Obra'!$R$57*$P$29","v":0},{"$f":"'Mão-de-Obra'!$R$57*$P$29","v":0},{"$f":"'Mão-de-Obra'!$R$57*$P$29","v":0},{"$error":"#DIV/0!"},1]
[null,"          ..Encargos",null,{"$error":"#REF!"},{"$f":"'Mão-de-Obra'!F58*P30","v":0},{"$f":"'Mão-de-Obra'!J58*P30","v":0},{"$f":"'Mão-de-Obra'!N58*P30","v":0},{"$f":"'Mão-de-Obra'!$R$58*$P$30","v":0},{"$f":"'Mão-de-Obra'!$R$58*$P$30","v":0},{"$f":"'Mão-de-Obra'!$R$58*$P$30","v":0},{"$f":"'Mão-de-Obra'!$R$58*$P$30","v":0},{"$f":"'Mão-de-Obra'!$R$58*$P$30","v":0},{"$f":"'Mão-de-Obra'!$R$58*$P$30","v":0},{"$f":"'Mão-de-Obra'!$R$58*$P$30","v":0},{"$error":"#DIV/0!"},1,null,null,null,null,null,"LUCRO OPERACIONAL",{"$f":"W9-W11-W13","v":0},null,{"$f":"Y9-Y11-Y13","v":0}]
[null,"       ..Aluguel Administrativo",null,{"$error":"#REF!"},{"$f":"'Desp. Com. Adm.'!C29*$P$31","v":0},{"$f":"'Desp. Com. Adm.'!D29*$P$31","v":0},{"$f":"'Desp. Com. Adm.'!E29*$P$31","v":0},{"$f":"'Desp. Com. Adm.'!$F$29*$P$31","v":0},{"$f":"'Desp. Com. Adm.'!$F$29*$P$31","v":0},{"$f":"'Desp. Com. Adm.'!$F$29*$P$31","v":0},{"$f":"'Desp. Com. Adm.'!$F$29*$P$31","v":0},{"$f":"'Desp. Com. Adm.'!$F$29*$P$31","v":0},{"$f":"'Desp. Com. Adm.'!$F$29*$P$31","v":0},{"$f":"'Desp. Com. Adm.'!$F$29*$P$31","v":0},{"$error":"#DIV/0!"},1]
[null,"       ..Energia Elétrica",null,{"$error":"#REF!"},{"$f":"'Desp. Com. Adm.'!C30*P32","v":0},{"$f":"'Desp. Com. Adm.'!D30*P32","v":0},{"$f":"'Desp. Com. Adm.'!E30*P32","v":0},{"$f":"'Desp. Com. Adm.'!$F$30*$P$32","v":0},{"$f":"'Desp. Com. Adm.'!$F$30*$P$32","v":0},{"$f":"'Desp. Com. Adm.'!$F$30*$P$32","v":0},{"$f":"'Desp. Com. Adm.'!$F$30*$P$32","v":0},{"$f":"'Desp. Com. Adm.'!$F$30*$P$32","v":0},{"$f":"'Desp. Com. Adm.'!$F$30*$P$32","v":0},{"$f":"'Desp. Com. Adm.'!$F$30*$P$32","v":0},{"$error":"#DIV/0!"},1]
[null,"       ..Telefone",null,{"$error":"#REF!"},{"$f":"'Desp. Com. Adm.'!C31*$P$33","v":0},{"$f":"'Desp. Com. Adm.'!D31*$P$33","v":0},{"$f":"'Desp. Com. Adm.'!E31*$P$33","v":0},{"$f":"'Desp. Com. Adm.'!$F$31*$P$33","v":0},{"$f":"'Desp. Com. Adm.'!$F$31*$P$33","v":0},{"$f":"'Desp. Com. Adm.'!$F$31*$P$33","v":0},{"$f":"'Desp. Com. Adm.'!$F$31*$P$33","v":0},{"$f":"'Desp. Com. Adm.'!$F$31*$P$33","v":0},{"$f":"'Desp. Com. Adm.'!$F$31*$P$33","v":0},{"$f":"'Desp. Com. Adm.'!$F$31*$P$33","v":0},{"$error":"#DIV/0!"},1,null,null,null,null,null,"DESPESAS FINANCEIRAS",{"$f":"H43","v":{"$error":"#DIV/0!"}},null,{"$f":"W33","v":{"$error":"#DIV/0!"}}]
[null,"       ..Água ",null,{"$error":"#REF!"},{"$f":"'Desp. Com. Adm.'!C32*$P$34","v":0},{"$f":"'Desp. Com. Adm.'!D32*$P$34","v":0},{"$f":"'Desp. Com. Adm.'!E32*$P$34","v":0},{"$f":"'Desp. Com. Adm.'!$F$32*$P$34","v":0},{"$f":"'Desp. Com. Adm.'!$F$32*$P$34","v":0},{"$f":"'Desp. Com. Adm.'!$F$32*$P$34","v":0},{"$f":"'Desp. Com. Adm.'!$F$32*$P$34","v":0},{"$f":"'Desp. Com. Adm.'!$F$32*$P$34","v":0},{"$f":"'Desp. Com. Adm.'!$F$32*$P$34","v":0},{"$f":"'Desp. Com. Adm.'!$F$32*$P$34","v":0},{"$error":"#DIV/0!"},1]
[null,"       ..Combustíveis e Lubrificantes",null,{"$error":"#REF!"},{"$f":"'Desp. Com. Adm.'!C33*$P$35","v":0},{"$f":"'Desp. Com. Adm.'!D33*$P$35","v":0},{"$f":"'Desp. Com. Adm.'!E33*$P$35","v":0},{"$f":"'Desp. Com. Adm.'!$F$33*$P$35","v":0},{"$f":"'Desp. Com. Adm.'!$F$33*$P$35","v":0},{"$f":"'Desp. Com. Adm.'!$F$33*$P$35","v":0},{"$f":"'Desp. Com. Adm.'!$F$33*$P$35","v":0},{"$f":"'Desp. Com. Adm.'!$F$33*$P$35","v":0},{"$f":"'Desp. Com. Adm.'!$F$33*$P$35","v":0},{"$f":"'Desp. Com. Adm.'!$F$33*$P$35","v":0},{"$error":"#DIV/0!"},1]
[null,"       ..Manutenção Administrativa",null,{"$error":"#REF!"},{"$f":"'Desp. Com. Adm.'!C34*P36","v":0},{"$f":"'Desp. Com. Adm.'!D34*P36","v":0},{"$f":"'Desp. Com. Adm.'!E34*P36","v":0},{"$f":"'Desp. Com. Adm.'!$F$34*$P$36","v":0},{"$f":"'Desp. Com. Adm.'!$F$34*$P$36","v":0},{"$f":"'Desp. Com. Adm.'!$F$34*$P$36","v":0},{"$f":"'Desp. Com. Adm.'!$F$34*$P$36","v":0},{"$f":"'Desp. Com. Adm.'!$F$34*$P$36","v":0},{"$f":"'Desp. Com. Adm.'!$F$34*$P$36","v":0},{"$f":"'Desp. Com. Adm.'!$F$34*$P$36","v":0},{"$error":"#DIV/0!"},1,null,null,null,null,null,"LUCRO LÍQUIDO",{"$f":"W30-W33","v":{"$error":"#DIV/0!"}},null,{"$f":"Y30-Y33","v":{"$error":"#DIV/0!"}}]
[null,"       ..Seguro Administrativo",null,{"$error":"#REF!"},{"$f":"'Desp. Com. Adm.'!C35*P37","v":0},{"$f":"'Desp. Com. Adm.'!D35*P37","v":0},{"$f":"'Desp. Com. Adm.'!E35*P37","v":0},{"$f":"'Desp. Com. Adm.'!$F$35*$P$37","v":0},{"$f":"'Desp. Com. Adm.'!$F$35*$P$37","v":0},{"$f":"'Desp. Com. Adm.'!$F$35*$P$37","v":0},{"$f":"'Desp. Com. Adm.'!$F$35*$P$37","v":0},{"$f":"'Desp. Com. Adm.'!$F$35*$P$37","v":0},{"$f":"'Desp. Com. Adm.'!$F$35*$P$37","v":0},{"$f":"'Desp. Com. Adm.'!$F$35*$P$37","v":0},{"$error":"#DIV/0!"},1]
[null,"       ..Impostos e Taxas",null,{"$error":"#REF!"},{"$f":"'Desp. Com. Adm.'!C36*P38","v":0},{"$f":"'Desp. Com. Adm.'!D36*P38","v":0},{"$f":"'Desp. Com. Adm.'!E36*P38","v":0},{"$f":"'Desp. Com. Adm.'!$F$36*$P$38","v":0},{"$f":"'Desp. Com. Adm.'!$F$36*$P$38","v":0},{"$f":"'Desp. Com. Adm.'!$F$36*$P$38","v":0},{"$f":"'Desp. Com. Adm.'!$F$36*$P$38","v":0},{"$f":"'Desp. Com. Adm.'!$F$36*$P$38","v":0},{"$f":"'Desp. Com. Adm.'!$F$36*$P$38","v":0},{"$f":"'Desp. Com. Adm.'!$F$36*$P$38","v":0},{"$error":"#DIV/0!"},1]
[null,"       ..Outras Despesas Administrativas",null,{"$error":"#REF!"},{"$f":"'Desp. Com. Adm.'!C37*P39","v":0},{"$f":"'Desp. Com. Adm.'!D37*P39","v":0},{"$f":"'Desp. Com. Adm.'!E37*P39","v":0},{"$f":"'Desp. Com. Adm.'!$F$37*$P$39","v":0},{"$f":"'Desp. Com. Adm.'!$F$37*$P$39","v":0},{"$f":"'Desp. Com. Adm.'!$F$37*$P$39","v":0},{"$f":"'Desp. Com. Adm.'!$F$37*$P$39","v":0},{"$f":"'Desp. Com. Adm.'!$F$37*$P$39","v":0},{"$f":"'Desp. Com. Adm.'!$F$37*$P$39","v":0},{"$f":"'Desp. Com. Adm.'!$F$37*$P$39","v":0},{"$error":"#DIV/0!"},1,null,null,null,null,null,"VARIAÇÃO DA RECEITA",{"$f":"((Y9-W9)/W9)*100","v":{"$error":"#DIV/0!"}}]
[null,"       ..Depreciação",null,{"$error":"#REF!"},{"$f":"Depreciação!G31*P40","v":0},{"$f":"Depreciação!H31*P40","v":0},{"$f":"Depreciação!I31*P40","v":0},{"$f":"Depreciação!J31*P40","v":0},{"$f":"Depreciação!K31*P40","v":0},{"$f":"Depreciação!L31*P40","v":0},{"$f":"Depreciação!M31*P40","v":0},{"$f":"Depreciação!N31*P40","v":0},{"$f":"Depreciação!O31*P40","v":0},{"$f":"Depreciação!P31*P40","v":0},{"$error":"#DIV/0!"},1,null,null,null,null,null,"VARIAÇÃO DO LUCRO OPERACIONAL",{"$f":"((Y30-W30)/W30)*100","v":{"$error":"#DIV/0!"}}]
[null,"       ..Amortização do Intangível",null,{"$error":"#REF!"},{"$f":"Depreciação!G39*P41","v":0},{"$f":"Depreciação!H39*P41","v":0},{"$f":"Depreciação!I39*P41","v":0},{"$f":"Depreciação!J39*P41","v":0},{"$f":"Depreciação!K39*P41","v":0},{"$f":"Depreciação!L39*P41","v":0},{"$f":"Depreciação!M39*P41","v":0},{"$f":"Depreciação!N39*P41","v":0},{"$f":"Depreciação!O39*P41","v":0},{"$f":"Depreciação!P39*P41","v":0},{"$error":"#DIV/0!"},1,null,null,null,null,null,"VARIAÇÃO DO LUCRO LÍQUIDO",{"$f":"((Y36-W36)/W36)*100","v":{"$error":"#DIV/0!"}}]
[null,"(=) LUCRO OPERACIONAL",{"$f":"C19-C20","v":{"$error":"#REF!"}},{"$error":"#REF!"},0,0,0,0,0,0,0,0,0,0,{"$error":"#DIV/0!"}]
[null,"(-) DESPESAS FINANCEIRAS",{"$f":"SUM(C44:C44)","v":0},{"$error":"#REF!"},{"$f":"SUM(E44:E44)","v":{"$error":"#DIV/0!"}},{"$error":"#DIV/0!"},{"$error":"#DIV/0!"},{"$error":"#DIV/0!"},{"$error":"#DIV/0!"},{"$error":"#DIV/0!"},{"$error":"#DIV/0!"},{"$error":"#DIV/0!"},{"$error":"#DIV/0!"},{"$error":"#DIV/0!"},{"$error":"#DIV/0!"},null,null,null,null,null,null,"GAO",{"$f":"W40/W39","v":{"$error":"#DIV/0!"}}]
[null,"..Juros s/ empréstimos LP (Op. em estudo)",null,{"$error":"#REF!"},{"$f":"'Despesas Financeiras'!C28","v":{"$error":"#DIV/0!"}},{"$f":"'Despesas Financeiras'!C29","v":{"$error":"#DIV/0!"}},{"$f":"'Despesas Financeiras'!C30","v":{"$error":"#DIV/0!"}},{"$f":"'Despesas Financeiras'!C31","v":{"$error":"#DIV/0!"}},{"$f":"'Despesas Financeiras'!C32","v":{"$error":"#DIV/0!"}},{"$f":"'Despesas Financeiras'!C33","v":{"$error":"#DIV/0!"}},{"$f":"'Despesas Financeiras'!C34","v":{"$error":"#DIV/0!"}},{"$f":"'Despesas Financeiras'!C35","v":{"$error":"#DIV/0!"}},{"$f":"'Despesas Financeiras'!C36","v":{"$error":"#DIV/0!"}},{"$f":"'Despesas Financeiras'!C37","v":{"$error":"#DIV/0!"}},{"$error":"#DIV/0!"},null,null,null,null,null,null,"GAC",{"$f":"W41/W39","v":{"$error":"#DIV/0!"}}]
[null,"(=) LUCRO LÍQUIDO",{"$f":"C42-C43","v":{"$error":"#REF!"}},{"$error":"#REF!"},{"$error":"#DIV/0!"},{"$error":"#DIV/0!"},{"$error":"#DIV/0!"},{"$error":"#DIV/0!"},{"$error":"#DIV/0!"},{"$error":"#DIV/0!"},{"$error":"#DIV/0!"},{"$error":"#DIV/0!"},{"$error":"#DIV/0!"},{"$error":"#DIV/0!"},{"$error":"#DIV/0!"},null,null,null,null,null,null,"GAF",{"$f":"W41/W40","v":{"$error":"#DIV/0!"}}]
[null,"(+) Depreciação e Amortização",{"$f":"#REF!+C40+C41","v":{"$error":"#REF!"}},{"$error":"#REF!"},{"$f":"Depreciação!G19+Depreciação!G31+Depreciação!G39","v":0},{"$f":"Depreciação!H19+Depreciação!H31+Depreciação!H39","v":0},{"$f":"Depreciação!I19+Depreciação!I31+Depreciação!I39","v":0},{"$f":"Depreciação!J19+Depreciação!J31+Depreciação!J39","v":0},{"$f":"Depreciação!K19+Depreciação!K31+Depreciação!K39","v":0},{"$f":"Depreciação!L19+Depreciação!L31+Depreciação!L39","v":0},{"$f":"Depreciação!M19+Depreciação!M31+Depreciação!M39","v":0},{"$f":"Depreciação!N19+Depreciação!N31+Depreciação!N39","v":0},{"$f":"Depreciação!O19+Depreciação!O31+Depreciação!O39","v":0},{"$f":"Depreciação!P19+Depreciação!P31+Depreciação!P39","v":0},{"$error":"#DIV/0!"},null,null,null,null,null,null,"GAC",{"$f":"W43*W45","v":{"$error":"#DIV/0!"}}]
[null,"(=) CAPACIDADE DE PAGAMENTO",{"$f":"#REF!+C46","v":{"$error":"#REF!"}},{"$error":"#REF!"},{"$f":"E45+E46","v":{"$error":"#DIV/0!"}},{"$f":"F45+F46","v":{"$error":"#DIV/0!"}},{"$error":"#DIV/0!"},{"$error":"#DIV/0!"},{"$error":"#DIV/0!"},{"$error":"#DIV/0!"},{"$error":"#DIV/0!"},{"$error":"#DIV/0!"},{"$error":"#DIV/0!"},{"$error":"#DIV/0!"},{"$error":"#DIV/0!"}]
[]
[null,"AMORTIZAÇÕES DE FINANCIAMENTOS:"]
[null,"..OPERAÇÃO EM ESTUDO",null,null,{"$f":"'Despesas Financeiras'!D28","v":0},{"$f":"'Despesas Financeiras'!D29","v":0},{"$f":"'Despesas Financeiras'!D30","v":{"$error":"#DIV/0!"}},{"$f":"'Despesas Financeiras'!D31","v":{"$error":"#DIV/0!"}},{"$f":"'Despesas Financeiras'!D32","v":{"$error":"#DIV/0!"}},{"$f":"'Despesas Financeiras'!D33","v":{"$error":"#DIV/0!"}},{"$f":"'Despesas Financeiras'!D34","v":{"$error":"#DIV/0!"}},{"$f":"'Despesas Financeiras'!D35","v":{"$error":"#DIV/0!"}},{"$f":"'Despesas Financeiras'!D36","v":{"$error":"#DIV/0!"}},{"$f":"'Despesas Financeiras'!D37","v":{"$error":"#DIV/0!"}}]
[null,"..OPERAÇÕES EXISTENTES",null,null,{"$f":"'Despesas Financeiras'!D218","v":0},{"$f":"'Despesas Financeiras'!D219","v":0},{"$f":"'Despesas Financeiras'!D220","v":0},{"$f":"'Despesas Financeiras'!D221","v":0},{"$f":"'Despesas Financeiras'!D222","v":0},{"$f":"'Despesas Financeiras'!D223","v":0},{"$f":"'Despesas Financeiras'!D224","v":0},{"$f":"'Despesas Financeiras'!D225","v":0},{"$f":"'Despesas Financeiras'!D226","v":0},{"$f":"'Despesas Financeiras'!D227","v":0}]
[]
[null,"COMPROMETIMENTO DA CAP. PGTO.",null,null,{"$f":"(E50+E51)/E47","v":{"$error":"#DIV/0!"}},{"$error":"#DIV/0!"},{"$error":"#DIV/0!"},{"$error":"#DIV/0!"},{"$error":"#DIV/0!"},{"$error":"#DIV/0!"},{"$error":"#DIV/0!"},{"$error":"#DIV/0!"},{"$error":"#DIV/0!"},{"$error":"#DIV/0!"}]

{"sheet":"Fluxo de Caixa","index":40,"n_rows":53,"n_cols":14,"rows_kept":53,"cut":false,"hidden":true,"merged":[]}
[]
[]
[]
[null,{"$f":"'Análise de Viabilidade'!B4","v":"ProjFacil - Sistema Integrado de Elaboração e Análise de Projetos"}]
[null,{"$f":"'Dados Gerais da Empresa'!B7","v":"Copyright:  José Nilo Meira"},null,null,null,"FLUXO DE CAIXA PRIVADO"]
[]
[]
[null,null,null,null,null,null,"          (R$ 1,00)"]
[]
[null,"Empresa:",{"$f":"'Dados Gerais da Empresa'!C13","v":"Fábrica de Pipocas da Bahia"},null,null,null,null,null,null,null,null,"Data-Base:",{"$f":"'Dados Gerais da Empresa'!C14","v":"00:00:00"},"FATORES"]
[null,null,"Fluxo ","Fluxo ","Fluxo ","Fluxo ","Fluxo ","Fluxo ","Fluxo ","Fluxo ","Fluxo ","Fluxo ","Fluxo ","PARA"]
[null,"DISCRIMINAÇÃO","Ano","Ano","Ano","Ano","Ano","Ano","Ano","Ano","Ano","Ano","Ano","SIMULAÇÃO"]
[null,null,0,1,2,3,4,5,6,7,8,9,10,"POR ITEM"]
[null,"ENTRADAS"]
[null,"Receita Operacional Bruta",null,{"$f":"Proj.Resultados!E11*N15","v":0},{"$f":"Proj.Resultados!F11*N15","v":0},{"$f":"Proj.Resultados!G11*N15","v":0},{"$f":"Proj.Resultados!H11*N15","v":0},{"$f":"Proj.Resultados!I11*N15","v":0},{"$f":"Proj.Resultados!J11*N15","v":0},{"$f":"Proj.Resultados!K11*N15","v":0},{"$f":"Proj.Resultados!L11*N15","v":0},{"$f":"Proj.Resultados!M11*N15","v":0},{"$f":"Proj.Resultados!N11*N15","v":0},1]
[null,"Desinvestimentos de Ativos Fixos",null,null,null,null,null,null,null,null,null,null,{"$f":"Depreciação!Q19+Depreciação!Q31+Depreciação!Q39","v":0}]
[null,"Desinvestimentos de Ativos Circulantes",null,null,null,null,null,null,null,null,null,null,{"$f":"'Capital de Giro'!C34+'Capital de Giro'!D34+'Capital de Giro'!E34+'Capital de Giro'!F34+'Capital de Giro'!G34","v":{"$error":"#DIV/0!"}}]
[null,"SAÍDAS POR INVESTIMENTOS"]
[null,"Terrenos",{"$f":"('Dados Gerais da Empresa'!C93+Investimentos!F20)*N19","v":0},null,null,null,null,null,null,null,null,null,null,1]
[null,"Construções Civis",{"$f":"(Depreciação!F12+Depreciação!F24)*N20","v":0},null,null,null,null,null,null,null,null,null,null,1]
[null,"Instalações",{"$f":"(Depreciação!F13+Depreciação!F25)*N21","v":0},null,null,null,null,null,null,null,null,null,null,1]
[null,"Máquinas e Equipamentos",{"$f":"(Depreciação!F14+Depreciação!F26)*N22","v":0},null,null,null,null,null,null,null,null,null,null,1]
[null,"Equipamentos de Informática e Softwares",{"$f":"(Depreciação!F15+Depreciação!F27+Depreciação!F16+Depreciação!F28)*N23","v":0},null,null,null,null,null,null,null,null,null,null,1]
[null,"Veículos",{"$f":"(Depreciação!F18+Depreciação!F30)*N24","v":0},null,null,null,null,null,null,null,null,null,null,1]
[null,"Móveis e Utensílios",{"$f":"(Depreciação!F17+Depreciação!F29)*N25","v":0},null,null,null,null,null,null,null,null,null,null,1]
[null,"Despesas de Implantação",{"$f":"Depreciação!F39*N26","v":0},null,null,null,null,null,null,null,null,null,null,1]
[null,"Outros Ativos (AP. Investimentos e RLP - Existente)",{"$f":"'Dados Gerais da Empresa'!C89+'Dados Gerais da Empresa'!C87","v":0},null,null,null,null,null,null,null,null,null,null,1]
[null,"Investimentos Circulantes",{"$f":"IF('Capital de Giro'!D34*N28<0,0,'Capital de Giro'!D34*N28)","v":{"$error":"#DIV/0!"}},null,{"$f":"IF('Capital de Giro'!E34*N28<0,0,'Capital de Giro'!E34*N28)","v":{"$error":"#DIV/0!"}},{"$f":"IF('Capital de Giro'!F34*N28<0,0,'Capital de Giro'!F34*N28)","v":{"$error":"#DIV/0!"}},{"$f":"IF('Capital de Giro'!G34*N28<0,0,'Capital de Giro'!G34*N28)","v":{"$error":"#DIV/0!"}},null,null,null,null,null,null,1]
[null,"SAÍDAS POR GASTOS OPERACIONAIS"]
[null,{"$f":"Proj.Resultados!B14","v":"CUSTO DOS PRODUTOS VENDIDOS"},null,{"$f":"SUM(D31:D33)*N30","v":0},{"$f":"SUM(E31:E33)*N30","v":0},{"$f":"SUM(F31:F33)*N30","v":0},{"$f":"SUM(G31:G33)*N30","v":0},{"$f":"SUM(H31:H33)*N30","v":0},{"$f":"SUM(I31:I33)*N30","v":0},{"$f":"SUM(J31:J33)*N30","v":0},{"$f":"SUM(K31:K33)*N30","v":0},{"$f":"SUM(L31:L33)*N30","v":0},{"$f":"SUM(M31:M33)*N30","v":0},1]
[null,{"$f":"IF('Dados Gerais da Empresa'!$C$25>1,\".Mercadorias\",\".Matéria-Prima\")","v":".Matéria-Prima"},null,{"$f":"Proj.Resultados!E16*N31","v":0},{"$f":"Proj.Resultados!F16*N31","v":0},{"$f":"Proj.Resultados!G16*N31","v":0},{"$f":"Proj.Resultados!H16*N31","v":0},{"$f":"Proj.Resultados!I16*N31","v":0},{"$f":"Proj.Resultados!J16*N31","v":0},{"$f":"Proj.Resultados!K16*N31","v":0},{"$f":"Proj.Resultados!L16*N31","v":0},{"$f":"Proj.Resultados!M16*N31","v":0},{"$f":"Proj.Resultados!N16*N31","v":0},1]
[null,".Materiais Secundários",null,{"$f":"Proj.Resultados!E17*N32","v":0},{"$f":"Proj.Resultados!F17*N32","v":0},{"$f":"Proj.Resultados!G17*N32","v":0},{"$f":"Proj.Resultados!H17*N32","v":0},{"$f":"Proj.Resultados!I17*N32","v":0},{"$f":"Proj.Resultados!J17*N32","v":0},{"$f":"Proj.Resultados!K17*N32","v":0},{"$f":"Proj.Resultados!L17*N32","v":0},{"$f":"Proj.Resultados!M17*N32","v":0},{"$f":"Proj.Resultados!N17*N32","v":0},1]
[null,".Material de Embalagem",null,{"$f":"Proj.Resultados!E18*N33","v":0},{"$f":"Proj.Resultados!F18*N33","v":0},{"$f":"Proj.Resultados!G18*N33","v":0},{"$f":"Proj.Resultados!H18*N33","v":0},{"$f":"Proj.Resultados!I18*N33","v":0},{"$f":"Proj.Resultados!J18*N33","v":0},{"$f":"Proj.Resultados!K18*N33","v":0},{"$f":"Proj.Resultados!L18*N33","v":0},{"$f":"Proj.Resultados!M18*N33","v":0},{"$f":"Proj.Resultados!N18*N33","v":0},1]
[null,"Despesas Operacionais",null,{"$f":"(D35+D40)*N34","v":0},{"$f":"(E35+E40)*N34","v":0},{"$f":"(F35+F40)*N34","v":0},{"$f":"(G35+G40)*N34","v":0},{"$f":"(H35+H40)*N34","v":0},{"$f":"(I35+I40)*N34","v":0},{"$f":"(J35+J40)*N34","v":0},{"$f":"(K35+K40)*N34","v":0},{"$f":"(L35+L40)*N34","v":0},{"$f":"(M35+M40)*N34","v":0},1]
[null,".Comerciais",null,{"$f":"SUM(D36:D39)*N35","v":0},{"$f":"SUM(E36:E39)*N35","v":0},{"$f":"SUM(F36:F39)*N35","v":0},{"$f":"SUM(G36:G39)*N35","v":0},{"$f":"SUM(H36:H39)*N35","v":0},{"$f":"SUM(I36:I39)*N35","v":0},{"$f":"SUM(J36:J39)*N35","v":0},{"$f":"SUM(K36:K39)*N35","v":0},{"$f":"SUM(L36:L39)*N35","v":0},{"$f":"SUM(M36:M39)*N35","v":0},1]
[null,"  .Frete",null,{"$f":"Proj.Resultados!E24*N36","v":0},{"$f":"Proj.Resultados!F24*N36","v":0},{"$f":"Proj.Resultados!G24*N36","v":0},{"$f":"Proj.Resultados!H24*N36","v":0},{"$f":"Proj.Resultados!I24*N36","v":0},{"$f":"Proj.Resultados!J24*N36","v":0},{"$f":"Proj.Resultados!K24*N36","v":0},{"$f":"Proj.Resultados!L24*N36","v":0},{"$f":"Proj.Resultados!M24*N36","v":0},{"$f":"Proj.Resultados!N24*N36","v":0},1]
[null,"  .Propaganda e Marketing",null,{"$f":"Proj.Resultados!E23*N37","v":0},{"$f":"Proj.Resultados!F23*N37","v":0},{"$f":"Proj.Resultados!G23*N37","v":0},{"$f":"Proj.Resultados!H23*N37","v":0},{"$f":"Proj.Resultados!I23*N37","v":0},{"$f":"Proj.Resultados!J23*N37","v":0},{"$f":"Proj.Resultados!K23*N37","v":0},{"$f":"Proj.Resultados!L23*N37","v":0},{"$f":"Proj.Resultados!M23*N37","v":0},{"$f":"Proj.Resultados!N23*N37","v":0},1]
[null,"  .Comissões sobre Vendas",null,{"$f":"Proj.Resultados!E22*N38","v":0},{"$f":"Proj.Resultados!F22*N38","v":0},{"$f":"Proj.Resultados!G22*N38","v":0},{"$f":"Proj.Resultados!H22*N38","v":0},{"$f":"Proj.Resultados!I22*N38","v":0},{"$f":"Proj.Resultados!J22*N38","v":0},{"$f":"Proj.Resultados!K22*N38","v":0},{"$f":"Proj.Resultados!L22*N38","v":0},{"$f":"Proj.Resultados!M22*N38","v":0},{"$f":"Proj.Resultados!N22*N38","v":0},1]
[null,"  .Outras Despesas Comerciais",null,{"$f":"Proj.Resultados!E26*N39","v":0},{"$f":"Proj.Resultados!F26*N39","v":0},{"$f":"Proj.Resultados!G26*N39","v":0},{"$f":"Proj.Resultados!H26*N39","v":0},{"$f":"Proj.Resultados!I26*N39","v":0},{"$f":"Proj.Resultados!J26*N39","v":0},{"$f":"Proj.Resultados!K26*N39","v":0},{"$f":"Proj.Resultados!L26*N39","v":0},{"$f":"Proj.Resultados!M26*N39","v":0},{"$f":"Proj.Resultados!N26*N39","v":0},1]
[null,".Administrativas",null,{"$f":"SUM(D41:D43)*N40","v":0},{"$f":"SUM(E41:E43)*N40","v":0},{"$f":"SUM(F41:F43)*N40","v":0},{"$f":"SUM(G41:G43)*N40","v":0},{"$f":"SUM(H41:H43)*N40","v":0},{"$f":"SUM(I41:I43)*N40","v":0},{"$f":"SUM(J41:J43)*N40","v":0},{"$f":"SUM(K41:K43)*N40","v":0},{"$f":"SUM(L41:L43)*N40","v":0},{"$f":"SUM(M41:M43)*N40","v":0},1]
[null,"  .Salários da Mão-de-obra Adm. / Honorários Diretoria",null,{"$f":"(Proj.Resultados!E28)*N41","v":0},{"$f":"(Proj.Resultados!F28)","v":0},{"$f":"(Proj.Resultados!G28)","v":0},{"$f":"(Proj.Resultados!H28)","v":0},{"$f":"(Proj.Resultados!I28)","v":0},{"$f":"(Proj.Resultados!J28)","v":0},{"$f":"(Proj.Resultados!K28)","v":0},{"$f":"(Proj.Resultados!L28)","v":0},{"$f":"(Proj.Resultados!M28)","v":0},{"$f":"(Proj.Resultados!N28)","v":0},1]
[null,"  .Encargos",null,null,null,null,null,null,null,null,null,null,null,1]
[null,"  .Outras Despesas Administrativas",null,{"$f":"(Proj.Resultados!E31+Proj.Resultados!E32+Proj.Resultados!E33+Proj.Resultados!E34+Proj.Resultados!E35+Proj.Resultados!E36+Proj.Resultados!E37+Proj.Resultados!E38+Proj.Resultados!E39)*N43","v":0},{"$f":"(Proj.Resultados!F31+Proj.Resultados!F32+Proj.Resultados!F33+Proj.Resultados!F34+Proj.Resultados!F35+Proj.Resultados!F36+Proj.Resultados!F37+Proj.Resultados!F38+Proj.Resultados!F39)*N43","v":0},{"$f":"(Proj.Resultados!G31+Proj.Resultados!G32+Proj.Resultados!G33+Proj.Resultados!G34+Proj.Resultados!G35+Proj.Resultados!G36+Proj.Resultados!G37+Proj.Resultados!G38+Proj.Resultados!G39)*N43","v":0},{"$f":"(Proj.Resultados!H31+Proj.Resultados!H32+Proj.Resultados!H33+Proj.Resultados!H34+Proj.Resultados!H35+Proj.Resultados!H36+Proj.Resultados!H37+Proj.Resultados!H38+Proj.Resultados!H39)*N43","v":0},{"$f":"(Proj.Resultados!I31+Proj.Resultados!I32+Proj.Resultados!I33+Proj.Resultados!I34+Proj.Resultados!I35+Proj.Resultados!I36+Proj.Resultados!I37+Proj.Resultados!I38+Proj.Resultados!I39)*N43","v":0},{"$f":"(Proj.Resultados!J31+Proj.Resultados!J32+Proj.Resultados!J33+Proj.Resultados!J34+Proj.Resultados!J35+Proj.Resultados!J36+Proj.Resultados!J37+Proj.Resultados!J38+Proj.Resultados!J39)*N43","v":0},{"$f":"(Proj.Resultados!K31+Proj.Resultados!K32+Proj.Resultados!K33+Proj.Resultados!K34+Proj.Resultados!K35+Proj.Resultados!K36+Proj.Resultados!K37+Proj.Resultados!K38+Proj.Resultados!K39)*N43","v":0},{"$f":"(Proj.Resultados!L31+Proj.Resultados!L32+Proj.Resultados!L33+Proj.Resultados!L34+Proj.Resultados!L35+Proj.Resultados!L36+Proj.Resultados!L37+Proj.Resultados!L38+Proj.Resultados!L39)*N43","v":0},{"$f":"(Proj.Resultados!M31+Proj.Resultados!M32+Proj.Resultados!M33+Proj.Resultados!M34+Proj.Resultados!M35+Proj.Resultados!M36+Proj.Resultados!M37+Proj.Resultados!M38+Proj.Resultados!M39)*N43","v":0},{"$f":"(Proj.Resultados!N31+Proj.Resultados!N32+Proj.Resultados!N33+Proj.Resultados!N34+Proj.Resultados!N35+Proj.Resultados!N36+Proj.Resultados!N37+Proj.Resultados!N38+Proj.Resultados!N39)*N43","v":0},1]
[null,"Impostos Faturados",null,{"$f":"Proj.Resultados!E12*N44","v":0},{"$f":"Proj.Resultados!F12*N44","v":0},{"$f":"Proj.Resultados!G12*N44","v":0},{"$f":"Proj.Resultados!H12*N44","v":0},{"$f":"Proj.Resultados!I12*N44","v":0},{"$f":"Proj.Resultados!J12*N44","v":0},{"$f":"Proj.Resultados!K12*N44","v":0},{"$f":"Proj.Resultados!L12*N44","v":0},{"$f":"Proj.Resultados!M12*N44","v":0},{"$f":"Proj.Resultados!N12*N44","v":0},1]
[null,"Imposto de Renda",null,null,null,null,null,null,null,null,null,null,null,1]
[null,"Contribuição Social",null,null,null,null,null,null,null,null,null,null,null,1]
[]
[null,"TOTAL DOS INVESTIMENTOS",{"$f":"SUM(C19:C28)","v":{"$error":"#DIV/0!"}},0,{"$error":"#DIV/0!"},{"$error":"#DIV/0!"},{"$error":"#DIV/0!"},0,0,0,0,0,0]
[null,"TOTAL DOS GASTOS OPERACIONAIS",null,{"$f":"D30+D34+SUM(D44:D46)","v":0},0,0,0,0,0,0,0,0,0]
[]
[null,"TOTAL DAS ENTRADAS DE RECURSOS",null,{"$f":"SUM(D15:D16)","v":0},{"$f":"SUM(E15:E16)","v":0},0,0,0,0,0,0,0,{"$f":"SUM(M15:M17)","v":{"$error":"#DIV/0!"}}]
[null,"TOTAL DAS SAÍDAS DE RECURSOS",{"$f":"C48","v":{"$error":"#DIV/0!"}},{"$f":"D48+D49","v":0},{"$error":"#DIV/0!"},{"$error":"#DIV/0!"},{"$error":"#DIV/0!"},0,0,0,0,0,0]
[null,"FLUXO DE CAIXA LÍQUIDO",{"$f":"-C48","v":{"$error":"#DIV/0!"}},{"$f":"D51-D52","v":0},{"$error":"#DIV/0!"},{"$error":"#DIV/0!"},{"$error":"#DIV/0!"},0,0,0,0,0,{"$error":"#DIV/0!"}]

{"sheet":"Análise de Viabilidade","index":41,"n_rows":71,"n_cols":11,"rows_kept":71,"cut":false,"hidden":true,"merged":[[56,1,56,6],[9,1,9,6],[7,1,7,5],[24,1,24,4],[39,1,39,6]]}
[]
[]
[]
[null,{"$f":"'Dados Gerais da Empresa'!B6","v":"ProjFacil - Sistema Integrado de Elaboração e Análise de Projetos"}]
[null,{"$f":"'Dados Gerais da Empresa'!B7","v":"Copyright:  José Nilo Meira"}]
[]
[]
[null,{"$f":"'Dados Gerais da Empresa'!C13","v":"Fábrica de Pipocas da Bahia"},null,null,null,null,{"$f":"'Dados Gerais da Empresa'!C14","v":"00:00:00"}]
[]
[null,"ANALISE DE INVESTIMENTOS"]
[null,"ANO"]
[null,0,"VALOR DO INVESTIMENTO",{"$f":"'Fluxo de Caixa'!C53","v":{"$error":"#DIV/0!"}},null,"TIR",{"$f":"IRR(D12:D22)","v":{"$error":"#VALUE!"}}]
[null,1,"FLUXO DE CAIXA LIQUIDO",{"$f":"'Fluxo de Caixa'!D53","v":0},null,"VPL",{"$f":"NPV(F25,D13:D22)+D12","v":{"$error":"#DIV/0!"}}]
[null,2,"FLUXO DE CAIXA LIQUIDO",{"$f":"'Fluxo de Caixa'!E53","v":{"$error":"#DIV/0!"}}]
[null,3,"FLUXO DE CAIXA LIQUIDO",{"$f":"'Fluxo de Caixa'!F53","v":{"$error":"#DIV/0!"}}]
[null,4,"FLUXO DE CAIXA LIQUIDO",{"$f":"'Fluxo de Caixa'!G53","v":{"$error":"#DIV/0!"}}]
[null,5,"FLUXO DE CAIXA LIQUIDO",{"$f":"'Fluxo de Caixa'!H53","v":0}]
[null,6,"FLUXO DE CAIXA LIQUIDO",{"$f":"'Fluxo de Caixa'!I53","v":0}]
[null,7,"FLUXO DE CAIXA LIQUIDO",{"$f":"'Fluxo de Caixa'!J53","v":0}]
[null,8,"FLUXO DE CAIXA LIQUIDO",{"$f":"'Fluxo de Caixa'!K53","v":0}]
[null,9,"FLUXO DE CAIXA LIQUIDO",{"$f":"'Fluxo de Caixa'!L53","v":0}]
[null,10,"FLUXO DE CAIXA LIQUIDO",{"$f":"'Fluxo de Caixa'!M53","v":{"$error":"#DIV/0!"}}]
[]
[]
[null,"CUSTO DE OPORTUNIDADE DO CAPITAL",null,null,null,{"$f":"G34/H34","v":{"$error":"#DIV/0!"}}]
[null,null,"EXIGÍVEL A LONGO PRAZO","VALOR",null,"TAXA"]
[null,null,"Dívida de Longo Prazo 1",{"$f":"'Despesas Financeiras'!E81","v":0},null,{"$f":"'Despesas Financeiras'!E83","v":0},{"$f":"D27*F27","v":0}]
[null,null,"Dívida de Longo Prazo 2",{"$f":"'Despesas Financeiras'!E108","v":0},null,{"$f":"'Despesas Financeiras'!E110","v":0},0]
[null,null,"Dívida de Longo Prazo 3",{"$f":"'Despesas Financeiras'!E135","v":0},null,{"$f":"'Despesas Financeiras'!E137","v":0},0]
[null,null,"Dívida de Longo Prazo 4",{"$f":"'Despesas Financeiras'!E162","v":0},null,{"$f":"'Despesas Financeiras'!E164","v":0},0]
[null,null,"Dívida de Longo Prazo 5",{"$f":"'Despesas Financeiras'!E189","v":0},null,{"$f":"'Despesas Financeiras'!E191","v":0},0]
[null,null,"Financiamento Proposto",{"$f":"'Despesas Financeiras'!E18","v":{"$error":"#DIV/0!"}},null,{"$f":"'Despesas Financeiras'!E20","v":4.4999999999999998E-2},{"$error":"#DIV/0!"}]
[null,null,"CAPITAL PRÓPRIO",{"$f":"'Sumário Executivo'!C14","v":{"$error":"#DIV/0!"}},null,0.12,{"$error":"#DIV/0!"}]
[null,null,null,null,null,null,{"$f":"SUM(G27:G33)","v":{"$error":"#DIV/0!"}},{"$f":"SUM(D27:D33)","v":{"$error":"#DIV/0!"}}]
[]
[]
[]
[]
[]
[null,"CÁLCULO DO PAYBACK SIMPLES"]
[null,"ANO"]
[null,0,"VALOR DO INVESTIMENTO",{"$f":"D12","v":{"$error":"#DIV/0!"}},null,null,{"$f":"D42","v":{"$error":"#DIV/0!"}}]
[null,1,"FLUXO DE CAIXA LIQUIDO",{"$f":"D13","v":0},null,null,{"$f":"G42+D43","v":{"$error":"#DIV/0!"}},{"$f":"IF(G43<0,1,0)","v":{"$error":"#DIV/0!"}},{"$f":"IF(H43>0,SUM(H43),0)","v":{"$error":"#DIV/0!"}},{"$f":"IF(H43=0,(-G42/D43),0)","v":{"$error":"#DIV/0!"}},{"$f":"IF(J43<=0,0,J43)","v":{"$error":"#DIV/0!"}}]
[null,2,"FLUXO DE CAIXA LIQUIDO",{"$error":"#DIV/0!"},null,null,{"$f":"G43+D44","v":{"$error":"#DIV/0!"}},{"$f":"IF(G44<0,1,0)","v":{"$error":"#DIV/0!"}},{"$f":"IF(H44>0,H43+H44,0)","v":{"$error":"#DIV/0!"}},{"$error":"#DIV/0!"},{"$f":"IF(J44<=0,0,J44)","v":{"$error":"#DIV/0!"}}]
[null,3,"FLUXO DE CAIXA LIQUIDO",{"$error":"#DIV/0!"},null,null,{"$error":"#DIV/0!"},{"$error":"#DIV/0!"},{"$f":"IF(H45>0,SUM(H43+H44+H45),0)","v":{"$error":"#DIV/0!"}},{"$error":"#DIV/0!"},{"$error":"#DIV/0!"}]
[null,4,"FLUXO DE CAIXA LIQUIDO",{"$error":"#DIV/0!"},null,null,{"$error":"#DIV/0!"},{"$error":"#DIV/0!"},{"$f":"IF(H46>0,SUM(H43+H44+H45+H46),0)","v":{"$error":"#DIV/0!"}},{"$error":"#DIV/0!"},{"$error":"#DIV/0!"}]
[null,5,"FLUXO DE CAIXA LIQUIDO",0,null,null,{"$error":"#DIV/0!"},{"$error":"#DIV/0!"},{"$f":"IF(H47>0,SUM(H43+H44+H45+H46+H47),0)","v":{"$error":"#DIV/0!"}},{"$error":"#DIV/0!"},{"$error":"#DIV/0!"}]
[null,6,"FLUXO DE CAIXA LIQUIDO",0,null,null,{"$error":"#DIV/0!"},{"$error":"#DIV/0!"},{"$f":"IF(H48>0,SUM(H43+H44+H45+H46+H47+H48),0)","v":{"$error":"#DIV/0!"}},{"$error":"#DIV/0!"},{"$error":"#DIV/0!"}]
[null,7,"FLUXO DE CAIXA LIQUIDO",0,null,null,{"$error":"#DIV/0!"},{"$error":"#DIV/0!"},{"$f":"IF(H49>0,SUM(H43+H44+H45+H46+H47+H48+H49),0)","v":{"$error":"#DIV/0!"}},{"$f":"IF(H49=0,(-G48/D49),0)","v":{"$error":"#DIV/0!"}},{"$error":"#DIV/0!"}]
[null,8,"FLUXO DE CAIXA LIQUIDO",0,null,null,{"$error":"#DIV/0!"},{"$error":"#DIV/0!"},{"$f":"IF(H50>0,SUM(H43+H44+H45+H46+H47+H48+H49+H50),0)","v":{"$error":"#DIV/0!"}},{"$f":"IF(H50=0,(-G49/D50),0)","v":{"$error":"#DIV/0!"}},{"$error":"#DIV/0!"}]
[null,9,"FLUXO DE CAIXA LIQUIDO",0,null,null,{"$error":"#DIV/0!"},{"$error":"#DIV/0!"},{"$f":"IF(H51>0,SUM(H43+H44+H45+H46+H47+H48+H49+H50+H51),0)","v":{"$error":"#DIV/0!"}},{"$f":"IF(H51=0,(-G50/D51),0)","v":{"$error":"#DIV/0!"}},{"$error":"#DIV/0!"}]
[null,10,"FLUXO DE CAIXA LIQUIDO",{"$error":"#DIV/0!"},null,null,{"$error":"#DIV/0!"},{"$error":"#DIV/0!"},{"$f":"IF(H52>0,SUM(H43+H44+H45+H46+H47+H48+H49+H50+H51+H52),0)","v":{"$error":"#DIV/0!"}},{"$f":"IF(H52=0,(-G51/D52),0)","v":{"$error":"#DIV/0!"}},{"$error":"#DIV/0!"}]
[]
[null,null,"PAYBACK SIMPLES",{"$f":"H54+K54","v":{"$error":"#DIV/0!"}},"ANOS",null,null,{"$f":"SUM(H43:H52)","v":{"$error":"#DIV/0!"}},null,null,{"$f":"SUM(K43:K52)","v":{"$error":"#DIV/0!"}}]
[]
[]
[null,"CÁLCULO DO PAYBACK DESCONTADO"]
[null,"ANO",null,null,null,null,"ACUMULADO"]
[null,0,"VALOR DO INVESTIMENTO",{"$f":"D42","v":{"$error":"#DIV/0!"}},null,null,{"$f":"G42","v":{"$error":"#DIV/0!"}}]
[null,1,"FLUXO DE CAIXA LIQUIDO",{"$f":"D43/(1+$F$25)^B43","v":{"$error":"#DIV/0!"}},null,null,{"$f":"G59+D60","v":{"$error":"#DIV/0!"}},{"$f":"IF(G60<0,1,0)","v":{"$error":"#DIV/0!"}},{"$f":"IF(H60>0,SUM(H60),0)","v":{"$error":"#DIV/0!"}},{"$f":"IF(H60=0,(-G59/D60),0)","v":{"$error":"#DIV/0!"}},{"$f":"IF(J60<=0,0,J60)","v":{"$error":"#DIV/0!"}}]
[null,1,"FLUXO DE CAIXA LIQUIDO",{"$f":"D44/(1+$F$25)^B44","v":{"$error":"#DIV/0!"}},null,null,{"$f":"G60+D61","v":{"$error":"#DIV/0!"}},{"$f":"IF(G61<0,1,0)","v":{"$error":"#DIV/0!"}},{"$f":"IF(H61>0,H60+H61,0)","v":{"$error":"#DIV/0!"}},{"$error":"#DIV/0!"},{"$f":"IF(J61<=0,0,J61)","v":{"$error":"#DIV/0!"}}]
[null,1,"FLUXO DE CAIXA LIQUIDO",{"$error":"#DIV/0!"},null,null,{"$error":"#DIV/0!"},{"$error":"#DIV/0!"},{"$f":"IF(H62>0,SUM(H60+H61+H62),0)","v":{"$error":"#DIV/0!"}},{"$error":"#DIV/0!"},{"$error":"#DIV/0!"}]
[null,1,"FLUXO DE CAIXA LIQUIDO",{"$error":"#DIV/0!"},null,null,{"$error":"#DIV/0!"},{"$error":"#DIV/0!"},{"$f":"IF(H63>0,SUM(H60+H61+H62+H63),0)","v":{"$error":"#DIV/0!"}},{"$error":"#DIV/0!"},{"$error":"#DIV/0!"}]
[null,1,"FLUXO DE CAIXA LIQUIDO",{"$error":"#DIV/0!"},null,null,{"$error":"#DIV/0!"},{"$error":"#DIV/0!"},{"$f":"IF(H64>0,SUM(H60+H61+H62+H63+H64),0)","v":{"$error":"#DIV/0!"}},{"$error":"#DIV/0!"},{"$error":"#DIV/0!"}]
[null,1,"FLUXO DE CAIXA LIQUIDO",{"$error":"#DIV/0!"},null,null,{"$error":"#DIV/0!"},{"$error":"#DIV/0!"},{"$f":"IF(H65>0,SUM(H60+H61+H62+H63+H64+H65),0)","v":{"$error":"#DIV/0!"}},{"$error":"#DIV/0!"},{"$error":"#DIV/0!"}]
[null,1,"FLUXO DE CAIXA LIQUIDO",{"$error":"#DIV/0!"},null,null,{"$error":"#DIV/0!"},{"$error":"#DIV/0!"},{"$f":"IF(H66>0,SUM(H60+H61+H62+H63+H64+H65+H66),0)","v":{"$error":"#DIV/0!"}},{"$f":"IF(H66=0,(-G65/D66),0)","v":{"$error":"#DIV/0!"}},{"$error":"#DIV/0!"}]
[null,1,"FLUXO DE CAIXA LIQUIDO",{"$error":"#DIV/0!"},null,null,{"$error":"#DIV/0!"},{"$error":"#DIV/0!"},{"$f":"IF(H67>0,SUM(H60+H61+H62+H63+H64+H65+H66+H67),0)","v":{"$error":"#DIV/0!"}},{"$f":"IF(H67=0,(-G66/D67),0)","v":{"$error":"#DIV/0!"}},{"$error":"#DIV/0!"}]
[null,1,"FLUXO DE CAIXA LIQUIDO",{"$error":"#DIV/0!"},null,null,{"$error":"#DIV/0!"},{"$error":"#DIV/0!"},{"$f":"IF(H68>0,SUM(H60+H61+H62+H63+H64+H65+H66+H67+H68),0)","v":{"$error":"#DIV/0!"}},{"$f":"IF(H68=0,(-G67/D68),0)","v":{"$error":"#DIV/0!"}},{"$error":"#DIV/0!"}]
[null,1,"FLUXO DE CAIXA LIQUIDO",{"$error":"#DIV/0!"},null,null,{"$error":"#DIV/0!"},{"$error":"#DIV/0!"},{"$f":"IF(H69>0,SUM(H60+H61+H62+H63+H64+H65+H66+H67+H68+H69),0)","v":{"$error":"#DIV/0!"}},{"$f":"IF(H69=0,(-G68/D69),0)","v":{"$error":"#DIV/0!"}},{"$error":"#DIV/0!"}]
[]
[null,null,"PAYBACK DESCONTADO ",{"$f":"H71+K71","v":{"$error":"#DIV/0!"}},"ANOS",null,null,{"$f":"SUM(H60:H69)","v":{"$error":"#DIV/0!"}},null,null,{"$f":"SUM(K60:K69)","v":{"$error":"#DIV/0!"}}]

{"sheet":"Sumário Executivo","index":42,"n_rows":42,"n_cols":4,"rows_kept":42,"cut":false,"hidden":false,"merged":[[6,1,6,3],[34,1,34,3]]}
[]
[null,{"$f":"'Dados Gerais da Empresa'!#REF!","v":{"$error":"#REF!"}}]
[]
[]
[]
[]
[null,"SUMÁRIO EXECUTIVO"]
[null,"USOS - PROJETADO",{"$f":"SUM(C9:C11)","v":{"$error":"#DIV/0!"}},{"$f":"C8/$C$8","v":{"$error":"#DIV/0!"}}]
[null,"INVESTIMENTOS FIXOS",{"$f":"'Despesas Financeiras'!E15","v":0},{"$f":"C9/$C$8","v":{"$error":"#DIV/0!"}}]
[null,"GASTOS DE IMPLANTAÇÃO",{"$f":"'Despesas Financeiras'!E16","v":0},{"$f":"C10/$C$8","v":{"$error":"#DIV/0!"}}]
[null,"CAPITAL DE GIRO DO ANO 1",{"$f":"'Despesas Financeiras'!E17","v":{"$error":"#DIV/0!"}},{"$f":"C11/$C$8","v":{"$error":"#DIV/0!"}}]
[null,"FONTES - PROJETADO",{"$f":"SUM(C13:C14)","v":{"$error":"#DIV/0!"}},{"$f":"C12/$C$12","v":{"$error":"#DIV/0!"}}]
[null,"RECURSOS DE TERCEIROS",{"$f":"'Despesas Financeiras'!E18","v":{"$error":"#DIV/0!"}},{"$f":"C13/$C$12","v":{"$error":"#DIV/0!"}}]
[null,"RECURSOS PRÓPRIOS",{"$f":"C8-C13","v":{"$error":"#DIV/0!"}},{"$f":"C14/$C$12","v":{"$error":"#DIV/0!"}}]
[]
[null,"INDICADORES ECONÔMICO-FINANCEIROS"]
[null,"RECEITA OPERACIONAL BRUTA",null,{"$f":"Proj.Resultados!H11","v":0}]
[null,"LUCRO LÍQUIDO",null,{"$f":"Proj.Resultados!H45","v":{"$error":"#DIV/0!"}}]
[null,"RETORNO SOBRE O INVESTIMENTO (ROI)",null,{"$f":"Proj.Resultados!H45/'Fluxo de Caixa'!C48","v":{"$error":"#DIV/0!"}}]
[null,"TAXA INTERNA DE RETORNO",null,{"$f":"'Análise de Viabilidade'!G12","v":{"$error":"#VALUE!"}}]
[null,"EVA (VALOR ECONÔMICO AGREGADO) %",null,{"$f":"D20-D24","v":{"$error":"#VALUE!"}}]
[null,"EVA (VALOR ECONÔMICO AGREGADO) $",null,{"$f":"-D21*'Análise de Viabilidade'!D12","v":{"$error":"#VALUE!"}}]
[null,"VALOR PRESENTE LÍQUIDO",{"$f":"IF(D23>0,\"Projeto Viável\", \"Projeto Inviável\")","v":{"$error":"#DIV/0!"}},{"$f":"'Análise de Viabilidade'!G13","v":{"$error":"#DIV/0!"}}]
[null,"CUSTO DE OPORTUNIDADE DO CAPITAL",null,{"$f":"'Análise de Viabilidade'!F25","v":{"$error":"#DIV/0!"}}]
[null,"VALOR DO DESINVESTIMENTO NO 10º ANO",null,{"$f":"'Fluxo de Caixa'!M16+'Fluxo de Caixa'!M17","v":{"$error":"#DIV/0!"}}]
[null,"PAYBACK SIMPLES (EM ANOS)",null,{"$f":"'Análise de Viabilidade'!D54","v":{"$error":"#DIV/0!"}}]
[null,"PAYBACK DESCONTADO (EM ANOS)",{"$f":"IF(D27<5,\"Bom prazo de retorno\",\"Elevado prazo de retorno\")","v":{"$error":"#DIV/0!"}},{"$f":"'Análise de Viabilidade'!D71","v":{"$error":"#DIV/0!"}}]
[null,"PONTO DE EQUILÍBRIO %",{"$f":"IF(D28<60%,\"Satisfatório\",\"Elevado\")","v":{"$error":"#DIV/0!"}},{"$f":"Proj.Resultados!W3*'Quadro 4'!G6","v":{"$error":"#DIV/0!"}}]
[null,"MARGEM BRUTA",null,{"$f":"Proj.Resultados!O19","v":{"$error":"#DIV/0!"}}]
[null,"MARGEM OPERACIONAL",null,{"$f":"Proj.Resultados!O42","v":{"$error":"#DIV/0!"}}]
[null,"MARGEM LÍQUIDA",null,{"$f":"Proj.Resultados!O45","v":{"$error":"#DIV/0!"}}]
[null,"GRAU DE ALAVANCAGEM OPERACIONAL",null,{"$f":"Proj.Resultados!W43","v":{"$error":"#DIV/0!"}}]
[null,"GRAU DE ALAVANCAGEM FINANCEIRA",null,{"$f":"Proj.Resultados!W45","v":{"$error":"#DIV/0!"}}]
[null,"GRAU DE ALAVANCAGEM COMBINADA",{"$f":"IF(D34<=1.5,\"Baixa Alavancagem (*)\", \"Alta Alavancagem (*)\")","v":{"$error":"#DIV/0!"}},{"$f":"Proj.Resultados!W44","v":{"$error":"#DIV/0!"}}]
[null,{"$f":"(IF(D34>1.5,\"(*) Projeto bastante sensível a variações nas vendas\",\"(*) Projeto pouco sensível a variações nas vendas\"))","v":{"$error":"#DIV/0!"}}]
[]
[null,"INDICADORES SOCIAIS"]
[null,"NÚMERO DE EMPREGOS GERADOS",null,{"$f":"'Mão-de-Obra'!O33+'Mão-de-Obra'!O57","v":0}]
[null,"SALÁRIO MÉDIO ANUAL",null,{"$f":"Proj.Resultados!H29/D38","v":{"$error":"#DIV/0!"}}]
[null,"MASSA SALARIAL ANUAL",null,{"$f":"Proj.Resultados!H29","v":0}]
[null,"ARRECADAÇÃO TRIBUTÁRIA ANUAL",null,{"$f":"Proj.Resultados!H12+Proj.Resultados!H38+Proj.Resultados!H30","v":0}]
[null,"CUSTO DO EMPREGO GERADO",null,{"$f":"('Fluxo de Caixa'!C48+'Fluxo de Caixa'!D48+'Fluxo de Caixa'!E48+'Fluxo de Caixa'!F48+'Fluxo de Caixa'!G48+'Fluxo de Caixa'!H48+'Fluxo de Caixa'!I48+'Fluxo de Caixa'!J48+'Fluxo de Caixa'!K48+'Fluxo de Caixa'!L48+'Fluxo de Caixa'!M48)/'Sumário Executivo'!D38","v":{"$error":"#DIV/0!"}}]

{"sheet":"Rascunho","index":43,"n_rows":0,"n_cols":0,"rows_kept":0,"cut":false,"hidden":true,"merged":[]}

{"sheet":"Plan1","index":44,"n_rows":0,"n_cols":0,"rows_kept":0,"cut":false,"hidden":true,"merged":[]}

{"sheet":"Plan2","index":45,"n_rows":0,"n_cols":0,"rows_kept":0,"cut":false,"hidden":true,"merged":[]}